Body Name,Vendor Number,Vendor Name,Cost Centre,Service Label,BV Code,Amount,Period
Slough Borough Council,806901,4way Consulting Ltd,P212,Capital,Capital Charges,"2,062.50",Mar-24
Slough Borough Council,806901,4way Consulting Ltd,P212,Capital,Capital Charges,"3,008.00",Mar-24
Slough Borough Council,1055,A J Chapman,F123,AD Education & Inclusion,External Receipts,"46,348.00",Mar-24
Slough Borough Council,1055,A J Chapman,F123,AD Education & Inclusion,External Receipts,"2,385.00",Mar-24
Slough Borough Council,1055,A J Chapman,F123,AD Education & Inclusion,External Receipts,"3,136.00",Mar-24
Slough Borough Council,1055,A J Chapman,F123,AD Education & Inclusion,External Receipts,"2,704.00",Mar-24
Slough Borough Council,809183,Aamay Resource Management Ltd,H205,AD Housing,Supplies and Services,"9,540.00",Mar-24
Slough Borough Council,809183,Aamay Resource Management Ltd,H205,AD Housing,Supplies and Services,"10,005.00",Mar-24
Slough Borough Council,809078,Aaron Alexander,C322,AD Public Protection & Communities - Children Services,Supplies and Services,643.00,Mar-24
Slough Borough Council,536,Ability Housing Association,M42E,AD People Strategy & Commissioning,Supplies and Services,"2,891.04",Mar-24
Slough Borough Council,536,Ability Housing Association,M42E,AD People Strategy & Commissioning,Supplies and Services,"2,077.86",Mar-24
Slough Borough Council,536,Ability Housing Association,M42E,AD People Strategy & Commissioning,Supplies and Services,"2,615.61",Mar-24
Slough Borough Council,536,Ability Housing Association,M42E,AD People Strategy & Commissioning,Supplies and Services,"1,987.54",Mar-24
Slough Borough Council,536,Ability Housing Association,M42E,AD People Strategy & Commissioning,Supplies and Services,"3,045.89",Mar-24
Slough Borough Council,536,Ability Housing Association,M42E,AD People Strategy & Commissioning,Supplies and Services,"2,744.72",Mar-24
Slough Borough Council,536,Ability Housing Association,M42E,AD People Strategy & Commissioning,Supplies and Services,"3,304.03",Mar-24
Slough Borough Council,536,Ability Housing Association,M42E,AD People Strategy & Commissioning,Supplies and Services,"2,938.33",Mar-24
Slough Borough Council,536,Ability Housing Association,M42E,AD People Strategy & Commissioning,Supplies and Services,"3,295.46",Mar-24
Slough Borough Council,536,Ability Housing Association,M42E,AD People Strategy & Commissioning,Supplies and Services,"2,710.31",Mar-24
Slough Borough Council,536,Ability Housing Association,M42E,AD People Strategy & Commissioning,Supplies and Services,"1,548.67",Mar-24
Slough Borough Council,536,Ability Housing Association,M42E,AD People Strategy & Commissioning,Supplies and Services,"2,865.21",Mar-24
Slough Borough Council,536,Ability Housing Association,M42E,AD People Strategy & Commissioning,Supplies and Services,510.06,Mar-24
Slough Borough Council,536,Ability Housing Association,M42E,AD People Strategy & Commissioning,Supplies and Services,510.06,Mar-24
Slough Borough Council,536,Ability Housing Association,M42E,AD People Strategy & Commissioning,Supplies and Services,527.06,Mar-24
Slough Borough Council,536,Ability Housing Association,M42E,AD People Strategy & Commissioning,Supplies and Services,527.06,Mar-24
Slough Borough Council,536,Ability Housing Association,M42E,AD People Strategy & Commissioning,Supplies and Services,763.38,Mar-24
Slough Borough Council,536,Ability Housing Association,M42E,AD People Strategy & Commissioning,Supplies and Services,"4,388.23",Mar-24
Slough Borough Council,536,Ability Housing Association,M42E,AD People Strategy & Commissioning,Supplies and Services,"3,738.51",Mar-24
Slough Borough Council,536,Ability Housing Association,M42E,AD People Strategy & Commissioning,Supplies and Services,"2,817.87",Mar-24
Slough Borough Council,536,Ability Housing Association,M42E,AD People Strategy & Commissioning,Supplies and Services,"2,925.42",Mar-24
Slough Borough Council,536,Ability Housing Association,M42E,AD People Strategy & Commissioning,Supplies and Services,"2,882.40",Mar-24
Slough Borough Council,536,Ability Housing Association,M42E,AD People Strategy & Commissioning,Supplies and Services,748.00,Mar-24
Slough Borough Council,536,Ability Housing Association,M42E,AD People Strategy & Commissioning,Supplies and Services,-679.22,Mar-24
Slough Borough Council,536,Ability Housing Association,M44E,AD People Strategy & Commissioning,Supplies and Services,"1,944.67",Mar-24
Slough Borough Council,536,Ability Housing Association,M44E,AD People Strategy & Commissioning,Supplies and Services,"2,017.81",Mar-24
Slough Borough Council,536,Ability Housing Association,M44E,AD People Strategy & Commissioning,Supplies and Services,"2,379.21",Mar-24
Slough Borough Council,536,Ability Housing Association,M44E,AD People Strategy & Commissioning,Supplies and Services,"2,465.25",Mar-24
Slough Borough Council,2898,Achieve Together t/a The Regard Partnership Ltd,M26E,AD Adult Social Care Operations,Supplies and Services,"8,047.51",Mar-24
Slough Borough Council,2898,Achieve Together t/a The Regard Partnership Ltd,M26E,AD Adult Social Care Operations,Supplies and Services,"6,796.71",Mar-24
Slough Borough Council,2898,Achieve Together t/a The Regard Partnership Ltd,M42E,AD People Strategy & Commissioning,Supplies and Services,"1,974.09",Mar-24
Slough Borough Council,2898,Achieve Together t/a The Regard Partnership Ltd,M42E,AD People Strategy & Commissioning,Supplies and Services,"7,018.31",Mar-24
Slough Borough Council,2898,Achieve Together t/a The Regard Partnership Ltd,M42E,AD People Strategy & Commissioning,Supplies and Services,"7,018.31",Mar-24
Slough Borough Council,2898,Achieve Together t/a The Regard Partnership Ltd,M42E,AD People Strategy & Commissioning,Supplies and Services,"6,565.52",Mar-24
Slough Borough Council,2898,Achieve Together t/a The Regard Partnership Ltd,M42E,AD People Strategy & Commissioning,Supplies and Services,"5,601.57",Mar-24
Slough Borough Council,2898,Achieve Together t/a The Regard Partnership Ltd,M42E,AD People Strategy & Commissioning,Supplies and Services,"5,707.94",Mar-24
Slough Borough Council,2898,Achieve Together t/a The Regard Partnership Ltd,M42E,AD People Strategy & Commissioning,Supplies and Services,"7,256.17",Mar-24
Slough Borough Council,2898,Achieve Together t/a The Regard Partnership Ltd,M42E,AD People Strategy & Commissioning,Supplies and Services,"7,504.13",Mar-24
Slough Borough Council,2898,Achieve Together t/a The Regard Partnership Ltd,M42E,AD People Strategy & Commissioning,Supplies and Services,"5,572.60",Mar-24
Slough Borough Council,2898,Achieve Together t/a The Regard Partnership Ltd,M44D,AD Adult Social Care Operations,Supplies and Services,"5,179.75",Mar-24
Slough Borough Council,2898,Achieve Together t/a The Regard Partnership Ltd,M44E,AD People Strategy & Commissioning,Supplies and Services,"6,225.77",Mar-24
Slough Borough Council,807554,Acorn Care & Education Ltd,F462,AD Children & Families,Supplies and Services,"24,554.29",Mar-24
Slough Borough Council,807554,Acorn Care & Education Ltd,F462,AD Children & Families,Supplies and Services,"26,027.55",Mar-24
Slough Borough Council,807554,Acorn Care & Education Ltd,F462,AD Children & Families,Supplies and Services,"17,351.70",Mar-24
Slough Borough Council,807554,Acorn Care & Education Ltd,F558,AD Children & Families,Supplies and Services,"22,402.26",Mar-24
Slough Borough Council,807554,Acorn Care & Education Ltd,F558,AD Children & Families,Supplies and Services,"33,736.00",Mar-24
Slough Borough Council,4013,Adass (Association Of Directors Of Social Services),A01D,AD People Strategy & Commissioning,Supplies and Services,"2,408.00",Mar-24
Slough Borough Council,803684,Addington School,F551,AD Children & Families,Supplies and Services,"7,474.14",Mar-24
Slough Borough Council,2855,Advance Housing & Support Ltd,M27F,AD Adult Social Care Operations,Supplies and Services,795.83,Mar-24
Slough Borough Council,2855,Advance Housing & Support Ltd,M42F,AD People Strategy & Commissioning,Supplies and Services,"2,067.52",Mar-24
Slough Borough Council,2855,Advance Housing & Support Ltd,M42F,AD People Strategy & Commissioning,Supplies and Services,"-2,685.02",Mar-24
Slough Borough Council,2855,Advance Housing & Support Ltd,M42F,AD People Strategy & Commissioning,Supplies and Services,"1,749.44",Mar-24
Slough Borough Council,2855,Advance Housing & Support Ltd,M42F,AD People Strategy & Commissioning,Supplies and Services,"1,192.80",Mar-24
Slough Borough Council,2855,Advance Housing & Support Ltd,M42F,AD People Strategy & Commissioning,Supplies and Services,795.20,Mar-24
Slough Borough Council,2855,Advance Housing & Support Ltd,M42F,AD People Strategy & Commissioning,Supplies and Services,"1,272.32",Mar-24
Slough Borough Council,2135,Adventure Learning Childcare Limited,F281,AD Education & Inclusion,Premises,"2,444.98",Mar-24
Slough Borough Council,2135,Adventure Learning Childcare Limited,F281,AD Education & Inclusion,Premises,"1,125.15",Mar-24
Slough Borough Council,2135,Adventure Learning Childcare Limited,F281,AD Education & Inclusion,Premises,"1,871.94",Mar-24
Slough Borough Council,2135,Adventure Learning Childcare Limited,F143,AD Children & Families,Government Grants,"1,072.00",Mar-24
Slough Borough Council,2135,Adventure Learning Childcare Limited,F281,AD Education & Inclusion,Supplies and Services,"1,812.76",Mar-24
Slough Borough Council,2135,Adventure Learning Childcare Limited,F281,AD Education & Inclusion,Supplies and Services,"7,498.40",Mar-24
Slough Borough Council,2135,Adventure Learning Childcare Limited,F281,AD Education & Inclusion,Supplies and Services,"3,480.17",Mar-24
Slough Borough Council,2135,Adventure Learning Childcare Limited,F281,AD Education & Inclusion,Supplies and Services,"4,693.10",Mar-24
Slough Borough Council,1603,Advision Security Ltd,A07M,AD People Strategy & Commissioning,Premises,"1,595.00",Mar-24
Slough Borough Council,1603,Advision Security Ltd,A07M,AD People Strategy & Commissioning,Premises,"1,090.00",Mar-24
Slough Borough Council,1603,Advision Security Ltd,A07M,AD People Strategy & Commissioning,Premises,"7,985.00",Mar-24
Slough Borough Council,1656,Agile Applications Limited,D224,Chief Planner,Supplies and Services,"15,000.00",Mar-24
Slough Borough Council,1656,Agile Applications Limited,D224,Chief Planner,Supplies and Services,"57,183.04",Mar-24
Slough Borough Council,805088,Agilysis Ltd,D015,AD Place Operations,Supplies and Services,"2,450.00",Mar-24
Slough Borough Council,2486,Agriculture And Estate Services Limited,C001,AD Place Operations,Premises,"40,000.00",Mar-24
Slough Borough Council,2486,Agriculture And Estate Services Limited,P209,Capital,Capital Charges,"4,850.00",Mar-24
Slough Borough Council,809232,Alison Simpson-Price,C322,AD Public Protection & Communities - Children Services,Supplies and Services,"1,883.50",Mar-24
Slough Borough Council,2956,Alpha Parking Limited,D123,AD Place Operations,Indirect Employee Expenses,"1,220.00",Mar-24
Slough Borough Council,86,Altwood Properties Ltd,H205,AD Housing,Premises,"41,041.20",Mar-24
Slough Borough Council,86,Altwood Properties Ltd,H205,AD Housing,Premises,"39,574.71",Mar-24
Slough Borough Council,807515,Always Growing Together Community Interest Company Limited,F281,AD Education & Inclusion,Premises,"4,192.51",Mar-24
Slough Borough Council,807515,Always Growing Together Community Interest Company Limited,F281,AD Education & Inclusion,Premises,"10,268.99",Mar-24
Slough Borough Council,807515,Always Growing Together Community Interest Company Limited,F281,AD Education & Inclusion,Premises,"2,305.80",Mar-24
Slough Borough Council,807515,Always Growing Together Community Interest Company Limited,F281,AD Education & Inclusion,Supplies and Services,"6,685.39",Mar-24
Slough Borough Council,807515,Always Growing Together Community Interest Company Limited,F281,AD Education & Inclusion,Supplies and Services,"1,272.39",Mar-24
Slough Borough Council,807515,Always Growing Together Community Interest Company Limited,F281,AD Education & Inclusion,Supplies and Services,"2,683.56",Mar-24
Slough Borough Council,807515,Always Growing Together Community Interest Company Limited,F281,AD Education & Inclusion,Supplies and Services,624.15,Mar-24
Slough Borough Council,807515,Always Growing Together Community Interest Company Limited,F281,AD Education & Inclusion,Supplies and Services,530.10,Mar-24
Slough Borough Council,808191,Ambrose Adrian Healthcare Ltd,M44E,AD People Strategy & Commissioning,Supplies and Services,"3,800.00",Mar-24
Slough Borough Council,808562,Andy Clements,F253,AD Children & Families,Agency Staff,"2,112.17",Mar-24
Slough Borough Council,807893,Antz Kidz Activity Centre,F382,AD Children & Families,Government Grants,"1,540.00",Mar-24
Slough Borough Council,3137,Applegarth Care Home Ltd,M28C,AD Adult Social Care Operations,Supplies and Services,"1,085.68",Mar-24
Slough Borough Council,808415,APTUS EA LTD,H205,AD Housing,Supplies and Services,"319,740.00",Mar-24
Slough Borough Council,808415,APTUS EA LTD,H205,AD Housing,Supplies and Services,"285,350.00",Mar-24
Slough Borough Council,3350,Arbour Vale School,E610,AD Children & Families,Supplies and Services,"268,032.45",Mar-24
Slough Borough Council,2073,Arc Preschool,F281,AD Education & Inclusion,Premises,"2,093.06",Mar-24
Slough Borough Council,2073,Arc Preschool,F143,AD Children & Families,Government Grants,"1,608.00",Mar-24
Slough Borough Council,2073,Arc Preschool,F281,AD Education & Inclusion,Supplies and Services,"14,343.02",Mar-24
Slough Borough Council,2073,Arc Preschool,F281,AD Education & Inclusion,Supplies and Services,"5,868.72",Mar-24
Slough Borough Council,2073,Arc Preschool,F281,AD Education & Inclusion,Supplies and Services,"11,590.92",Mar-24
Slough Borough Council,2073,Arc Preschool,F281,AD Education & Inclusion,Supplies and Services,"2,492.33",Mar-24
Slough Borough Council,2073,Arc Preschool,F281,AD Education & Inclusion,Supplies and Services,722.73,Mar-24
Slough Borough Council,2073,Arc Preschool,F281,AD Education & Inclusion,Supplies and Services,613.80,Mar-24
Slough Borough Council,804353,Arts Class,F382,AD Children & Families,Supplies and Services,"4,680.00",Mar-24
Slough Borough Council,804353,Arts Class,F382,AD Children & Families,Government Grants,"1,664.00",Mar-24
Slough Borough Council,1985,Ascentis,F210,AD Public Protection & Communities - Children Services,Supplies and Services,"1,491.00",Mar-24
Slough Borough Council,809029,ASH TEIKO,F253,AD Children & Families,Agency Staff,800.00,Mar-24
Slough Borough Council,420,Ashburn Estate Agents,H205,AD Housing,Premises,"98,775.00",Mar-24
Slough Borough Council,420,Ashburn Estate Agents,H205,AD Housing,Premises,"92,413.00",Mar-24
Slough Borough Council,808720,Aspect Lifts Ltd,B060,AD Building Management,Premises,844.06,Mar-24
Slough Borough Council,3666,Assisted Living South West,M26E,AD Adult Social Care Operations,Supplies and Services,"6,778.96",Mar-24
Slough Borough Council,3666,Assisted Living South West,M26E,AD Adult Social Care Operations,Supplies and Services,"5,334.28",Mar-24
Slough Borough Council,804324,Astoria Healthcare,M27F,AD Adult Social Care Operations,Supplies and Services,"4,339.15",Mar-24
Slough Borough Council,809472,Atkins Realis PPS Ltd,B060,AD Building Management,Premises,"2,950.00",Mar-24
Slough Borough Council,809472,Atkins Realis PPS Ltd,B060,AD Building Management,Premises,"2,840.00",Mar-24
Slough Borough Council,808776,AVK-SEG (UK) Ltd,B060,AD Building Management,Premises,510.00,Mar-24
Slough Borough Council,3370,Baylis Court School,E610,AD Children & Families,Supplies and Services,"4,083.33",Mar-24
Slough Borough Council,1681,BCQ Solutions Ltd,B242,Democratic Services,Supplies and Services,"9,047.00",Mar-24
Slough Borough Council,1681,BCQ Solutions Ltd,B242,Democratic Services,Supplies and Services,"53,072.00",Mar-24
Slough Borough Council,3208,Be Happy Pre School,F281,AD Education & Inclusion,Premises,"4,864.20",Mar-24
Slough Borough Council,3208,Be Happy Pre School,F281,AD Education & Inclusion,Premises,"4,409.97",Mar-24
Slough Borough Council,3208,Be Happy Pre School,F281,AD Education & Inclusion,Premises,"3,257.40",Mar-24
Slough Borough Council,3208,Be Happy Pre School,F281,AD Education & Inclusion,Premises,"3,062.96",Mar-24
Slough Borough Council,3208,Be Happy Pre School,F409,AD Education & Inclusion,Supplies and Services,"1,000.00",Mar-24
Slough Borough Council,3208,Be Happy Pre School,F549,AD Children & Families,Supplies and Services,"1,000.00",Mar-24
Slough Borough Council,3208,Be Happy Pre School,F281,AD Education & Inclusion,Supplies and Services,"1,974.44",Mar-24
Slough Borough Council,3208,Be Happy Pre School,F281,AD Education & Inclusion,Supplies and Services,"4,298.09",Mar-24
Slough Borough Council,3208,Be Happy Pre School,F281,AD Education & Inclusion,Supplies and Services,"10,711.25",Mar-24
Slough Borough Council,3208,Be Happy Pre School,F281,AD Education & Inclusion,Supplies and Services,"1,277.51",Mar-24
Slough Borough Council,3208,Be Happy Pre School,F281,AD Education & Inclusion,Supplies and Services,"1,540.85",Mar-24
Slough Borough Council,3208,Be Happy Pre School,F281,AD Education & Inclusion,Supplies and Services,722.70,Mar-24
Slough Borough Council,3208,Be Happy Pre School,F281,AD Education & Inclusion,Supplies and Services,613.80,Mar-24
Slough Borough Council,1818,Bear Buses,D512,AD Place Operations,Supplies and Services,777.46,Mar-24
Slough Borough Council,1818,Bear Buses,D512,AD Place Operations,Supplies and Services,682.57,Mar-24
Slough Borough Council,1818,Bear Buses,D512,AD Place Operations,Supplies and Services,"1,013.91",Mar-24
Slough Borough Council,809446,Becci Seaborne,H254,AD Public Protection & Communities - Public Health,Premises,"4,000.00",Mar-24
Slough Borough Council,804471,Beech Lodge School Ltd,F462,AD Children & Families,Supplies and Services,"15,877.00",Mar-24
Slough Borough Council,804471,Beech Lodge School Ltd,F462,AD Children & Families,Supplies and Services,"12,270.00",Mar-24
Slough Borough Council,804471,Beech Lodge School Ltd,F462,AD Children & Families,Supplies and Services,"20,101.00",Mar-24
Slough Borough Council,609,Beechwood Secondary School,E610,AD Children & Families,Supplies and Services,"4,458.33",Mar-24
Slough Borough Council,612,Berkshire Healthcare Nhs Foundation Trust,A07M,AD People Strategy & Commissioning,Supplies and Services,"479,320.20",Mar-24
Slough Borough Council,808116,BeSpoke Cycling Instruction Ltd,D500,AD Place Operations,Supplies and Services,"3,071.00",Mar-24
Slough Borough Council,808148,BEST CHOICE CARE LTD,A07R,AD Adult Social Care Operations,Supplies and Services,590.63,Mar-24
Slough Borough Council,808148,BEST CHOICE CARE LTD,M41D,AD Adult Social Care Operations,Supplies and Services,603.75,Mar-24
Slough Borough Council,808148,BEST CHOICE CARE LTD,M44C,AD Adult Social Care Operations,Supplies and Services,"2,047.78",Mar-24
Slough Borough Council,808148,BEST CHOICE CARE LTD,M44C,AD Adult Social Care Operations,Supplies and Services,980.00,Mar-24
Slough Borough Council,808148,BEST CHOICE CARE LTD,M44C,AD Adult Social Care Operations,Supplies and Services,612.64,Mar-24
Slough Borough Council,808148,BEST CHOICE CARE LTD,M44C,AD Adult Social Care Operations,Supplies and Services,857.64,Mar-24
Slough Borough Council,808148,BEST CHOICE CARE LTD,M44C,AD Adult Social Care Operations,Supplies and Services,726.25,Mar-24
Slough Borough Council,808148,BEST CHOICE CARE LTD,M44C,AD Adult Social Care Operations,Supplies and Services,"1,032.64",Mar-24
Slough Borough Council,808148,BEST CHOICE CARE LTD,M44C,AD Adult Social Care Operations,Supplies and Services,"1,225.00",Mar-24
Slough Borough Council,808148,BEST CHOICE CARE LTD,M44C,AD Adult Social Care Operations,Supplies and Services,700.00,Mar-24
Slough Borough Council,808148,BEST CHOICE CARE LTD,M44C,AD Adult Social Care Operations,Supplies and Services,"1,102.64",Mar-24
Slough Borough Council,808148,BEST CHOICE CARE LTD,M44C,AD Adult Social Care Operations,Supplies and Services,848.89,Mar-24
Slough Borough Council,808148,BEST CHOICE CARE LTD,M44C,AD Adult Social Care Operations,Supplies and Services,"1,137.64",Mar-24
Slough Borough Council,808148,BEST CHOICE CARE LTD,M44C,AD Adult Social Care Operations,Supplies and Services,"1,522.50",Mar-24
Slough Borough Council,808148,BEST CHOICE CARE LTD,M44C,AD Adult Social Care Operations,Supplies and Services,"1,837.78",Mar-24
Slough Borough Council,808148,BEST CHOICE CARE LTD,M44C,AD Adult Social Care Operations,Supplies and Services,634.38,Mar-24
Slough Borough Council,808148,BEST CHOICE CARE LTD,M44C,AD Adult Social Care Operations,Supplies and Services,888.13,Mar-24
Slough Borough Council,808148,BEST CHOICE CARE LTD,M44C,AD Adult Social Care Operations,Supplies and Services,"1,268.75",Mar-24
Slough Borough Council,808148,BEST CHOICE CARE LTD,M44C,AD Adult Social Care Operations,Supplies and Services,612.64,Mar-24
Slough Borough Council,808148,BEST CHOICE CARE LTD,M44C,AD Adult Social Care Operations,Supplies and Services,612.64,Mar-24
Slough Borough Council,808148,BEST CHOICE CARE LTD,M44C,AD Adult Social Care Operations,Supplies and Services,"1,715.28",Mar-24
Slough Borough Council,808148,BEST CHOICE CARE LTD,M44C,AD Adult Social Care Operations,Supplies and Services,857.64,Mar-24
Slough Borough Council,808148,BEST CHOICE CARE LTD,M44C,AD Adult Social Care Operations,Supplies and Services,"2,327.78",Mar-24
Slough Borough Council,808148,BEST CHOICE CARE LTD,M44C,AD Adult Social Care Operations,Supplies and Services,520.76,Mar-24
Slough Borough Council,808148,BEST CHOICE CARE LTD,M44D,AD Adult Social Care Operations,Supplies and Services,616.25,Mar-24
Slough Borough Council,808148,BEST CHOICE CARE LTD,M44D,AD Adult Social Care Operations,Supplies and Services,"1,242.64",Mar-24
Slough Borough Council,808148,BEST CHOICE CARE LTD,M44D,AD Adult Social Care Operations,Supplies and Services,"2,467.50",Mar-24
Slough Borough Council,808148,BEST CHOICE CARE LTD,M44D,AD Adult Social Care Operations,Supplies and Services,"2,205.28",Mar-24
Slough Borough Council,808148,BEST CHOICE CARE LTD,M44D,AD Adult Social Care Operations,Supplies and Services,589.19,Mar-24
Slough Borough Council,808148,BEST CHOICE CARE LTD,M44D,AD Adult Social Care Operations,Supplies and Services,"2,283.75",Mar-24
Slough Borough Council,808148,BEST CHOICE CARE LTD,M44F,AD People Strategy & Commissioning,Supplies and Services,612.64,Mar-24
Slough Borough Council,808148,BEST CHOICE CARE LTD,M44F,AD People Strategy & Commissioning,Supplies and Services,630.00,Mar-24
Slough Borough Council,808148,BEST CHOICE CARE LTD,M45C,AD Adult Social Care Operations,Supplies and Services,"1,102.64",Mar-24
Slough Borough Council,808148,BEST CHOICE CARE LTD,M45C,AD Adult Social Care Operations,Supplies and Services,"1,715.28",Mar-24
Slough Borough Council,808148,BEST CHOICE CARE LTD,M45C,AD Adult Social Care Operations,Supplies and Services,980.00,Mar-24
Slough Borough Council,808148,BEST CHOICE CARE LTD,M45C,AD Adult Social Care Operations,Supplies and Services,546.88,Mar-24
Slough Borough Council,808148,BEST CHOICE CARE LTD,M45C,AD Adult Social Care Operations,Supplies and Services,599.51,Mar-24
Slough Borough Council,808148,BEST CHOICE CARE LTD,M48C,AD Adult Social Care Operations,Supplies and Services,652.50,Mar-24
Slough Borough Council,808148,BEST CHOICE CARE LTD,M48C,AD Adult Social Care Operations,Supplies and Services,"2,660.56",Mar-24
Slough Borough Council,1736,Bevan Brittan Llp,P242,Capital,Capital Charges,"4,368.00",Mar-24
Slough Borough Council,1736,Bevan Brittan Llp,P242,Capital,Capital Charges,"1,197.00",Mar-24
Slough Borough Council,808755,BHANDAL INVESTMENTS LTD,H205,AD Housing,Supplies and Services,"25,987.00",Mar-24
Slough Borough Council,1224,Big Yellow Self Storage,F253,AD Children & Families,Premises,644.00,Mar-24
Slough Borough Council,3611,Birch Assist Ltd T/A Bluebird Care (South Bucks & Slough),M44D,AD Adult Social Care Operations,Supplies and Services,"2,982.00",Mar-24
Slough Borough Council,808452,Black Swan International Limited,M25C,AD Adult Social Care Operations,Supplies and Services,"3,321.34",Mar-24
Slough Borough Council,803828,Blue Willow Day Nursery Ltd,F281,AD Education & Inclusion,Premises,"2,938.44",Mar-24
Slough Borough Council,803828,Blue Willow Day Nursery Ltd,F281,AD Education & Inclusion,Premises,"2,599.83",Mar-24
Slough Borough Council,803828,Blue Willow Day Nursery Ltd,F281,AD Education & Inclusion,Premises,"3,724.05",Mar-24
Slough Borough Council,803828,Blue Willow Day Nursery Ltd,F409,AD Education & Inclusion,Supplies and Services,"1,000.00",Mar-24
Slough Borough Council,803828,Blue Willow Day Nursery Ltd,F550,AD Children & Families,Supplies and Services,"3,947.40",Mar-24
Slough Borough Council,803828,Blue Willow Day Nursery Ltd,F281,AD Education & Inclusion,Supplies and Services,"1,873.74",Mar-24
Slough Borough Council,803828,Blue Willow Day Nursery Ltd,F281,AD Education & Inclusion,Supplies and Services,"13,029.58",Mar-24
Slough Borough Council,803828,Blue Willow Day Nursery Ltd,F281,AD Education & Inclusion,Supplies and Services,"5,511.85",Mar-24
Slough Borough Council,803828,Blue Willow Day Nursery Ltd,F281,AD Education & Inclusion,Supplies and Services,"1,196.47",Mar-24
Slough Borough Council,803828,Blue Willow Day Nursery Ltd,F281,AD Education & Inclusion,Supplies and Services,"1,016.18",Mar-24
Slough Borough Council,1341,Bluesky International Ltd,B660,AD Strategy,Supplies and Services,600.00,Mar-24
Slough Borough Council,803601,Bolinda UK Ltd,C104,AD Customer,Supplies and Services,663.21,Mar-24
Slough Borough Council,513,Bracknell Forest Borough Council,A01C,AD People Strategy & Commissioning,Supplies and Services,"20,000.00",Mar-24
Slough Borough Council,2856,Brain Injury Rehabilitation Trust,M27C,AD Adult Social Care Operations,Supplies and Services,"7,481.67",Mar-24
Slough Borough Council,2856,Brain Injury Rehabilitation Trust,M27C,AD Adult Social Care Operations,Supplies and Services,"6,998.98",Mar-24
Slough Borough Council,805817,Bright World Nurseries,F281,AD Education & Inclusion,Premises,"6,748.20",Mar-24
Slough Borough Council,805817,Bright World Nurseries,F281,AD Education & Inclusion,Premises,"3,170.72",Mar-24
Slough Borough Council,805817,Bright World Nurseries,F281,AD Education & Inclusion,Premises,"4,826.63",Mar-24
Slough Borough Council,805817,Bright World Nurseries,F374,AD Children & Families,Supplies and Services,"3,215.00",Mar-24
Slough Borough Council,805817,Bright World Nurseries,F281,AD Education & Inclusion,Supplies and Services,"18,005.19",Mar-24
Slough Borough Council,805817,Bright World Nurseries,F281,AD Education & Inclusion,Supplies and Services,839.37,Mar-24
Slough Borough Council,805817,Bright World Nurseries,F281,AD Education & Inclusion,Supplies and Services,"7,074.13",Mar-24
Slough Borough Council,805817,Bright World Nurseries,F281,AD Education & Inclusion,Supplies and Services,"5,717.01",Mar-24
Slough Borough Council,805817,Bright World Nurseries,F281,AD Education & Inclusion,Supplies and Services,"2,544.05",Mar-24
Slough Borough Council,808251,Brighter Futures for Children Limited,A04A,AD People Strategy & Commissioning,Supplies and Services,"1,487.50",Mar-24
Slough Borough Council,3409,British Gas,H202,AD Housing,Supplies and Services,"1,878.03",Mar-24
Slough Borough Council,617,British Telecommunications,D122,AD Place Operations,Supplies and Services,527.84,Mar-24
Slough Borough Council,504,Britwell Baptist Pre School,F281,AD Education & Inclusion,Premises,618.15,Mar-24
Slough Borough Council,504,Britwell Baptist Pre School,F281,AD Education & Inclusion,Premises,978.00,Mar-24
Slough Borough Council,504,Britwell Baptist Pre School,F281,AD Education & Inclusion,Premises,"2,630.63",Mar-24
Slough Borough Council,504,Britwell Baptist Pre School,F281,AD Education & Inclusion,Supplies and Services,"1,743.00",Mar-24
Slough Borough Council,504,Britwell Baptist Pre School,F281,AD Education & Inclusion,Supplies and Services,"2,312.06",Mar-24
Slough Borough Council,504,Britwell Baptist Pre School,F281,AD Education & Inclusion,Supplies and Services,575.20,Mar-24
Slough Borough Council,809324,Brownstones Property Services LTD,H218,AD Housing,Supplies and Services,"15,939.20",Mar-24
Slough Borough Council,806464,"Broxap Limited,",C001,AD Place Operations,Premises,"6,575.00",Mar-24
Slough Borough Council,806852,Bt Payphones,B089,AD Property,Supplies and Services,"15,711.70",Mar-24
Slough Borough Council,803873,Buckinghamshire County Council,F552,AD Children & Families,Supplies and Services,902.50,Mar-24
Slough Borough Council,805404,Building Futures Together,F210,AD Public Protection & Communities - Children Services,TP-Other Bodies,"2,280.00",Mar-24
Slough Borough Council,741,Bunnies Pre-School,F143,AD Children & Families,Government Grants,"1,072.00",Mar-24
Slough Borough Council,741,Bunnies Pre-School,F281,AD Education & Inclusion,Supplies and Services,"4,560.68",Mar-24
Slough Borough Council,741,Bunnies Pre-School,F281,AD Education & Inclusion,Supplies and Services,"5,400.04",Mar-24
Slough Borough Council,741,Bunnies Pre-School,F281,AD Education & Inclusion,Supplies and Services,"5,490.43",Mar-24
Slough Borough Council,741,Bunnies Pre-School,F281,AD Education & Inclusion,Supplies and Services,"2,170.99",Mar-24
Slough Borough Council,741,Bunnies Pre-School,F281,AD Education & Inclusion,Supplies and Services,794.97,Mar-24
Slough Borough Council,741,Bunnies Pre-School,F281,AD Education & Inclusion,Supplies and Services,675.18,Mar-24
Slough Borough Council,803553,BUPA CARE HOME (CFH CARE),M25D,AD Adult Social Care Operations,Supplies and Services,"3,476.19",Mar-24
Slough Borough Council,2675,Burnham Lodge Ltd,A02E,AD Adult Social Care Operations,Supplies and Services,"4,971.47",Mar-24
Slough Borough Council,2675,Burnham Lodge Ltd,A02E,AD Adult Social Care Operations,Supplies and Services,"3,771.47",Mar-24
Slough Borough Council,2675,Burnham Lodge Ltd,A02E,AD Adult Social Care Operations,Supplies and Services,"1,885.76",Mar-24
Slough Borough Council,2675,Burnham Lodge Ltd,A02E,AD Adult Social Care Operations,Supplies and Services,"4,971.47",Mar-24
Slough Borough Council,2675,Burnham Lodge Ltd,M15D,AD Adult Social Care Operations,Supplies and Services,"5,314.33",Mar-24
Slough Borough Council,2675,Burnham Lodge Ltd,M15D,AD Adult Social Care Operations,Supplies and Services,"2,228.59",Mar-24
Slough Borough Council,2675,Burnham Lodge Ltd,M15D,AD Adult Social Care Operations,Supplies and Services,"4,971.47",Mar-24
Slough Borough Council,2675,Burnham Lodge Ltd,M18C,AD Adult Social Care Operations,Supplies and Services,"5,052.16",Mar-24
Slough Borough Council,2675,Burnham Lodge Ltd,M18C,AD Adult Social Care Operations,Supplies and Services,"4,726.21",Mar-24
Slough Borough Council,2675,Burnham Lodge Ltd,M25D,AD Adult Social Care Operations,Supplies and Services,"5,134.33",Mar-24
Slough Borough Council,2675,Burnham Lodge Ltd,M28C,AD Adult Social Care Operations,Supplies and Services,"1,200.00",Mar-24
Slough Borough Council,2675,Burnham Lodge Ltd,M28C,AD Adult Social Care Operations,Supplies and Services,"3,085.71",Mar-24
Slough Borough Council,629,C.H.O.I.C.E Limited,M26E,AD Adult Social Care Operations,Supplies and Services,"13,823.30",Mar-24
Slough Borough Council,629,C.H.O.I.C.E Limited,M26E,AD Adult Social Care Operations,Supplies and Services,"14,427.53",Mar-24
Slough Borough Council,629,C.H.O.I.C.E Limited,M26E,AD Adult Social Care Operations,Supplies and Services,"10,543.27",Mar-24
Slough Borough Council,629,C.H.O.I.C.E Limited,M26E,AD Adult Social Care Operations,Supplies and Services,597.83,Mar-24
Slough Borough Council,629,C.H.O.I.C.E Limited,M26E,AD Adult Social Care Operations,Supplies and Services,"11,034.42",Mar-24
Slough Borough Council,629,C.H.O.I.C.E Limited,M42E,AD People Strategy & Commissioning,Supplies and Services,"6,182.72",Mar-24
Slough Borough Council,629,C.H.O.I.C.E Limited,M42E,AD People Strategy & Commissioning,Supplies and Services,"5,629.40",Mar-24
Slough Borough Council,629,C.H.O.I.C.E Limited,M42E,AD People Strategy & Commissioning,Supplies and Services,"6,057.56",Mar-24
Slough Borough Council,629,C.H.O.I.C.E Limited,M42E,AD People Strategy & Commissioning,Supplies and Services,"6,093.81",Mar-24
Slough Borough Council,629,C.H.O.I.C.E Limited,M42E,AD People Strategy & Commissioning,Supplies and Services,"1,097.86",Mar-24
Slough Borough Council,629,C.H.O.I.C.E Limited,M44F,AD People Strategy & Commissioning,Supplies and Services,"2,586.30",Mar-24
Slough Borough Council,629,C.H.O.I.C.E Limited,M44F,AD People Strategy & Commissioning,Supplies and Services,"2,560.24",Mar-24
Slough Borough Council,629,C.H.O.I.C.E Limited,M26E,AD Adult Social Care Operations,External Receipts,-515.75,Mar-24
Slough Borough Council,629,C.H.O.I.C.E Limited,M26E,AD Adult Social Care Operations,External Receipts,-523.01,Mar-24
Slough Borough Council,807129,Calcot Services for Children Ltd (Eton Dorney Therapeutic School),F462,AD Children & Families,Supplies and Services,"17,062.50",Mar-24
Slough Borough Council,806459,Cambridgeshire County Council,F552,AD Children & Families,Supplies and Services,"6,714.00",Mar-24
Slough Borough Council,806459,Cambridgeshire County Council,F552,AD Children & Families,Supplies and Services,"2,837.62",Mar-24
Slough Borough Council,808007,Cameron & Cooper Limited (The Beech House School),F462,AD Children & Families,Supplies and Services,"1,578.90",Mar-24
Slough Borough Council,808007,Cameron & Cooper Limited (The Beech House School),F462,AD Children & Families,Supplies and Services,"2,420.98",Mar-24
Slough Borough Council,805997,Campbell Tickell Limited,H231,AD Housing,Supplies and Services,"4,100.00",Mar-24
Slough Borough Council,805997,Campbell Tickell Limited,H231,AD Housing,Supplies and Services,"6,000.00",Mar-24
Slough Borough Council,623,Canon (Uk) Ltd,K059,AD Communications,Supplies and Services,772.45,Mar-24
Slough Borough Council,623,Canon (Uk) Ltd,K059,AD Communications,Supplies and Services,"2,603.25",Mar-24
Slough Borough Council,808972,Cardea Healthcare,M44E,AD People Strategy & Commissioning,Supplies and Services,668.25,Mar-24
Slough Borough Council,808972,Cardea Healthcare,M44E,AD People Strategy & Commissioning,Supplies and Services,668.25,Mar-24
Slough Borough Council,808972,Cardea Healthcare,M44E,AD People Strategy & Commissioning,Supplies and Services,668.25,Mar-24
Slough Borough Council,805717,Care Management Group Ltd,M26E,AD Adult Social Care Operations,Supplies and Services,"12,985.21",Mar-24
Slough Borough Council,805621,Care Staff Services,M44C,AD Adult Social Care Operations,Supplies and Services,"2,450.00",Mar-24
Slough Borough Council,805621,Care Staff Services,M44C,AD Adult Social Care Operations,Supplies and Services,980.00,Mar-24
Slough Borough Council,805621,Care Staff Services,M44C,AD Adult Social Care Operations,Supplies and Services,"1,225.00",Mar-24
Slough Borough Council,805621,Care Staff Services,M44C,AD Adult Social Care Operations,Supplies and Services,"1,715.00",Mar-24
Slough Borough Council,805621,Care Staff Services,M44C,AD Adult Social Care Operations,Supplies and Services,777.00,Mar-24
Slough Borough Council,805621,Care Staff Services,M44C,AD Adult Social Care Operations,Supplies and Services,612.50,Mar-24
Slough Borough Council,805621,Care Staff Services,M44C,AD Adult Social Care Operations,Supplies and Services,"1,813.00",Mar-24
Slough Borough Council,805621,Care Staff Services,M44C,AD Adult Social Care Operations,Supplies and Services,516.25,Mar-24
Slough Borough Council,805621,Care Staff Services,M44C,AD Adult Social Care Operations,Supplies and Services,857.50,Mar-24
Slough Borough Council,805621,Care Staff Services,M44C,AD Adult Social Care Operations,Supplies and Services,875.00,Mar-24
Slough Borough Council,805621,Care Staff Services,M44C,AD Adult Social Care Operations,Supplies and Services,"1,120.00",Mar-24
Slough Borough Council,805621,Care Staff Services,M44C,AD Adult Social Care Operations,Supplies and Services,980.00,Mar-24
Slough Borough Council,805621,Care Staff Services,M44C,AD Adult Social Care Operations,Supplies and Services,"1,505.00",Mar-24
Slough Borough Council,805621,Care Staff Services,M44C,AD Adult Social Care Operations,Supplies and Services,516.26,Mar-24
Slough Borough Council,805621,Care Staff Services,M44C,AD Adult Social Care Operations,Supplies and Services,"2,590.00",Mar-24
Slough Borough Council,805621,Care Staff Services,M44C,AD Adult Social Care Operations,Supplies and Services,612.50,Mar-24
Slough Borough Council,805621,Care Staff Services,M44C,AD Adult Social Care Operations,Supplies and Services,"1,032.50",Mar-24
Slough Borough Council,805621,Care Staff Services,M44C,AD Adult Social Care Operations,Supplies and Services,525.00,Mar-24
Slough Borough Council,805621,Care Staff Services,M44C,AD Adult Social Care Operations,Supplies and Services,"1,697.85",Mar-24
Slough Borough Council,805621,Care Staff Services,M44C,AD Adult Social Care Operations,Supplies and Services,980.00,Mar-24
Slough Borough Council,805621,Care Staff Services,M44C,AD Adult Social Care Operations,Supplies and Services,975.28,Mar-24
Slough Borough Council,805621,Care Staff Services,M44C,AD Adult Social Care Operations,Supplies and Services,518.00,Mar-24
Slough Borough Council,805621,Care Staff Services,M44C,AD Adult Social Care Operations,Supplies and Services,"2,030.00",Mar-24
Slough Borough Council,805621,Care Staff Services,M44C,AD Adult Social Care Operations,Supplies and Services,"1,172.50",Mar-24
Slough Borough Council,805621,Care Staff Services,M44C,AD Adult Social Care Operations,Supplies and Services,857.50,Mar-24
Slough Borough Council,805621,Care Staff Services,M44C,AD Adult Social Care Operations,Supplies and Services,857.50,Mar-24
Slough Borough Council,805621,Care Staff Services,M44C,AD Adult Social Care Operations,Supplies and Services,910.00,Mar-24
Slough Borough Council,805621,Care Staff Services,M44C,AD Adult Social Care Operations,Supplies and Services,"1,102.50",Mar-24
Slough Borough Council,805621,Care Staff Services,M44C,AD Adult Social Care Operations,Supplies and Services,503.13,Mar-24
Slough Borough Council,805621,Care Staff Services,M44C,AD Adult Social Care Operations,Supplies and Services,560.00,Mar-24
Slough Borough Council,805621,Care Staff Services,M44C,AD Adult Social Care Operations,Supplies and Services,857.50,Mar-24
Slough Borough Council,805621,Care Staff Services,M44C,AD Adult Social Care Operations,Supplies and Services,962.50,Mar-24
Slough Borough Council,805621,Care Staff Services,M44C,AD Adult Social Care Operations,Supplies and Services,752.50,Mar-24
Slough Borough Council,805621,Care Staff Services,M44C,AD Adult Social Care Operations,Supplies and Services,857.50,Mar-24
Slough Borough Council,805621,Care Staff Services,M44C,AD Adult Social Care Operations,Supplies and Services,595.00,Mar-24
Slough Borough Council,805621,Care Staff Services,M44C,AD Adult Social Care Operations,Supplies and Services,"1,041.25",Mar-24
Slough Borough Council,805621,Care Staff Services,M44C,AD Adult Social Care Operations,Supplies and Services,906.50,Mar-24
Slough Borough Council,805621,Care Staff Services,M44C,AD Adult Social Care Operations,Supplies and Services,"2,450.00",Mar-24
Slough Borough Council,805621,Care Staff Services,M44C,AD Adult Social Care Operations,Supplies and Services,"2,205.00",Mar-24
Slough Borough Council,805621,Care Staff Services,M44C,AD Adult Social Care Operations,Supplies and Services,536.50,Mar-24
Slough Borough Council,805621,Care Staff Services,M44C,AD Adult Social Care Operations,Supplies and Services,936.25,Mar-24
Slough Borough Council,805621,Care Staff Services,M44C,AD Adult Social Care Operations,Supplies and Services,"1,054.38",Mar-24
Slough Borough Council,805621,Care Staff Services,M44C,AD Adult Social Care Operations,Supplies and Services,678.13,Mar-24
Slough Borough Council,805621,Care Staff Services,M44C,AD Adult Social Care Operations,Supplies and Services,"2,331.00",Mar-24
Slough Borough Council,805621,Care Staff Services,M44C,AD Adult Social Care Operations,Supplies and Services,"1,102.50",Mar-24
Slough Borough Council,805621,Care Staff Services,M44C,AD Adult Social Care Operations,Supplies and Services,"2,205.00",Mar-24
Slough Borough Council,805621,Care Staff Services,M44C,AD Adult Social Care Operations,Supplies and Services,518.00,Mar-24
Slough Borough Council,805621,Care Staff Services,M44C,AD Adult Social Care Operations,Supplies and Services,"1,102.50",Mar-24
Slough Borough Council,805621,Care Staff Services,M44C,AD Adult Social Care Operations,Supplies and Services,"2,196.25",Mar-24
Slough Borough Council,805621,Care Staff Services,M44C,AD Adult Social Care Operations,Supplies and Services,980.00,Mar-24
Slough Borough Council,805621,Care Staff Services,M44C,AD Adult Social Care Operations,Supplies and Services,"1,225.00",Mar-24
Slough Borough Council,805621,Care Staff Services,M44C,AD Adult Social Care Operations,Supplies and Services,612.50,Mar-24
Slough Borough Council,805621,Care Staff Services,M44C,AD Adult Social Care Operations,Supplies and Services,669.38,Mar-24
Slough Borough Council,805621,Care Staff Services,M44C,AD Adult Social Care Operations,Supplies and Services,612.50,Mar-24
Slough Borough Council,805621,Care Staff Services,M44C,AD Adult Social Care Operations,Supplies and Services,"2,205.00",Mar-24
Slough Borough Council,805621,Care Staff Services,M44C,AD Adult Social Care Operations,Supplies and Services,"1,570.17",Mar-24
Slough Borough Council,805621,Care Staff Services,M44C,AD Adult Social Care Operations,Supplies and Services,735.00,Mar-24
Slough Borough Council,805621,Care Staff Services,M44C,AD Adult Social Care Operations,Supplies and Services,"2,205.00",Mar-24
Slough Borough Council,805621,Care Staff Services,M44D,AD Adult Social Care Operations,Supplies and Services,814.00,Mar-24
Slough Borough Council,805621,Care Staff Services,M44D,AD Adult Social Care Operations,Supplies and Services,"1,137.50",Mar-24
Slough Borough Council,805621,Care Staff Services,M44D,AD Adult Social Care Operations,Supplies and Services,533.75,Mar-24
Slough Borough Council,805621,Care Staff Services,M44D,AD Adult Social Care Operations,Supplies and Services,612.50,Mar-24
Slough Borough Council,805621,Care Staff Services,M44D,AD Adult Social Care Operations,Supplies and Services,612.50,Mar-24
Slough Borough Council,805621,Care Staff Services,M44D,AD Adult Social Care Operations,Supplies and Services,980.00,Mar-24
Slough Borough Council,805621,Care Staff Services,M44D,AD Adult Social Care Operations,Supplies and Services,682.50,Mar-24
Slough Borough Council,805621,Care Staff Services,M44D,AD Adult Social Care Operations,Supplies and Services,"1,225.00",Mar-24
Slough Borough Council,805621,Care Staff Services,M44D,AD Adult Social Care Operations,Supplies and Services,"1,470.00",Mar-24
Slough Borough Council,805621,Care Staff Services,M44D,AD Adult Social Care Operations,Supplies and Services,980.00,Mar-24
Slough Borough Council,805621,Care Staff Services,M44D,AD Adult Social Care Operations,Supplies and Services,"1,610.00",Mar-24
Slough Borough Council,805621,Care Staff Services,M44D,AD Adult Social Care Operations,Supplies and Services,857.50,Mar-24
Slough Borough Council,805621,Care Staff Services,M44D,AD Adult Social Care Operations,Supplies and Services,"1,365.00",Mar-24
Slough Borough Council,805621,Care Staff Services,M44D,AD Adult Social Care Operations,Supplies and Services,504.13,Mar-24
Slough Borough Council,805621,Care Staff Services,M44D,AD Adult Social Care Operations,Supplies and Services,"2,205.00",Mar-24
Slough Borough Council,805621,Care Staff Services,M44E,AD People Strategy & Commissioning,Supplies and Services,735.00,Mar-24
Slough Borough Council,805621,Care Staff Services,M44E,AD People Strategy & Commissioning,Supplies and Services,735.00,Mar-24
Slough Borough Council,805621,Care Staff Services,M44F,AD People Strategy & Commissioning,Supplies and Services,630.00,Mar-24
Slough Borough Council,805621,Care Staff Services,M44F,AD People Strategy & Commissioning,Supplies and Services,"1,443.00",Mar-24
Slough Borough Council,805621,Care Staff Services,M44F,AD People Strategy & Commissioning,Supplies and Services,"1,382.50",Mar-24
Slough Borough Council,805621,Care Staff Services,M44F,AD People Strategy & Commissioning,Supplies and Services,985.13,Mar-24
Slough Borough Council,805621,Care Staff Services,M44F,AD People Strategy & Commissioning,Supplies and Services,"2,590.00",Mar-24
Slough Borough Council,805621,Care Staff Services,M45C,AD Adult Social Care Operations,Supplies and Services,595.00,Mar-24
Slough Borough Council,805621,Care Staff Services,M45C,AD Adult Social Care Operations,Supplies and Services,"1,093.75",Mar-24
Slough Borough Council,805621,Care Staff Services,M45C,AD Adult Social Care Operations,Supplies and Services,"2,205.00",Mar-24
Slough Borough Council,805621,Care Staff Services,M45C,AD Adult Social Care Operations,Supplies and Services,625.63,Mar-24
Slough Borough Council,805621,Care Staff Services,M45C,AD Adult Social Care Operations,Supplies and Services,787.50,Mar-24
Slough Borough Council,805621,Care Staff Services,M48C,AD Adult Social Care Operations,Supplies and Services,"2,205.00",Mar-24
Slough Borough Council,805621,Care Staff Services,M48C,AD Adult Social Care Operations,Supplies and Services,"2,205.00",Mar-24
Slough Borough Council,808149,Care Staff Services Support,M44F,AD People Strategy & Commissioning,Supplies and Services,"1,808.48",Mar-24
Slough Borough Council,808149,Care Staff Services Support,M44F,AD People Strategy & Commissioning,Supplies and Services,"4,891.12",Mar-24
Slough Borough Council,808149,Care Staff Services Support,M44F,AD People Strategy & Commissioning,Supplies and Services,524.05,Mar-24
Slough Borough Council,808149,Care Staff Services Support,M44F,AD People Strategy & Commissioning,Supplies and Services,"4,361.52",Mar-24
Slough Borough Council,1162,Care Uk Community Partnership Ltd,M15D,AD Adult Social Care Operations,Supplies and Services,"2,109.30",Mar-24
Slough Borough Council,1162,Care Uk Community Partnership Ltd,M15D,AD Adult Social Care Operations,Supplies and Services,"4,090.52",Mar-24
Slough Borough Council,1162,Care Uk Community Partnership Ltd,M15D,AD Adult Social Care Operations,Supplies and Services,"2,045.26",Mar-24
Slough Borough Council,1162,Care Uk Community Partnership Ltd,M15D,AD Adult Social Care Operations,Supplies and Services,"4,218.60",Mar-24
Slough Borough Council,1162,Care Uk Community Partnership Ltd,M15D,AD Adult Social Care Operations,Supplies and Services,"4,218.60",Mar-24
Slough Borough Council,1162,Care Uk Community Partnership Ltd,M15D,AD Adult Social Care Operations,Supplies and Services,"2,109.30",Mar-24
Slough Borough Council,1162,Care Uk Community Partnership Ltd,M15D,AD Adult Social Care Operations,Supplies and Services,"2,045.26",Mar-24
Slough Borough Council,1162,Care Uk Community Partnership Ltd,M15D,AD Adult Social Care Operations,Supplies and Services,"4,090.52",Mar-24
Slough Borough Council,1162,Care Uk Community Partnership Ltd,M15D,AD Adult Social Care Operations,Supplies and Services,"2,045.26",Mar-24
Slough Borough Council,1162,Care Uk Community Partnership Ltd,M15D,AD Adult Social Care Operations,Supplies and Services,"2,045.26",Mar-24
Slough Borough Council,1162,Care Uk Community Partnership Ltd,M15F,AD People Strategy & Commissioning,Supplies and Services,"2,045.26",Mar-24
Slough Borough Council,1162,Care Uk Community Partnership Ltd,M15F,AD People Strategy & Commissioning,Supplies and Services,"4,090.52",Mar-24
Slough Borough Council,1162,Care Uk Community Partnership Ltd,M15F,AD People Strategy & Commissioning,Supplies and Services,"2,045.26",Mar-24
Slough Borough Council,1162,Care Uk Community Partnership Ltd,M15F,AD People Strategy & Commissioning,Supplies and Services,"2,045.26",Mar-24
Slough Borough Council,1162,Care Uk Community Partnership Ltd,M17C,AD Adult Social Care Operations,Supplies and Services,"2,109.30",Mar-24
Slough Borough Council,1162,Care Uk Community Partnership Ltd,M17C,AD Adult Social Care Operations,Supplies and Services,"4,090.52",Mar-24
Slough Borough Council,1162,Care Uk Community Partnership Ltd,M17C,AD Adult Social Care Operations,Supplies and Services,"2,045.26",Mar-24
Slough Borough Council,1162,Care Uk Community Partnership Ltd,M17C,AD Adult Social Care Operations,Supplies and Services,"1,984.86",Mar-24
Slough Borough Council,1162,Care Uk Community Partnership Ltd,M17C,AD Adult Social Care Operations,Supplies and Services,"2,109.30",Mar-24
Slough Borough Council,1162,Care Uk Community Partnership Ltd,M17C,AD Adult Social Care Operations,Supplies and Services,"2,109.30",Mar-24
Slough Borough Council,1162,Care Uk Community Partnership Ltd,M17C,AD Adult Social Care Operations,Supplies and Services,"2,109.30",Mar-24
Slough Borough Council,1162,Care Uk Community Partnership Ltd,M18C,AD Adult Social Care Operations,Supplies and Services,"2,109.30",Mar-24
Slough Borough Council,1162,Care Uk Community Partnership Ltd,M18C,AD Adult Social Care Operations,Supplies and Services,"-2,775.71",Mar-24
Slough Borough Council,1162,Care Uk Community Partnership Ltd,M18C,AD Adult Social Care Operations,Supplies and Services,"2,045.26",Mar-24
Slough Borough Council,1162,Care Uk Community Partnership Ltd,M18C,AD Adult Social Care Operations,Supplies and Services,-584.36,Mar-24
Slough Borough Council,1162,Care Uk Community Partnership Ltd,M18C,AD Adult Social Care Operations,Supplies and Services,"2,109.30",Mar-24
Slough Borough Council,1162,Care Uk Community Partnership Ltd,M18C,AD Adult Social Care Operations,Supplies and Services,"2,045.26",Mar-24
Slough Borough Council,1162,Care Uk Community Partnership Ltd,M18C,AD Adult Social Care Operations,Supplies and Services,"2,045.26",Mar-24
Slough Borough Council,1162,Care Uk Community Partnership Ltd,M18C,AD Adult Social Care Operations,Supplies and Services,"4,090.52",Mar-24
Slough Borough Council,1162,Care Uk Community Partnership Ltd,M18C,AD Adult Social Care Operations,Supplies and Services,"2,045.26",Mar-24
Slough Borough Council,1162,Care Uk Community Partnership Ltd,M18C,AD Adult Social Care Operations,Supplies and Services,"2,045.26",Mar-24
Slough Borough Council,1162,Care Uk Community Partnership Ltd,M18C,AD Adult Social Care Operations,Supplies and Services,"2,045.26",Mar-24
Slough Borough Council,1162,Care Uk Community Partnership Ltd,M18C,AD Adult Social Care Operations,Supplies and Services,"2,045.26",Mar-24
Slough Borough Council,1162,Care Uk Community Partnership Ltd,M18C,AD Adult Social Care Operations,Supplies and Services,"-3,213.98",Mar-24
Slough Borough Council,1162,Care Uk Community Partnership Ltd,M18C,AD Adult Social Care Operations,Supplies and Services,"2,045.26",Mar-24
Slough Borough Council,1162,Care Uk Community Partnership Ltd,M18C,AD Adult Social Care Operations,Supplies and Services,"19,316.54",Mar-24
Slough Borough Council,1162,Care Uk Community Partnership Ltd,M18C,AD Adult Social Care Operations,Supplies and Services,"2,045.26",Mar-24
Slough Borough Council,1162,Care Uk Community Partnership Ltd,M18C,AD Adult Social Care Operations,Supplies and Services,"2,109.30",Mar-24
Slough Borough Council,1162,Care Uk Community Partnership Ltd,M18C,AD Adult Social Care Operations,Supplies and Services,"2,045.26",Mar-24
Slough Borough Council,1162,Care Uk Community Partnership Ltd,M18C,AD Adult Social Care Operations,Supplies and Services,"2,045.26",Mar-24
Slough Borough Council,1162,Care Uk Community Partnership Ltd,M18C,AD Adult Social Care Operations,Supplies and Services,"2,045.26",Mar-24
Slough Borough Council,1162,Care Uk Community Partnership Ltd,M18C,AD Adult Social Care Operations,Supplies and Services,"2,045.26",Mar-24
Slough Borough Council,1162,Care Uk Community Partnership Ltd,M18C,AD Adult Social Care Operations,Supplies and Services,"4,218.60",Mar-24
Slough Borough Council,1162,Care Uk Community Partnership Ltd,M18C,AD Adult Social Care Operations,Supplies and Services,"2,109.30",Mar-24
Slough Borough Council,1162,Care Uk Community Partnership Ltd,M18C,AD Adult Social Care Operations,Supplies and Services,"2,045.26",Mar-24
Slough Borough Council,1162,Care Uk Community Partnership Ltd,M18C,AD Adult Social Care Operations,Supplies and Services,"2,045.26",Mar-24
Slough Borough Council,1162,Care Uk Community Partnership Ltd,M18C,AD Adult Social Care Operations,Supplies and Services,"2,045.26",Mar-24
Slough Borough Council,1162,Care Uk Community Partnership Ltd,M18C,AD Adult Social Care Operations,Supplies and Services,"2,045.26",Mar-24
Slough Borough Council,1162,Care Uk Community Partnership Ltd,M18C,AD Adult Social Care Operations,Supplies and Services,"2,045.26",Mar-24
Slough Borough Council,1162,Care Uk Community Partnership Ltd,M18C,AD Adult Social Care Operations,Supplies and Services,"2,045.26",Mar-24
Slough Borough Council,1162,Care Uk Community Partnership Ltd,M18C,AD Adult Social Care Operations,Supplies and Services,"2,045.26",Mar-24
Slough Borough Council,1162,Care Uk Community Partnership Ltd,M18C,AD Adult Social Care Operations,Supplies and Services,"2,045.26",Mar-24
Slough Borough Council,1162,Care Uk Community Partnership Ltd,M18C,AD Adult Social Care Operations,Supplies and Services,"2,045.26",Mar-24
Slough Borough Council,1162,Care Uk Community Partnership Ltd,M18C,AD Adult Social Care Operations,Supplies and Services,"2,045.26",Mar-24
Slough Borough Council,1162,Care Uk Community Partnership Ltd,M18C,AD Adult Social Care Operations,Supplies and Services,"2,045.26",Mar-24
Slough Borough Council,1162,Care Uk Community Partnership Ltd,M18C,AD Adult Social Care Operations,Supplies and Services,"1,460.90",Mar-24
Slough Borough Council,1162,Care Uk Community Partnership Ltd,M18C,AD Adult Social Care Operations,Supplies and Services,"2,109.30",Mar-24
Slough Borough Council,1162,Care Uk Community Partnership Ltd,M18C,AD Adult Social Care Operations,Supplies and Services,"-4,090.52",Mar-24
Slough Borough Council,1162,Care Uk Community Partnership Ltd,M18C,AD Adult Social Care Operations,Supplies and Services,"2,045.26",Mar-24
Slough Borough Council,1162,Care Uk Community Partnership Ltd,M25C,AD Adult Social Care Operations,Supplies and Services,"-3,703.00",Mar-24
Slough Borough Council,1162,Care Uk Community Partnership Ltd,M25C,AD Adult Social Care Operations,Supplies and Services,"-3,703.00",Mar-24
Slough Borough Council,1162,Care Uk Community Partnership Ltd,M25C,AD Adult Social Care Operations,Supplies and Services,"-3,703.00",Mar-24
Slough Borough Council,1162,Care Uk Community Partnership Ltd,M25C,AD Adult Social Care Operations,Supplies and Services,"-3,703.00",Mar-24
Slough Borough Council,1162,Care Uk Community Partnership Ltd,M25C,AD Adult Social Care Operations,Supplies and Services,"-3,703.00",Mar-24
Slough Borough Council,1162,Care Uk Community Partnership Ltd,M25C,AD Adult Social Care Operations,Supplies and Services,"-3,703.00",Mar-24
Slough Borough Council,1162,Care Uk Community Partnership Ltd,M25C,AD Adult Social Care Operations,Supplies and Services,"-3,703.00",Mar-24
Slough Borough Council,1162,Care Uk Community Partnership Ltd,M25C,AD Adult Social Care Operations,Supplies and Services,"1,851.50",Mar-24
Slough Borough Council,1162,Care Uk Community Partnership Ltd,M25C,AD Adult Social Care Operations,Supplies and Services,"23,829.29",Mar-24
Slough Borough Council,1162,Care Uk Community Partnership Ltd,M25C,AD Adult Social Care Operations,Supplies and Services,"-3,703.00",Mar-24
Slough Borough Council,1162,Care Uk Community Partnership Ltd,M25C,AD Adult Social Care Operations,Supplies and Services,"-3,703.00",Mar-24
Slough Borough Council,1162,Care Uk Community Partnership Ltd,M25C,AD Adult Social Care Operations,Supplies and Services,"-3,703.00",Mar-24
Slough Borough Council,1162,Care Uk Community Partnership Ltd,M25C,AD Adult Social Care Operations,Supplies and Services,"3,703.00",Mar-24
Slough Borough Council,1162,Care Uk Community Partnership Ltd,M25C,AD Adult Social Care Operations,Supplies and Services,"23,829.29",Mar-24
Slough Borough Council,1162,Care Uk Community Partnership Ltd,M25C,AD Adult Social Care Operations,Supplies and Services,"1,851.50",Mar-24
Slough Borough Council,1162,Care Uk Community Partnership Ltd,M25C,AD Adult Social Care Operations,Supplies and Services,"20,616.11",Mar-24
Slough Borough Council,1162,Care Uk Community Partnership Ltd,M25C,AD Adult Social Care Operations,Supplies and Services,"-3,703.00",Mar-24
Slough Borough Council,1162,Care Uk Community Partnership Ltd,M25C,AD Adult Social Care Operations,Supplies and Services,"-3,703.00",Mar-24
Slough Borough Council,1162,Care Uk Community Partnership Ltd,M25C,AD Adult Social Care Operations,Supplies and Services,"-3,703.00",Mar-24
Slough Borough Council,1162,Care Uk Community Partnership Ltd,M25C,AD Adult Social Care Operations,Supplies and Services,"-3,703.00",Mar-24
Slough Borough Council,1162,Care Uk Community Partnership Ltd,M26E,AD Adult Social Care Operations,Supplies and Services,"4,090.52",Mar-24
Slough Borough Council,1162,Care Uk Community Partnership Ltd,M26E,AD Adult Social Care Operations,Supplies and Services,"2,045.26",Mar-24
Slough Borough Council,1162,Care Uk Community Partnership Ltd,M26E,AD Adult Social Care Operations,Supplies and Services,"4,090.52",Mar-24
Slough Borough Council,1162,Care Uk Community Partnership Ltd,M26E,AD Adult Social Care Operations,Supplies and Services,"2,045.26",Mar-24
Slough Borough Council,1162,Care Uk Community Partnership Ltd,M26E,AD Adult Social Care Operations,Supplies and Services,"1,263.66",Mar-24
Slough Borough Council,1162,Care Uk Community Partnership Ltd,M26E,AD Adult Social Care Operations,Supplies and Services,"4,844.11",Mar-24
Slough Borough Council,1162,Care Uk Community Partnership Ltd,M27C,AD Adult Social Care Operations,Supplies and Services,"3,703.00",Mar-24
Slough Borough Council,1162,Care Uk Community Partnership Ltd,M27C,AD Adult Social Care Operations,Supplies and Services,"-3,703.00",Mar-24
Slough Borough Council,1162,Care Uk Community Partnership Ltd,M27C,AD Adult Social Care Operations,Supplies and Services,"1,690.44",Mar-24
Slough Borough Council,1162,Care Uk Community Partnership Ltd,M27C,AD Adult Social Care Operations,Supplies and Services,"1,690.44",Mar-24
Slough Borough Council,1162,Care Uk Community Partnership Ltd,M27C,AD Adult Social Care Operations,Supplies and Services,"1,690.44",Mar-24
Slough Borough Council,1162,Care Uk Community Partnership Ltd,M27C,AD Adult Social Care Operations,Supplies and Services,"1,690.44",Mar-24
Slough Borough Council,1162,Care Uk Community Partnership Ltd,M27C,AD Adult Social Care Operations,Supplies and Services,"4,800.00",Mar-24
Slough Borough Council,1162,Care Uk Community Partnership Ltd,M27C,AD Adult Social Care Operations,Supplies and Services,"-3,703.00",Mar-24
Slough Borough Council,1162,Care Uk Community Partnership Ltd,M27C,AD Adult Social Care Operations,Supplies and Services,"1,690.44",Mar-24
Slough Borough Council,1162,Care Uk Community Partnership Ltd,M27C,AD Adult Social Care Operations,Supplies and Services,"1,851.50",Mar-24
Slough Borough Council,1162,Care Uk Community Partnership Ltd,M27C,AD Adult Social Care Operations,Supplies and Services,"1,851.50",Mar-24
Slough Borough Council,1162,Care Uk Community Partnership Ltd,M27C,AD Adult Social Care Operations,Supplies and Services,"-3,703.00",Mar-24
Slough Borough Council,1162,Care Uk Community Partnership Ltd,M27C,AD Adult Social Care Operations,Supplies and Services,"-3,174.00",Mar-24
Slough Borough Council,1162,Care Uk Community Partnership Ltd,M27C,AD Adult Social Care Operations,Supplies and Services,"-3,703.00",Mar-24
Slough Borough Council,1162,Care Uk Community Partnership Ltd,M27C,AD Adult Social Care Operations,Supplies and Services,"2,645.00",Mar-24
Slough Borough Council,1162,Care Uk Community Partnership Ltd,M27C,AD Adult Social Care Operations,Supplies and Services,"1,690.44",Mar-24
Slough Borough Council,1162,Care Uk Community Partnership Ltd,M27C,AD Adult Social Care Operations,Supplies and Services,"1,328.20",Mar-24
Slough Borough Council,1162,Care Uk Community Partnership Ltd,M27C,AD Adult Social Care Operations,Supplies and Services,"-3,703.00",Mar-24
Slough Borough Council,1162,Care Uk Community Partnership Ltd,M27C,AD Adult Social Care Operations,Supplies and Services,"-3,703.00",Mar-24
Slough Borough Council,1162,Care Uk Community Partnership Ltd,M27C,AD Adult Social Care Operations,Supplies and Services,"1,851.50",Mar-24
Slough Borough Council,1162,Care Uk Community Partnership Ltd,M27C,AD Adult Social Care Operations,Supplies and Services,"-3,703.00",Mar-24
Slough Borough Council,1162,Care Uk Community Partnership Ltd,M27C,AD Adult Social Care Operations,Supplies and Services,"-3,703.00",Mar-24
Slough Borough Council,1162,Care Uk Community Partnership Ltd,M27C,AD Adult Social Care Operations,Supplies and Services,"1,690.44",Mar-24
Slough Borough Council,1162,Care Uk Community Partnership Ltd,M27C,AD Adult Social Care Operations,Supplies and Services,"1,851.50",Mar-24
Slough Borough Council,1162,Care Uk Community Partnership Ltd,M27C,AD Adult Social Care Operations,Supplies and Services,"-3,703.00",Mar-24
Slough Borough Council,1162,Care Uk Community Partnership Ltd,M27C,AD Adult Social Care Operations,Supplies and Services,"-3,703.00",Mar-24
Slough Borough Council,1162,Care Uk Community Partnership Ltd,M27C,AD Adult Social Care Operations,Supplies and Services,"1,690.44",Mar-24
Slough Borough Council,1162,Care Uk Community Partnership Ltd,M27C,AD Adult Social Care Operations,Supplies and Services,"1,851.50",Mar-24
Slough Borough Council,1162,Care Uk Community Partnership Ltd,M27C,AD Adult Social Care Operations,Supplies and Services,"-1,328.20",Mar-24
Slough Borough Council,1162,Care Uk Community Partnership Ltd,M27C,AD Adult Social Care Operations,Supplies and Services,"10,142.64",Mar-24
Slough Borough Council,1162,Care Uk Community Partnership Ltd,M27C,AD Adult Social Care Operations,Supplies and Services,"1,690.44",Mar-24
Slough Borough Council,1162,Care Uk Community Partnership Ltd,M27C,AD Adult Social Care Operations,Supplies and Services,"-3,703.00",Mar-24
Slough Borough Council,1162,Care Uk Community Partnership Ltd,M27C,AD Adult Social Care Operations,Supplies and Services,"1,851.50",Mar-24
Slough Borough Council,1162,Care Uk Community Partnership Ltd,M27C,AD Adult Social Care Operations,Supplies and Services,"-3,703.00",Mar-24
Slough Borough Council,1162,Care Uk Community Partnership Ltd,M27C,AD Adult Social Care Operations,Supplies and Services,"-3,703.00",Mar-24
Slough Borough Council,1162,Care Uk Community Partnership Ltd,M27C,AD Adult Social Care Operations,Supplies and Services,"-3,703.00",Mar-24
Slough Borough Council,1162,Care Uk Community Partnership Ltd,M27F,AD Adult Social Care Operations,Supplies and Services,"2,777.25",Mar-24
Slough Borough Council,1162,Care Uk Community Partnership Ltd,M27F,AD Adult Social Care Operations,Supplies and Services,"1,851.50",Mar-24
Slough Borough Council,1162,Care Uk Community Partnership Ltd,M27F,AD Adult Social Care Operations,Supplies and Services,"1,690.44",Mar-24
Slough Borough Council,1162,Care Uk Community Partnership Ltd,M28C,AD Adult Social Care Operations,Supplies and Services,"3,380.88",Mar-24
Slough Borough Council,1162,Care Uk Community Partnership Ltd,M28C,AD Adult Social Care Operations,Supplies and Services,"1,690.44",Mar-24
Slough Borough Council,1162,Care Uk Community Partnership Ltd,M28C,AD Adult Social Care Operations,Supplies and Services,"3,428.57",Mar-24
Slough Borough Council,1162,Care Uk Community Partnership Ltd,M28C,AD Adult Social Care Operations,Supplies and Services,"1,690.44",Mar-24
Slough Borough Council,1162,Care Uk Community Partnership Ltd,M28C,AD Adult Social Care Operations,Supplies and Services,"4,090.52",Mar-24
Slough Borough Council,1162,Care Uk Community Partnership Ltd,M28C,AD Adult Social Care Operations,Supplies and Services,"3,506.16",Mar-24
Slough Borough Council,1162,Care Uk Community Partnership Ltd,M28C,AD Adult Social Care Operations,Supplies and Services,"2,897.90",Mar-24
Slough Borough Council,1162,Care Uk Community Partnership Ltd,M28C,AD Adult Social Care Operations,Supplies and Services,"2,173.42",Mar-24
Slough Borough Council,1162,Care Uk Community Partnership Ltd,M28C,AD Adult Social Care Operations,Supplies and Services,"2,629.62",Mar-24
Slough Borough Council,1162,Care Uk Community Partnership Ltd,M28C,AD Adult Social Care Operations,Supplies and Services,"1,000.00",Mar-24
Slough Borough Council,809100,Careful Choices,M44D,AD Adult Social Care Operations,Supplies and Services,"1,124.00",Mar-24
Slough Borough Council,809100,Careful Choices,M44D,AD Adult Social Care Operations,Supplies and Services,"1,124.00",Mar-24
Slough Borough Council,809100,Careful Choices,M44D,AD Adult Social Care Operations,Supplies and Services,"1,124.00",Mar-24
Slough Borough Council,809100,Careful Choices,M44D,AD Adult Social Care Operations,Supplies and Services,"1,124.00",Mar-24
Slough Borough Council,809100,Careful Choices,M44D,AD Adult Social Care Operations,Supplies and Services,"1,124.00",Mar-24
Slough Borough Council,809100,Careful Choices,M44D,AD Adult Social Care Operations,Supplies and Services,"1,124.00",Mar-24
Slough Borough Council,1910,Carousel Buses Ltd,D512,AD Place Operations,Supplies and Services,"5,966.26",Mar-24
Slough Borough Council,809461,Cartref Homes (uk)Ltd,M42E,AD People Strategy & Commissioning,Supplies and Services,"1,566.89",Mar-24
Slough Borough Council,809461,Cartref Homes (uk)Ltd,M42E,AD People Strategy & Commissioning,Supplies and Services,"3,307.83",Mar-24
Slough Borough Council,809461,Cartref Homes (uk)Ltd,M42E,AD People Strategy & Commissioning,Supplies and Services,"4,874.72",Mar-24
Slough Borough Council,804413,Castle Water,B060,AD Building Management,Premises,645.64,Mar-24
Slough Borough Council,804413,Castle Water,B060,AD Building Management,Premises,582.11,Mar-24
Slough Borough Council,804413,Castle Water,B060,AD Building Management,Premises,541.14,Mar-24
Slough Borough Council,804413,Castle Water,B060,AD Building Management,Premises,980.29,Mar-24
Slough Borough Council,804413,Castle Water,D900,AD Place Operations,Premises,831.69,Mar-24
Slough Borough Council,418,Castleview School,E620,AD Children & Families,Supplies and Services,"45,597.29",Mar-24
Slough Borough Council,805619,Centennial Property Limited T/A The Housing Network,H205,AD Housing,Premises,"65,110.00",Mar-24
Slough Borough Council,808282,Centre for Governance & Scrutiny,B210,Democratic Services,Indirect Employee Expenses,"5,500.00",Mar-24
Slough Borough Council,3609,Centurion Healthcare Ltd,M26E,AD Adult Social Care Operations,Supplies and Services,"6,514.38",Mar-24
Slough Borough Council,805174,Certas Energy,D900,AD Place Operations,Supplies and Services,"17,865.00",Mar-24
Slough Borough Council,805174,Certas Energy,D750,AD Place Operations,Supplies and Services,"1,171.73",Mar-24
Slough Borough Council,809124,Chalet Homes Ltd,H205,AD Housing,Supplies and Services,600.00,Mar-24
Slough Borough Council,809124,Chalet Homes Ltd,H205,AD Housing,Supplies and Services,"2,480.00",Mar-24
Slough Borough Council,809124,Chalet Homes Ltd,H205,AD Housing,Supplies and Services,"5,115.00",Mar-24
Slough Borough Council,809124,Chalet Homes Ltd,H205,AD Housing,Supplies and Services,"2,480.00",Mar-24
Slough Borough Council,809124,Chalet Homes Ltd,H205,AD Housing,Supplies and Services,"2,465.00",Mar-24
Slough Borough Council,809124,Chalet Homes Ltd,H205,AD Housing,Supplies and Services,"1,885.00",Mar-24
Slough Borough Council,809124,Chalet Homes Ltd,H205,AD Housing,Supplies and Services,"1,740.00",Mar-24
Slough Borough Council,809124,Chalet Homes Ltd,H205,AD Housing,Supplies and Services,"2,320.00",Mar-24
Slough Borough Council,809124,Chalet Homes Ltd,H205,AD Housing,Supplies and Services,"4,785.00",Mar-24
Slough Borough Council,2892,Chalfont Lodge,M15D,AD Adult Social Care Operations,Supplies and Services,"5,978.57",Mar-24
Slough Borough Council,2892,Chalfont Lodge,M15F,AD People Strategy & Commissioning,Supplies and Services,"8,857.14",Mar-24
Slough Borough Council,626,Chalvey Supermarket,C406,AD Public Protection & Communities - Children Services,Supplies and Services,550.00,Mar-24
Slough Borough Council,2608,Chandos Lodge Nursing Home,M18C,AD Adult Social Care Operations,Supplies and Services,"4,400.00",Mar-24
Slough Borough Council,1877,Chelsie Innes,C322,AD Public Protection & Communities - Children Services,Supplies and Services,"4,190.00",Mar-24
Slough Borough Council,3114,Cherry Trees Day Nursery,F281,AD Education & Inclusion,Premises,"2,319.21",Mar-24
Slough Borough Council,3114,Cherry Trees Day Nursery,F281,AD Education & Inclusion,Premises,775.24,Mar-24
Slough Borough Council,3114,Cherry Trees Day Nursery,F281,AD Education & Inclusion,Premises,"9,142.38",Mar-24
Slough Borough Council,3114,Cherry Trees Day Nursery,F143,AD Children & Families,Government Grants,"2,280.00",Mar-24
Slough Borough Council,3114,Cherry Trees Day Nursery,F281,AD Education & Inclusion,Supplies and Services,610.07,Mar-24
Slough Borough Council,3114,Cherry Trees Day Nursery,F281,AD Education & Inclusion,Supplies and Services,"14,590.81",Mar-24
Slough Borough Council,3114,Cherry Trees Day Nursery,F281,AD Education & Inclusion,Supplies and Services,"7,874.08",Mar-24
Slough Borough Council,809146,Chilmington Homes Ltd,M26E,AD Adult Social Care Operations,Supplies and Services,"8,358.00",Mar-24
Slough Borough Council,807225,Chiltern Way Academy,F551,AD Children & Families,Supplies and Services,"7,899.00",Mar-24
Slough Borough Council,803495,Christchurch Court Ltd,M15D,AD Adult Social Care Operations,Supplies and Services,"9,368.28",Mar-24
Slough Borough Council,803495,Christchurch Court Ltd,M15D,AD Adult Social Care Operations,Supplies and Services,774.22,Mar-24
Slough Borough Council,803495,Christchurch Court Ltd,M15D,AD Adult Social Care Operations,Supplies and Services,774.22,Mar-24
Slough Borough Council,803495,Christchurch Court Ltd,M15D,AD Adult Social Care Operations,Supplies and Services,774.22,Mar-24
Slough Borough Council,803495,Christchurch Court Ltd,M15D,AD Adult Social Care Operations,Supplies and Services,774.22,Mar-24
Slough Borough Council,803495,Christchurch Court Ltd,M15D,AD Adult Social Care Operations,Supplies and Services,800.02,Mar-24
Slough Borough Council,803495,Christchurch Court Ltd,M15D,AD Adult Social Care Operations,Supplies and Services,800.02,Mar-24
Slough Borough Council,803495,Christchurch Court Ltd,M15D,AD Adult Social Care Operations,Supplies and Services,800.02,Mar-24
Slough Borough Council,803495,Christchurch Court Ltd,M15D,AD Adult Social Care Operations,Supplies and Services,800.02,Mar-24
Slough Borough Council,803495,Christchurch Court Ltd,M15D,AD Adult Social Care Operations,Supplies and Services,800.02,Mar-24
Slough Borough Council,803495,Christchurch Court Ltd,M15D,AD Adult Social Care Operations,Supplies and Services,800.02,Mar-24
Slough Borough Council,803495,Christchurch Court Ltd,M15D,AD Adult Social Care Operations,Supplies and Services,"10,014.37",Mar-24
Slough Borough Council,807491,Cippenham School,E620,AD Children & Families,Supplies and Services,"16,333.33",Mar-24
Slough Borough Council,806550,City Homecare Ltd,A07R,AD Adult Social Care Operations,Supplies and Services,"1,102.50",Mar-24
Slough Borough Council,806550,City Homecare Ltd,A07R,AD Adult Social Care Operations,Supplies and Services,612.50,Mar-24
Slough Borough Council,806550,City Homecare Ltd,M44C,AD Adult Social Care Operations,Supplies and Services,"1,102.50",Mar-24
Slough Borough Council,806550,City Homecare Ltd,M44C,AD Adult Social Care Operations,Supplies and Services,686.88,Mar-24
Slough Borough Council,806550,City Homecare Ltd,M44C,AD Adult Social Care Operations,Supplies and Services,656.25,Mar-24
Slough Borough Council,806550,City Homecare Ltd,M44C,AD Adult Social Care Operations,Supplies and Services,"1,951.25",Mar-24
Slough Borough Council,806550,City Homecare Ltd,M44C,AD Adult Social Care Operations,Supplies and Services,"1,960.00",Mar-24
Slough Borough Council,806550,City Homecare Ltd,M44C,AD Adult Social Care Operations,Supplies and Services,"1,330.00",Mar-24
Slough Borough Council,806550,City Homecare Ltd,M44C,AD Adult Social Care Operations,Supplies and Services,875.00,Mar-24
Slough Borough Council,806550,City Homecare Ltd,M44C,AD Adult Social Care Operations,Supplies and Services,"1,225.00",Mar-24
Slough Borough Council,806550,City Homecare Ltd,M44C,AD Adult Social Care Operations,Supplies and Services,"2,205.00",Mar-24
Slough Borough Council,806550,City Homecare Ltd,M44C,AD Adult Social Care Operations,Supplies and Services,787.50,Mar-24
Slough Borough Council,806550,City Homecare Ltd,M44C,AD Adult Social Care Operations,Supplies and Services,770.00,Mar-24
Slough Borough Council,806550,City Homecare Ltd,M44C,AD Adult Social Care Operations,Supplies and Services,682.50,Mar-24
Slough Borough Council,806550,City Homecare Ltd,M44C,AD Adult Social Care Operations,Supplies and Services,612.50,Mar-24
Slough Borough Council,806550,City Homecare Ltd,M44C,AD Adult Social Care Operations,Supplies and Services,"1,715.00",Mar-24
Slough Borough Council,806550,City Homecare Ltd,M44C,AD Adult Social Care Operations,Supplies and Services,"2,345.00",Mar-24
Slough Borough Council,806550,City Homecare Ltd,M44C,AD Adult Social Care Operations,Supplies and Services,857.50,Mar-24
Slough Borough Council,806550,City Homecare Ltd,M44C,AD Adult Social Care Operations,Supplies and Services,"1,102.50",Mar-24
Slough Borough Council,806550,City Homecare Ltd,M44C,AD Adult Social Care Operations,Supplies and Services,"1,225.00",Mar-24
Slough Borough Council,806550,City Homecare Ltd,M44C,AD Adult Social Care Operations,Supplies and Services,"2,275.00",Mar-24
Slough Borough Council,806550,City Homecare Ltd,M44C,AD Adult Social Care Operations,Supplies and Services,"1,820.00",Mar-24
Slough Borough Council,806550,City Homecare Ltd,M44C,AD Adult Social Care Operations,Supplies and Services,"1,225.00",Mar-24
Slough Borough Council,806550,City Homecare Ltd,M44C,AD Adult Social Care Operations,Supplies and Services,"2,205.00",Mar-24
Slough Borough Council,806550,City Homecare Ltd,M44C,AD Adult Social Care Operations,Supplies and Services,612.50,Mar-24
Slough Borough Council,806550,City Homecare Ltd,M44C,AD Adult Social Care Operations,Supplies and Services,980.00,Mar-24
Slough Borough Council,806550,City Homecare Ltd,M44C,AD Adult Social Care Operations,Supplies and Services,612.50,Mar-24
Slough Borough Council,806550,City Homecare Ltd,M44C,AD Adult Social Care Operations,Supplies and Services,612.50,Mar-24
Slough Borough Council,806550,City Homecare Ltd,M44C,AD Adult Social Care Operations,Supplies and Services,735.00,Mar-24
Slough Borough Council,806550,City Homecare Ltd,M44D,AD Adult Social Care Operations,Supplies and Services,717.50,Mar-24
Slough Borough Council,806550,City Homecare Ltd,M44D,AD Adult Social Care Operations,Supplies and Services,726.25,Mar-24
Slough Borough Council,806550,City Homecare Ltd,M44D,AD Adult Social Care Operations,Supplies and Services,962.50,Mar-24
Slough Borough Council,806550,City Homecare Ltd,M44D,AD Adult Social Care Operations,Supplies and Services,682.50,Mar-24
Slough Borough Council,806550,City Homecare Ltd,M44D,AD Adult Social Care Operations,Supplies and Services,980.00,Mar-24
Slough Borough Council,806550,City Homecare Ltd,M44D,AD Adult Social Care Operations,Supplies and Services,560.00,Mar-24
Slough Borough Council,806550,City Homecare Ltd,M44D,AD Adult Social Care Operations,Supplies and Services,"2,940.00",Mar-24
Slough Borough Council,806550,City Homecare Ltd,M44D,AD Adult Social Care Operations,Supplies and Services,980.00,Mar-24
Slough Borough Council,806550,City Homecare Ltd,M44E,AD People Strategy & Commissioning,Supplies and Services,525.00,Mar-24
Slough Borough Council,806550,City Homecare Ltd,M44E,AD People Strategy & Commissioning,Supplies and Services,735.00,Mar-24
Slough Borough Council,806550,City Homecare Ltd,M44F,AD People Strategy & Commissioning,Supplies and Services,"1,610.00",Mar-24
Slough Borough Council,806550,City Homecare Ltd,M44F,AD People Strategy & Commissioning,Supplies and Services,560.00,Mar-24
Slough Borough Council,806550,City Homecare Ltd,M44F,AD People Strategy & Commissioning,Supplies and Services,840.00,Mar-24
Slough Borough Council,806550,City Homecare Ltd,M45C,AD Adult Social Care Operations,Supplies and Services,787.50,Mar-24
Slough Borough Council,806550,City Homecare Ltd,M48C,AD Adult Social Care Operations,Supplies and Services,857.50,Mar-24
Slough Borough Council,806550,City Homecare Ltd,M48C,AD Adult Social Care Operations,Supplies and Services,612.50,Mar-24
Slough Borough Council,806550,City Homecare Ltd,M48C,AD Adult Social Care Operations,Supplies and Services,682.50,Mar-24
Slough Borough Council,806550,City Homecare Ltd,M48C,AD Adult Social Care Operations,Supplies and Services,857.50,Mar-24
Slough Borough Council,1083,Civica Uk Limited,B282,AD Chief Digital & Information Officer,Supplies and Services,"6,731.47",Mar-24
Slough Borough Council,1083,Civica Uk Limited,B282,AD Chief Digital & Information Officer,Supplies and Services,"35,249.36",Mar-24
Slough Borough Council,1083,Civica Uk Limited,B282,AD Chief Digital & Information Officer,Supplies and Services,"119,144.00",Mar-24
Slough Borough Council,1083,Civica Uk Limited,J160,AD Housing,Supplies and Services,"3,143.00",Mar-24
Slough Borough Council,1151,Claycots Primary School,E200,AD Children & Families,Supplies and Services,"659,169.39",Mar-24
Slough Borough Council,3685,Coghlan Lodges Limited,M44D,AD Adult Social Care Operations,Supplies and Services,"2,116.04",Mar-24
Slough Borough Council,3685,Coghlan Lodges Limited,M44F,AD People Strategy & Commissioning,Supplies and Services,"1,870.00",Mar-24
Slough Borough Council,459,Colliers Cre,J006,AD Housing,Supplies and Services,"3,666.67",Mar-24
Slough Borough Council,286,Colnbrook C Of E Primary School,E620,AD Children & Families,Supplies and Services,"26,140.35",Mar-24
Slough Borough Council,2535,Comfort Care Services,M42E,AD People Strategy & Commissioning,Supplies and Services,932.66,Mar-24
Slough Borough Council,2535,Comfort Care Services,M42E,AD People Strategy & Commissioning,Supplies and Services,"1,165.82",Mar-24
Slough Borough Council,2535,Comfort Care Services,M42E,AD People Strategy & Commissioning,Supplies and Services,932.66,Mar-24
Slough Borough Council,2535,Comfort Care Services,M42E,AD People Strategy & Commissioning,Supplies and Services,"2,814.18",Mar-24
Slough Borough Council,2535,Comfort Care Services,M42E,AD People Strategy & Commissioning,Supplies and Services,"2,814.14",Mar-24
Slough Borough Council,2535,Comfort Care Services,M42E,AD People Strategy & Commissioning,Supplies and Services,"2,564.81",Mar-24
Slough Borough Council,2535,Comfort Care Services,M42E,AD People Strategy & Commissioning,Supplies and Services,"1,165.82",Mar-24
Slough Borough Council,2535,Comfort Care Services,M42E,AD People Strategy & Commissioning,Supplies and Services,"1,538.88",Mar-24
Slough Borough Council,2535,Comfort Care Services,M42E,AD People Strategy & Commissioning,Supplies and Services,"5,114.92",Mar-24
Slough Borough Council,2535,Comfort Care Services,M42F,AD People Strategy & Commissioning,Supplies and Services,"2,937.78",Mar-24
Slough Borough Council,2535,Comfort Care Services,M42F,AD People Strategy & Commissioning,Supplies and Services,932.66,Mar-24
Slough Borough Council,2535,Comfort Care Services,M42F,AD People Strategy & Commissioning,Supplies and Services,"1,632.15",Mar-24
Slough Borough Council,2535,Comfort Care Services,M42F,AD People Strategy & Commissioning,Supplies and Services,"1,632.15",Mar-24
Slough Borough Council,2535,Comfort Care Services,M42F,AD People Strategy & Commissioning,Supplies and Services,"1,632.11",Mar-24
Slough Borough Council,2535,Comfort Care Services,M42F,AD People Strategy & Commissioning,Supplies and Services,932.66,Mar-24
Slough Borough Council,2535,Comfort Care Services,M42F,AD People Strategy & Commissioning,Supplies and Services,997.93,Mar-24
Slough Borough Council,2535,Comfort Care Services,M42F,AD People Strategy & Commissioning,Supplies and Services,"2,937.78",Mar-24
Slough Borough Council,2535,Comfort Care Services,M42F,AD People Strategy & Commissioning,Supplies and Services,932.66,Mar-24
Slough Borough Council,2535,Comfort Care Services,M42F,AD People Strategy & Commissioning,Supplies and Services,932.66,Mar-24
Slough Borough Council,2535,Comfort Care Services,M42F,AD People Strategy & Commissioning,Supplies and Services,"2,937.78",Mar-24
Slough Borough Council,2535,Comfort Care Services,M42F,AD People Strategy & Commissioning,Supplies and Services,"4,336.95",Mar-24
Slough Borough Council,2535,Comfort Care Services,M42F,AD People Strategy & Commissioning,Supplies and Services,"2,077.27",Mar-24
Slough Borough Council,2535,Comfort Care Services,M44C,AD Adult Social Care Operations,Supplies and Services,"3,357.48",Mar-24
Slough Borough Council,2535,Comfort Care Services,M44E,AD People Strategy & Commissioning,Supplies and Services,"5,176.29",Mar-24
Slough Borough Council,2535,Comfort Care Services,M44E,AD People Strategy & Commissioning,Supplies and Services,"2,080.59",Mar-24
Slough Borough Council,2535,Comfort Care Services,M44F,AD People Strategy & Commissioning,Supplies and Services,"1,165.82",Mar-24
Slough Borough Council,2535,Comfort Care Services,M44F,AD People Strategy & Commissioning,Supplies and Services,"3,105.71",Mar-24
Slough Borough Council,2535,Comfort Care Services,M44F,AD People Strategy & Commissioning,Supplies and Services,"3,310.93",Mar-24
Slough Borough Council,2535,Comfort Care Services,M44F,AD People Strategy & Commissioning,Supplies and Services,"2,937.87",Mar-24
Slough Borough Council,2535,Comfort Care Services,M44F,AD People Strategy & Commissioning,Supplies and Services,"1,468.87",Mar-24
Slough Borough Council,2535,Comfort Care Services,M44F,AD People Strategy & Commissioning,Supplies and Services,"3,870.62",Mar-24
Slough Borough Council,2535,Comfort Care Services,M44F,AD People Strategy & Commissioning,Supplies and Services,"2,937.78",Mar-24
Slough Borough Council,2535,Comfort Care Services,M44F,AD People Strategy & Commissioning,Supplies and Services,"1,468.87",Mar-24
Slough Borough Council,2535,Comfort Care Services,M44F,AD People Strategy & Commissioning,Supplies and Services,"2,937.87",Mar-24
Slough Borough Council,2535,Comfort Care Services,M44F,AD People Strategy & Commissioning,Supplies and Services,"2,191.64",Mar-24
Slough Borough Council,2535,Comfort Care Services,M44F,AD People Strategy & Commissioning,Supplies and Services,"1,421.55",Mar-24
Slough Borough Council,2535,Comfort Care Services,M44F,AD People Strategy & Commissioning,Supplies and Services,"1,468.94",Mar-24
Slough Borough Council,2535,Comfort Care Services,M81D,AD Adult Social Care Operations,Supplies and Services,"2,937.78",Mar-24
Slough Borough Council,804912,CommuniKate Ltd,M22D,AD Adult Social Care Operations,Supplies and Services,761.75,Mar-24
Slough Borough Council,3840,Community Housing And Therapy,M80F,AD People Strategy & Commissioning,Supplies and Services,"2,025.02",Mar-24
Slough Borough Council,809195,Compass Radio Cars Ltd,F123,AD Education & Inclusion,External Receipts,800.00,Mar-24
Slough Borough Council,806314,CONNECT SOFTWARE SOLUTIONS LIMITED,F150,AD Children & Families,Supplies and Services,"7,137.65",Mar-24
Slough Borough Council,809051,Contract Options (West) Ltd,P243,Capital,Supplies and Services,"1,312.82",Mar-24
Slough Borough Council,809051,Contract Options (West) Ltd,P243,Capital,Supplies and Services,"1,806.12",Mar-24
Slough Borough Council,809051,Contract Options (West) Ltd,P243,Capital,Capital Charges,753.86,Mar-24
Slough Borough Council,808742,Copthorne Hotel Slough Windsor,C412,AD Public Protection & Communities - Children Services,Supplies and Services,"7,763.48",Mar-24
Slough Borough Council,1480,Corona Energy Limited,B668,AD Building Management,Premises,"1,008.04",Mar-24
Slough Borough Council,1480,Corona Energy Limited,B668,AD Building Management,Premises,"4,000.00",Mar-24
Slough Borough Council,1480,Corona Energy Limited,B668,AD Building Management,Premises,"30,744.49",Mar-24
Slough Borough Council,1480,Corona Energy Limited,B668,AD Building Management,Premises,"1,459.14",Mar-24
Slough Borough Council,1480,Corona Energy Limited,B668,AD Building Management,Premises,"42,677.23",Mar-24
Slough Borough Council,1480,Corona Energy Limited,B668,AD Building Management,Premises,"2,449.60",Mar-24
Slough Borough Council,1480,Corona Energy Limited,J015,AD Housing,Premises,961.31,Mar-24
Slough Borough Council,1480,Corona Energy Limited,J015,AD Housing,Premises,"22,769.40",Mar-24
Slough Borough Council,1480,Corona Energy Limited,J015,AD Housing,Premises,"1,149.69",Mar-24
Slough Borough Council,1480,Corona Energy Limited,J015,AD Housing,Premises,"26,276.54",Mar-24
Slough Borough Council,805278,Countrystyle Recycling Ltd,D342,AD Place Operations,Supplies and Services,"4,834.00",Mar-24
Slough Borough Council,805278,Countrystyle Recycling Ltd,D342,AD Place Operations,Supplies and Services,"2,770.00",Mar-24
Slough Borough Council,808737,COUNTY PRIVATE CLIENT LIMITED,H205,AD Housing,Supplies and Services,"34,549.00",Mar-24
Slough Borough Council,808737,COUNTY PRIVATE CLIENT LIMITED,H205,AD Housing,Supplies and Services,"37,696.00",Mar-24
Slough Borough Council,808737,COUNTY PRIVATE CLIENT LIMITED,H205,AD Housing,Supplies and Services,"36,631.00",Mar-24
Slough Borough Council,2282,Court Catering Equipment Limited,F186,AD Children & Families,Supplies and Services,"2,377.00",Mar-24
Slough Borough Council,251,Cox Green School,F552,AD Children & Families,Supplies and Services,"18,581.00",Mar-24
Slough Borough Council,1638,Creative Support Ltd,B324,AD Deputy Director Financial Management,Premises,"1,567.07",Mar-24
Slough Borough Council,1638,Creative Support Ltd,A02F,AD Adult Social Care Operations,Supplies and Services,"2,430.33",Mar-24
Slough Borough Council,1638,Creative Support Ltd,A02F,AD Adult Social Care Operations,Supplies and Services,"30,326.28",Mar-24
Slough Borough Council,1638,Creative Support Ltd,A02F,AD Adult Social Care Operations,Supplies and Services,"1,178.13",Mar-24
Slough Borough Council,1638,Creative Support Ltd,A02L,AD Adult Social Care Operations,Supplies and Services,"1,544.88",Mar-24
Slough Borough Council,1638,Creative Support Ltd,A02L,AD Adult Social Care Operations,Supplies and Services,"1,620.24",Mar-24
Slough Borough Council,1638,Creative Support Ltd,A02L,AD Adult Social Care Operations,Supplies and Services,"1,770.96",Mar-24
Slough Borough Council,1638,Creative Support Ltd,A02L,AD Adult Social Care Operations,Supplies and Services,"1,563.72",Mar-24
Slough Borough Council,1638,Creative Support Ltd,A02L,AD Adult Social Care Operations,Supplies and Services,"1,770.96",Mar-24
Slough Borough Council,1638,Creative Support Ltd,A02L,AD Adult Social Care Operations,Supplies and Services,"1,281.12",Mar-24
Slough Borough Council,1638,Creative Support Ltd,A02L,AD Adult Social Care Operations,Supplies and Services,"1,205.76",Mar-24
Slough Borough Council,1638,Creative Support Ltd,A02L,AD Adult Social Care Operations,Supplies and Services,"1,205.76",Mar-24
Slough Borough Council,1638,Creative Support Ltd,A02L,AD Adult Social Care Operations,Supplies and Services,"1,544.88",Mar-24
Slough Borough Council,1638,Creative Support Ltd,M42E,AD People Strategy & Commissioning,Supplies and Services,"1,318.80",Mar-24
Slough Borough Council,1638,Creative Support Ltd,M44E,AD People Strategy & Commissioning,Supplies and Services,753.60,Mar-24
Slough Borough Council,806983,Critiqom,H020,AD Deputy Director Corporate & Strategic Finance,Supplies and Services,"1,800.00",Mar-24
Slough Borough Council,806983,Critiqom,H020,AD Deputy Director Corporate & Strategic Finance,Supplies and Services,744.17,Mar-24
Slough Borough Council,806983,Critiqom,H020,AD Deputy Director Corporate & Strategic Finance,Supplies and Services,"1,267.12",Mar-24
Slough Borough Council,806983,Critiqom,H020,AD Deputy Director Corporate & Strategic Finance,Supplies and Services,542.36,Mar-24
Slough Borough Council,806983,Critiqom,H020,AD Deputy Director Corporate & Strategic Finance,Supplies and Services,"3,555.92",Mar-24
Slough Borough Council,806983,Critiqom,H020,AD Deputy Director Corporate & Strategic Finance,Supplies and Services,"2,169.87",Mar-24
Slough Borough Council,808853,Crown Hosting Data Centres Limited,B282,AD Chief Digital & Information Officer,Supplies and Services,"4,093.50",Mar-24
Slough Borough Council,808853,Crown Hosting Data Centres Limited,B282,AD Chief Digital & Information Officer,Supplies and Services,"6,763.85",Mar-24
Slough Borough Council,806900,CYXTERA TECHNOLOGY UK LIMITED,B282,AD Chief Digital & Information Officer,Supplies and Services,"15,577.27",Mar-24
Slough Borough Council,808775,Danescroft Consultants Ltd,A01D,AD People Strategy & Commissioning,Agency Staff,"8,100.00",Mar-24
Slough Borough Council,806541,Darul Madinah Slough,F281,AD Education & Inclusion,Premises,"2,421.90",Mar-24
Slough Borough Council,806541,Darul Madinah Slough,F281,AD Education & Inclusion,Premises,"1,911.00",Mar-24
Slough Borough Council,806541,Darul Madinah Slough,F281,AD Education & Inclusion,Premises,"3,911.94",Mar-24
Slough Borough Council,806541,Darul Madinah Slough,F281,AD Education & Inclusion,Premises,"5,965.80",Mar-24
Slough Borough Council,806541,Darul Madinah Slough,F281,AD Education & Inclusion,Premises,"2,813.63",Mar-24
Slough Borough Council,806541,Darul Madinah Slough,F281,AD Education & Inclusion,Premises,"2,607.75",Mar-24
Slough Borough Council,806541,Darul Madinah Slough,F281,AD Education & Inclusion,Premises,"6,405.00",Mar-24
Slough Borough Council,806541,Darul Madinah Slough,F409,AD Education & Inclusion,Supplies and Services,"1,000.00",Mar-24
Slough Borough Council,806541,Darul Madinah Slough,F409,AD Education & Inclusion,Supplies and Services,"1,000.00",Mar-24
Slough Borough Council,806541,Darul Madinah Slough,F409,AD Education & Inclusion,Supplies and Services,"1,000.00",Mar-24
Slough Borough Council,806541,Darul Madinah Slough,F281,AD Education & Inclusion,Supplies and Services,"2,928.23",Mar-24
Slough Borough Council,806541,Darul Madinah Slough,F281,AD Education & Inclusion,Supplies and Services,570.97,Mar-24
Slough Borough Council,806541,Darul Madinah Slough,F281,AD Education & Inclusion,Supplies and Services,"6,268.99",Mar-24
Slough Borough Council,806541,Darul Madinah Slough,F281,AD Education & Inclusion,Supplies and Services,"10,792.24",Mar-24
Slough Borough Council,806541,Darul Madinah Slough,F281,AD Education & Inclusion,Supplies and Services,"13,504.01",Mar-24
Slough Borough Council,806541,Darul Madinah Slough,F281,AD Education & Inclusion,Supplies and Services,923.79,Mar-24
Slough Borough Council,806541,Darul Madinah Slough,F281,AD Education & Inclusion,Supplies and Services,"9,237.93",Mar-24
Slough Borough Council,806541,Darul Madinah Slough,F281,AD Education & Inclusion,Supplies and Services,"2,696.10",Mar-24
Slough Borough Council,806541,Darul Madinah Slough,F281,AD Education & Inclusion,Supplies and Services,"2,735.29",Mar-24
Slough Borough Council,806541,Darul Madinah Slough,F281,AD Education & Inclusion,Supplies and Services,597.87,Mar-24
Slough Borough Council,806541,Darul Madinah Slough,F281,AD Education & Inclusion,Supplies and Services,"1,204.50",Mar-24
Slough Borough Council,806541,Darul Madinah Slough,F281,AD Education & Inclusion,Supplies and Services,507.78,Mar-24
Slough Borough Council,806541,Darul Madinah Slough,F281,AD Education & Inclusion,Supplies and Services,"1,023.00",Mar-24
Slough Borough Council,1897,Datchet St.Marys C Of E Academy,F552,AD Children & Families,Supplies and Services,"1,784.00",Mar-24
Slough Borough Council,809460,David Tugwell,H218,AD Housing,Supplies and Services,"12,232.76",Mar-24
Slough Borough Council,808657,Davinder Selby,H205,AD Housing,Supplies and Services,"1,740.00",Mar-24
Slough Borough Council,809213,DAWSONGROUP ENVIRONMENTAL MUNICIPAL CIVIL LIMITED,D620,AD Place Operations,Transport,677.14,Mar-24
Slough Borough Council,809213,DAWSONGROUP ENVIRONMENTAL MUNICIPAL CIVIL LIMITED,D620,AD Place Operations,Transport,538.57,Mar-24
Slough Borough Council,809213,DAWSONGROUP ENVIRONMENTAL MUNICIPAL CIVIL LIMITED,D620,AD Place Operations,Transport,538.57,Mar-24
Slough Borough Council,809213,DAWSONGROUP ENVIRONMENTAL MUNICIPAL CIVIL LIMITED,D620,AD Place Operations,Transport,"2,107.45",Mar-24
Slough Borough Council,809213,DAWSONGROUP ENVIRONMENTAL MUNICIPAL CIVIL LIMITED,D620,AD Place Operations,Transport,"2,107.45",Mar-24
Slough Borough Council,809213,DAWSONGROUP ENVIRONMENTAL MUNICIPAL CIVIL LIMITED,D620,AD Place Operations,Transport,"2,107.45",Mar-24
Slough Borough Council,809213,DAWSONGROUP ENVIRONMENTAL MUNICIPAL CIVIL LIMITED,D620,AD Place Operations,Transport,"2,107.45",Mar-24
Slough Borough Council,809213,DAWSONGROUP ENVIRONMENTAL MUNICIPAL CIVIL LIMITED,D620,AD Place Operations,Transport,"2,107.45",Mar-24
Slough Borough Council,809213,DAWSONGROUP ENVIRONMENTAL MUNICIPAL CIVIL LIMITED,D620,AD Place Operations,Transport,"2,107.45",Mar-24
Slough Borough Council,809118,DAWSONGROUP VANS LIMITED,D610,AD Place Operations,Transport,519.36,Mar-24
Slough Borough Council,809118,DAWSONGROUP VANS LIMITED,D620,AD Place Operations,Transport,"5,066.92",Mar-24
Slough Borough Council,809118,DAWSONGROUP VANS LIMITED,D750,AD Place Operations,Transport,"16,063.07",Mar-24
Slough Borough Council,809118,DAWSONGROUP VANS LIMITED,D880,AD Place Operations,Transport,"2,351.28",Mar-24
Slough Borough Council,808612,Delta 4 Services Ltd,B377,AD Deputy Director Corporate & Strategic Finance,Supplies and Services,"8,333.33",Mar-24
Slough Borough Council,808612,Delta 4 Services Ltd,B377,AD Deputy Director Corporate & Strategic Finance,Supplies and Services,"8,333.33",Mar-24
Slough Borough Council,804903,Dennis Eagle Limited,D610,AD Place Operations,Supplies and Services,"3,847.36",Mar-24
Slough Borough Council,804903,Dennis Eagle Limited,D610,AD Place Operations,Supplies and Services,813.05,Mar-24
Slough Borough Council,809455,Devika Shangari,H205,AD Housing,Supplies and Services,"5,526.28",Mar-24
Slough Borough Council,794,Devon County Council,F551,AD Children & Families,Supplies and Services,"10,045.00",Mar-24
Slough Borough Council,794,Devon County Council,F551,AD Children & Families,Supplies and Services,"7,315.00",Mar-24
Slough Borough Council,806159,Devon Piatt-Panton,C322,AD Public Protection & Communities - Children Services,Supplies and Services,"2,616.50",Mar-24
Slough Borough Council,3554,Dimensions (Uk) Ltd,M42E,AD People Strategy & Commissioning,Supplies and Services,"8,408.31",Mar-24
Slough Borough Council,3554,Dimensions (Uk) Ltd,M42E,AD People Strategy & Commissioning,Supplies and Services,"8,086.48",Mar-24
Slough Borough Council,3554,Dimensions (Uk) Ltd,M42E,AD People Strategy & Commissioning,Supplies and Services,"8,462.33",Mar-24
Slough Borough Council,3554,Dimensions (Uk) Ltd,M42E,AD People Strategy & Commissioning,Supplies and Services,"8,086.25",Mar-24
Slough Borough Council,3554,Dimensions (Uk) Ltd,M42E,AD People Strategy & Commissioning,Supplies and Services,"7,011.05",Mar-24
Slough Borough Council,3554,Dimensions (Uk) Ltd,M42E,AD People Strategy & Commissioning,Supplies and Services,"7,874.26",Mar-24
Slough Borough Council,3554,Dimensions (Uk) Ltd,M42E,AD People Strategy & Commissioning,Supplies and Services,"6,314.77",Mar-24
Slough Borough Council,3554,Dimensions (Uk) Ltd,M42E,AD People Strategy & Commissioning,Supplies and Services,"6,616.26",Mar-24
Slough Borough Council,3554,Dimensions (Uk) Ltd,M42E,AD People Strategy & Commissioning,Supplies and Services,"6,641.21",Mar-24
Slough Borough Council,3554,Dimensions (Uk) Ltd,M42E,AD People Strategy & Commissioning,Supplies and Services,"6,765.82",Mar-24
Slough Borough Council,803306,Ditton Park Academy,E620,AD Children & Families,Supplies and Services,"36,304.79",Mar-24
Slough Borough Council,1457,Dr Norman Gordon,D320,Governance & Scruitiny / Law and Governance,Premises,"2,428.20",Mar-24
Slough Borough Council,808794,DREAMS HOTEL LTD,H205,AD Housing,Supplies and Services,"181,802.00",Mar-24
Slough Borough Council,808794,DREAMS HOTEL LTD,H205,AD Housing,Supplies and Services,"172,144.00",Mar-24
Slough Borough Council,808723,E.ON Control Solutions,B064,AD Building Management,Premises,500.00,Mar-24
Slough Borough Council,808723,E.ON Control Solutions,B064,AD Building Management,Premises,500.00,Mar-24
Slough Borough Council,803177,Early Steps Preschool,F281,AD Education & Inclusion,Premises,601.61,Mar-24
Slough Borough Council,803177,Early Steps Preschool,F409,AD Education & Inclusion,Supplies and Services,"1,000.00",Mar-24
Slough Borough Council,803177,Early Steps Preschool,F549,AD Children & Families,Supplies and Services,600.00,Mar-24
Slough Borough Council,803177,Early Steps Preschool,F143,AD Children & Families,Government Grants,536.00,Mar-24
Slough Borough Council,803177,Early Steps Preschool,F281,AD Education & Inclusion,Supplies and Services,"4,075.50",Mar-24
Slough Borough Council,803177,Early Steps Preschool,F281,AD Education & Inclusion,Supplies and Services,"2,681.99",Mar-24
Slough Borough Council,803301,Eden Girls School,E610,AD Children & Families,Supplies and Services,"6,875.00",Mar-24
Slough Borough Council,1299,Edf Energy,B668,AD Building Management,Premises,"120,651.24",Mar-24
Slough Borough Council,1299,Edf Energy,B668,AD Building Management,Premises,-760.58,Mar-24
Slough Borough Council,1299,Edf Energy,B668,AD Building Management,Premises,"104,348.25",Mar-24
Slough Borough Council,809067,Educate 2Gether Training Ltd,F210,AD Public Protection & Communities - Children Services,TP-Other Bodies,"14,700.00",Mar-24
Slough Borough Council,808885,Ekom Solutions,H205,AD Housing,Supplies and Services,"7,316.00",Mar-24
Slough Borough Council,808885,Ekom Solutions,H205,AD Housing,Supplies and Services,"6,820.00",Mar-24
Slough Borough Council,808885,Ekom Solutions,H205,AD Housing,Supplies and Services,"6,975.00",Mar-24
Slough Borough Council,808885,Ekom Solutions,H205,AD Housing,Supplies and Services,"7,006.00",Mar-24
Slough Borough Council,808885,Ekom Solutions,H205,AD Housing,Supplies and Services,"6,554.00",Mar-24
Slough Borough Council,808885,Ekom Solutions,H205,AD Housing,Supplies and Services,"4,620.00",Mar-24
Slough Borough Council,808885,Ekom Solutions,H205,AD Housing,Supplies and Services,"6,525.00",Mar-24
Slough Borough Council,807001,Elegant Care Services Ltd,M42E,AD People Strategy & Commissioning,Supplies and Services,"5,987.42",Mar-24
Slough Borough Council,807001,Elegant Care Services Ltd,M42E,AD People Strategy & Commissioning,Supplies and Services,"10,185.71",Mar-24
Slough Borough Council,807001,Elegant Care Services Ltd,M42E,AD People Strategy & Commissioning,Supplies and Services,"6,217.71",Mar-24
Slough Borough Council,807001,Elegant Care Services Ltd,M44C,AD Adult Social Care Operations,Supplies and Services,"7,023.71",Mar-24
Slough Borough Council,806355,Elysium Healthcare,M26E,AD Adult Social Care Operations,Supplies and Services,"10,640.97",Mar-24
Slough Borough Council,806355,Elysium Healthcare,M26E,AD Adult Social Care Operations,Supplies and Services,"9,585.66",Mar-24
Slough Borough Council,3752,Endurance Health,A07R,AD Adult Social Care Operations,Supplies and Services,684.15,Mar-24
Slough Borough Council,3752,Endurance Health,A07R,AD Adult Social Care Operations,Supplies and Services,"1,477.69",Mar-24
Slough Borough Council,3752,Endurance Health,M44C,AD Adult Social Care Operations,Supplies and Services,"1,946.68",Mar-24
Slough Borough Council,3752,Endurance Health,M44C,AD Adult Social Care Operations,Supplies and Services,"1,358.28",Mar-24
Slough Borough Council,3752,Endurance Health,M44C,AD Adult Social Care Operations,Supplies and Services,"1,210.30",Mar-24
Slough Borough Council,3752,Endurance Health,M44C,AD Adult Social Care Operations,Supplies and Services,"1,326.62",Mar-24
Slough Borough Council,3752,Endurance Health,M44C,AD Adult Social Care Operations,Supplies and Services,"2,512.79",Mar-24
Slough Borough Council,3752,Endurance Health,M44C,AD Adult Social Care Operations,Supplies and Services,639.68,Mar-24
Slough Borough Council,3752,Endurance Health,M44C,AD Adult Social Care Operations,Supplies and Services,"1,259.37",Mar-24
Slough Borough Council,3752,Endurance Health,M44C,AD Adult Social Care Operations,Supplies and Services,662.49,Mar-24
Slough Borough Council,3752,Endurance Health,M44C,AD Adult Social Care Operations,Supplies and Services,"1,941.35",Mar-24
Slough Borough Council,3752,Endurance Health,M44C,AD Adult Social Care Operations,Supplies and Services,"1,210.32",Mar-24
Slough Borough Council,3752,Endurance Health,M44C,AD Adult Social Care Operations,Supplies and Services,"1,119.44",Mar-24
Slough Borough Council,3752,Endurance Health,M44C,AD Adult Social Care Operations,Supplies and Services,"1,552.02",Mar-24
Slough Borough Council,3752,Endurance Health,M44C,AD Adult Social Care Operations,Supplies and Services,659.83,Mar-24
Slough Borough Council,3752,Endurance Health,M44C,AD Adult Social Care Operations,Supplies and Services,"2,307.03",Mar-24
Slough Borough Council,3752,Endurance Health,M44C,AD Adult Social Care Operations,Supplies and Services,"1,258.22",Mar-24
Slough Borough Council,3752,Endurance Health,M44C,AD Adult Social Care Operations,Supplies and Services,979.51,Mar-24
Slough Borough Council,3752,Endurance Health,M44C,AD Adult Social Care Operations,Supplies and Services,"1,381.92",Mar-24
Slough Borough Council,3752,Endurance Health,M44C,AD Adult Social Care Operations,Supplies and Services,999.50,Mar-24
Slough Borough Council,3752,Endurance Health,M44C,AD Adult Social Care Operations,Supplies and Services,"1,322.81",Mar-24
Slough Borough Council,3752,Endurance Health,M44C,AD Adult Social Care Operations,Supplies and Services,"1,235.26",Mar-24
Slough Borough Council,3752,Endurance Health,M44C,AD Adult Social Care Operations,Supplies and Services,919.54,Mar-24
Slough Borough Council,3752,Endurance Health,M44C,AD Adult Social Care Operations,Supplies and Services,799.60,Mar-24
Slough Borough Council,3752,Endurance Health,M44C,AD Adult Social Care Operations,Supplies and Services,"3,264.54",Mar-24
Slough Borough Council,3752,Endurance Health,M44C,AD Adult Social Care Operations,Supplies and Services,"1,382.86",Mar-24
Slough Borough Council,3752,Endurance Health,M44C,AD Adult Social Care Operations,Supplies and Services,"3,358.32",Mar-24
Slough Borough Council,3752,Endurance Health,M44C,AD Adult Social Care Operations,Supplies and Services,"1,419.29",Mar-24
Slough Borough Council,3752,Endurance Health,M44C,AD Adult Social Care Operations,Supplies and Services,"1,959.02",Mar-24
Slough Borough Council,3752,Endurance Health,M44C,AD Adult Social Care Operations,Supplies and Services,923.27,Mar-24
Slough Borough Council,3752,Endurance Health,M44C,AD Adult Social Care Operations,Supplies and Services,"1,433.14",Mar-24
Slough Borough Council,3752,Endurance Health,M44C,AD Adult Social Care Operations,Supplies and Services,"1,259.37",Mar-24
Slough Borough Council,3752,Endurance Health,M44C,AD Adult Social Care Operations,Supplies and Services,"1,419.29",Mar-24
Slough Borough Council,3752,Endurance Health,M44C,AD Adult Social Care Operations,Supplies and Services,828.18,Mar-24
Slough Borough Council,3752,Endurance Health,M44C,AD Adult Social Care Operations,Supplies and Services,786.97,Mar-24
Slough Borough Council,3752,Endurance Health,M44C,AD Adult Social Care Operations,Supplies and Services,"2,651.88",Mar-24
Slough Borough Council,3752,Endurance Health,M44C,AD Adult Social Care Operations,Supplies and Services,699.65,Mar-24
Slough Borough Council,3752,Endurance Health,M44C,AD Adult Social Care Operations,Supplies and Services,"1,926.02",Mar-24
Slough Borough Council,3752,Endurance Health,M44C,AD Adult Social Care Operations,Supplies and Services,"1,259.37",Mar-24
Slough Borough Council,3752,Endurance Health,M44C,AD Adult Social Care Operations,Supplies and Services,"1,022.28",Mar-24
Slough Borough Council,3752,Endurance Health,M44C,AD Adult Social Care Operations,Supplies and Services,"2,798.60",Mar-24
Slough Borough Council,3752,Endurance Health,M44C,AD Adult Social Care Operations,Supplies and Services,"2,518.74",Mar-24
Slough Borough Council,3752,Endurance Health,M44C,AD Adult Social Care Operations,Supplies and Services,747.16,Mar-24
Slough Borough Council,3752,Endurance Health,M44C,AD Adult Social Care Operations,Supplies and Services,897.19,Mar-24
Slough Borough Council,3752,Endurance Health,M44C,AD Adult Social Care Operations,Supplies and Services,"1,119.44",Mar-24
Slough Borough Council,3752,Endurance Health,M44C,AD Adult Social Care Operations,Supplies and Services,"1,259.37",Mar-24
Slough Borough Council,3752,Endurance Health,M44C,AD Adult Social Care Operations,Supplies and Services,"1,399.30",Mar-24
Slough Borough Council,3752,Endurance Health,M44C,AD Adult Social Care Operations,Supplies and Services,"1,259.37",Mar-24
Slough Borough Council,3752,Endurance Health,M44C,AD Adult Social Care Operations,Supplies and Services,639.68,Mar-24
Slough Borough Council,3752,Endurance Health,M44C,AD Adult Social Care Operations,Supplies and Services,"1,259.37",Mar-24
Slough Borough Council,3752,Endurance Health,M44C,AD Adult Social Care Operations,Supplies and Services,"3,340.15",Mar-24
Slough Borough Council,3752,Endurance Health,M44C,AD Adult Social Care Operations,Supplies and Services,"1,358.28",Mar-24
Slough Borough Council,3752,Endurance Health,M44D,AD Adult Social Care Operations,Supplies and Services,"1,919.11",Mar-24
Slough Borough Council,3752,Endurance Health,M44D,AD Adult Social Care Operations,Supplies and Services,819.59,Mar-24
Slough Borough Council,3752,Endurance Health,M44D,AD Adult Social Care Operations,Supplies and Services,"1,214.32",Mar-24
Slough Borough Council,3752,Endurance Health,M44D,AD Adult Social Care Operations,Supplies and Services,"2,772.47",Mar-24
Slough Borough Council,3752,Endurance Health,M44D,AD Adult Social Care Operations,Supplies and Services,634.86,Mar-24
Slough Borough Council,3752,Endurance Health,M44D,AD Adult Social Care Operations,Supplies and Services,"1,038.16",Mar-24
Slough Borough Council,3752,Endurance Health,M44D,AD Adult Social Care Operations,Supplies and Services,"1,259.37",Mar-24
Slough Borough Council,3752,Endurance Health,M44D,AD Adult Social Care Operations,Supplies and Services,"1,959.02",Mar-24
Slough Borough Council,3752,Endurance Health,M44D,AD Adult Social Care Operations,Supplies and Services,"1,259.37",Mar-24
Slough Borough Council,3752,Endurance Health,M44D,AD Adult Social Care Operations,Supplies and Services,"2,778.13",Mar-24
Slough Borough Council,3752,Endurance Health,M44D,AD Adult Social Care Operations,Supplies and Services,779.61,Mar-24
Slough Borough Council,3752,Endurance Health,M44D,AD Adult Social Care Operations,Supplies and Services,819.59,Mar-24
Slough Borough Council,3752,Endurance Health,M44F,AD People Strategy & Commissioning,Supplies and Services,929.04,Mar-24
Slough Borough Council,3752,Endurance Health,M44F,AD People Strategy & Commissioning,Supplies and Services,679.66,Mar-24
Slough Borough Council,3752,Endurance Health,M44F,AD People Strategy & Commissioning,Supplies and Services,929.04,Mar-24
Slough Borough Council,3752,Endurance Health,M44F,AD People Strategy & Commissioning,Supplies and Services,679.66,Mar-24
Slough Borough Council,3752,Endurance Health,M45C,AD Adult Social Care Operations,Supplies and Services,809.60,Mar-24
Slough Borough Council,805423,Enriched Care,M44D,AD Adult Social Care Operations,Supplies and Services,"3,741.70",Mar-24
Slough Borough Council,805423,Enriched Care,M44D,AD Adult Social Care Operations,Supplies and Services,"3,500.30",Mar-24
Slough Borough Council,805423,Enriched Care,M44F,AD People Strategy & Commissioning,Supplies and Services,"2,613.30",Mar-24
Slough Borough Council,805423,Enriched Care,M80F,AD People Strategy & Commissioning,Supplies and Services,"1,758.01",Mar-24
Slough Borough Council,807310,Enterprise Rent-A-Car UK Limited trading as Enterprise Flex-E-Rent,B060,AD Building Management,Premises,"2,360.80",Mar-24
Slough Borough Council,807310,Enterprise Rent-A-Car UK Limited trading as Enterprise Flex-E-Rent,B060,AD Building Management,Premises,"2,208.48",Mar-24
Slough Borough Council,807310,Enterprise Rent-A-Car UK Limited trading as Enterprise Flex-E-Rent,D620,AD Place Operations,Transport,"4,201.12",Mar-24
Slough Borough Council,807310,Enterprise Rent-A-Car UK Limited trading as Enterprise Flex-E-Rent,D750,AD Place Operations,Transport,862.21,Mar-24
Slough Borough Council,807310,Enterprise Rent-A-Car UK Limited trading as Enterprise Flex-E-Rent,D880,AD Place Operations,Transport,"3,261.65",Mar-24
Slough Borough Council,808235,Eon Next,P242,Capital,Premises,"1,686.98",Mar-24
Slough Borough Council,803645,Esotec,P243,Capital,Capital Charges,"7,454.78",Mar-24
Slough Borough Council,640,Essex County Council,F462,AD Children & Families,Supplies and Services,"64,973.02",Mar-24
Slough Borough Council,640,Essex County Council,F462,AD Children & Families,Supplies and Services,"50,400.14",Mar-24
Slough Borough Council,2677,Eton House Residential Home,M25C,AD Adult Social Care Operations,Supplies and Services,"4,928.57",Mar-24
Slough Borough Council,2677,Eton House Residential Home,M25D,AD Adult Social Care Operations,Supplies and Services,"3,096.43",Mar-24
Slough Borough Council,2677,Eton House Residential Home,M27C,AD Adult Social Care Operations,Supplies and Services,"6,428.57",Mar-24
Slough Borough Council,2677,Eton House Residential Home,M27C,AD Adult Social Care Operations,Supplies and Services,"5,357.14",Mar-24
Slough Borough Council,2677,Eton House Residential Home,M27C,AD Adult Social Care Operations,Supplies and Services,"5,357.14",Mar-24
Slough Borough Council,2677,Eton House Residential Home,M27C,AD Adult Social Care Operations,Supplies and Services,"3,407.14",Mar-24
Slough Borough Council,2677,Eton House Residential Home,M27C,AD Adult Social Care Operations,Supplies and Services,"4,928.57",Mar-24
Slough Borough Council,2677,Eton House Residential Home,M27C,AD Adult Social Care Operations,Supplies and Services,"2,571.43",Mar-24
Slough Borough Council,2677,Eton House Residential Home,M28C,AD Adult Social Care Operations,Supplies and Services,"4,122.14",Mar-24
Slough Borough Council,2677,Eton House Residential Home,M28C,AD Adult Social Care Operations,Supplies and Services,"4,122.14",Mar-24
Slough Borough Council,2677,Eton House Residential Home,M28C,AD Adult Social Care Operations,Supplies and Services,"1,847.86",Mar-24
Slough Borough Council,2677,Eton House Residential Home,M29C,AD Adult Social Care Operations,Supplies and Services,-995.00,Mar-24
Slough Borough Council,2677,Eton House Residential Home,M29C,AD Adult Social Care Operations,Supplies and Services,"13,219.29",Mar-24
Slough Borough Council,2677,Eton House Residential Home,M29C,AD Adult Social Care Operations,Supplies and Services,"-4,122.14",Mar-24
Slough Borough Council,808745,Eton Lettings Limited,H205,AD Housing,Supplies and Services,"1,860.00",Mar-24
Slough Borough Council,808745,Eton Lettings Limited,H205,AD Housing,Supplies and Services,"1,740.00",Mar-24
Slough Borough Council,808745,Eton Lettings Limited,H218,AD Housing,Supplies and Services,"10,622.24",Mar-24
Slough Borough Council,808344,Euro Housing UK LTD,H205,AD Housing,Supplies and Services,"57,505.00",Mar-24
Slough Borough Council,808344,Euro Housing UK LTD,H205,AD Housing,Supplies and Services,"25,881.00",Mar-24
Slough Borough Council,808344,Euro Housing UK LTD,H205,AD Housing,Supplies and Services,"53,795.00",Mar-24
Slough Borough Council,808344,Euro Housing UK LTD,H205,AD Housing,Supplies and Services,"20,699.00",Mar-24
Slough Borough Council,806501,Excellent Healthcare Services Ltd,M44C,AD Adult Social Care Operations,Supplies and Services,"2,144.52",Mar-24
Slough Borough Council,806501,Excellent Healthcare Services Ltd,M44C,AD Adult Social Care Operations,Supplies and Services,"1,072.26",Mar-24
Slough Borough Council,806501,Excellent Healthcare Services Ltd,M44C,AD Adult Social Care Operations,Supplies and Services,833.98,Mar-24
Slough Borough Council,806501,Excellent Healthcare Services Ltd,M44C,AD Adult Social Care Operations,Supplies and Services,"1,072.26",Mar-24
Slough Borough Council,806501,Excellent Healthcare Services Ltd,M44C,AD Adult Social Care Operations,Supplies and Services,812.70,Mar-24
Slough Borough Council,806501,Excellent Healthcare Services Ltd,M44C,AD Adult Social Care Operations,Supplies and Services,"1,429.68",Mar-24
Slough Borough Council,806501,Excellent Healthcare Services Ltd,M44C,AD Adult Social Care Operations,Supplies and Services,"2,280.68",Mar-24
Slough Borough Council,806501,Excellent Healthcare Services Ltd,M44C,AD Adult Social Care Operations,Supplies and Services,"1,667.96",Mar-24
Slough Borough Council,806501,Excellent Healthcare Services Ltd,M44C,AD Adult Social Care Operations,Supplies and Services,833.98,Mar-24
Slough Borough Council,806501,Excellent Healthcare Services Ltd,M44C,AD Adult Social Care Operations,Supplies and Services,"1,706.26",Mar-24
Slough Borough Council,806501,Excellent Healthcare Services Ltd,M44C,AD Adult Social Care Operations,Supplies and Services,"2,144.52",Mar-24
Slough Borough Council,806501,Excellent Healthcare Services Ltd,M44C,AD Adult Social Care Operations,Supplies and Services,"2,416.84",Mar-24
Slough Borough Council,806501,Excellent Healthcare Services Ltd,M44D,AD Adult Social Care Operations,Supplies and Services,"2,153.03",Mar-24
Slough Borough Council,806501,Excellent Healthcare Services Ltd,M44F,AD People Strategy & Commissioning,Supplies and Services,"2,382.80",Mar-24
Slough Borough Council,806501,Excellent Healthcare Services Ltd,M44F,AD People Strategy & Commissioning,Supplies and Services,953.12,Mar-24
Slough Borough Council,806501,Excellent Healthcare Services Ltd,M44F,AD People Strategy & Commissioning,Supplies and Services,-761.94,Mar-24
Slough Borough Council,806501,Excellent Healthcare Services Ltd,M44F,AD People Strategy & Commissioning,Supplies and Services,-640.50,Mar-24
Slough Borough Council,806501,Excellent Healthcare Services Ltd,M45C,AD Adult Social Care Operations,Supplies and Services,536.13,Mar-24
Slough Borough Council,808736,EXCLUSIVE HOUSING SOLUTION LIMITED,H205,AD Housing,Supplies and Services,"41,235.00",Mar-24
Slough Borough Council,808736,EXCLUSIVE HOUSING SOLUTION LIMITED,H205,AD Housing,Supplies and Services,"37,625.00",Mar-24
Slough Borough Council,808736,EXCLUSIVE HOUSING SOLUTION LIMITED,H205,AD Housing,Supplies and Services,"40,145.00",Mar-24
Slough Borough Council,808981,Faithorn Farrell Timms LLP,J606,AD Housing,Premises,"6,550.00",Mar-24
Slough Borough Council,808981,Faithorn Farrell Timms LLP,P407,Capital,Capital Charges,"3,800.00",Mar-24
Slough Borough Council,805225,Falcon Surfacing Ltd,P243,Capital,Supplies and Services,"12,440.11",Mar-24
Slough Borough Council,805225,Falcon Surfacing Ltd,P243,Capital,Supplies and Services,"1,278.45",Mar-24
Slough Borough Council,805225,Falcon Surfacing Ltd,P243,Capital,Supplies and Services,"60,175.15",Mar-24
Slough Borough Council,805225,Falcon Surfacing Ltd,P243,Capital,Supplies and Services,"1,103.00",Mar-24
Slough Borough Council,805225,Falcon Surfacing Ltd,P243,Capital,Supplies and Services,"1,042.80",Mar-24
Slough Borough Council,805225,Falcon Surfacing Ltd,P235,Capital,Capital Charges,"28,410.50",Mar-24
Slough Borough Council,805225,Falcon Surfacing Ltd,P579,Capital,Capital Charges,"1,560.00",Mar-24
Slough Borough Council,805225,Falcon Surfacing Ltd,P579,Capital,Capital Charges,"52,944.50",Mar-24
Slough Borough Council,805225,Falcon Surfacing Ltd,P579,Capital,Capital Charges,"2,236.61",Mar-24
Slough Borough Council,805225,Falcon Surfacing Ltd,P579,Capital,Capital Charges,"1,100.00",Mar-24
Slough Borough Council,805225,Falcon Surfacing Ltd,P579,Capital,Capital Charges,"6,300.00",Mar-24
Slough Borough Council,805225,Falcon Surfacing Ltd,P209,Capital,Capital Charges,"84,593.35",Mar-24
Slough Borough Council,805225,Falcon Surfacing Ltd,P209,Capital,Capital Charges,"4,200.00",Mar-24
Slough Borough Council,805225,Falcon Surfacing Ltd,P209,Capital,Capital Charges,540.00,Mar-24
Slough Borough Council,805225,Falcon Surfacing Ltd,P209,Capital,Capital Charges,951.00,Mar-24
Slough Borough Council,805225,Falcon Surfacing Ltd,P209,Capital,Capital Charges,"1,308.08",Mar-24
Slough Borough Council,805225,Falcon Surfacing Ltd,P212,Capital,Capital Charges,718.00,Mar-24
Slough Borough Council,955,First Beeline Buses Ltd,D512,AD Place Operations,Supplies and Services,"58,654.83",Mar-24
Slough Borough Council,754,First Steps Day Nursery,F281,AD Education & Inclusion,Premises,860.63,Mar-24
Slough Borough Council,754,First Steps Day Nursery,F281,AD Education & Inclusion,Supplies and Services,"2,103.23",Mar-24
Slough Borough Council,754,First Steps Day Nursery,F281,AD Education & Inclusion,Supplies and Services,"6,747.57",Mar-24
Slough Borough Council,754,First Steps Day Nursery,F281,AD Education & Inclusion,Supplies and Services,906.38,Mar-24
Slough Borough Council,754,First Steps Day Nursery,F281,AD Education & Inclusion,Supplies and Services,"5,723.99",Mar-24
Slough Borough Council,1626,Five Star Radio Cars Limited,F123,AD Education & Inclusion,External Receipts,"1,040.00",Mar-24
Slough Borough Council,1626,Five Star Radio Cars Limited,F123,AD Education & Inclusion,External Receipts,"1,425.00",Mar-24
Slough Borough Council,2460,Forest Bridge School Ltd,F417,AD Education & Inclusion,Supplies and Services,566.67,Mar-24
Slough Borough Council,2460,Forest Bridge School Ltd,F417,AD Education & Inclusion,Supplies and Services,793.33,Mar-24
Slough Borough Council,2460,Forest Bridge School Ltd,F417,AD Education & Inclusion,Supplies and Services,833.33,Mar-24
Slough Borough Council,2460,Forest Bridge School Ltd,F417,AD Education & Inclusion,Supplies and Services,566.67,Mar-24
Slough Borough Council,2460,Forest Bridge School Ltd,F551,AD Children & Families,Supplies and Services,"10,504.06",Mar-24
Slough Borough Council,2460,Forest Bridge School Ltd,F551,AD Children & Families,Supplies and Services,"9,150.21",Mar-24
Slough Borough Council,2460,Forest Bridge School Ltd,F551,AD Children & Families,Supplies and Services,"13,204.87",Mar-24
Slough Borough Council,2460,Forest Bridge School Ltd,F551,AD Children & Families,Supplies and Services,"13,204.87",Mar-24
Slough Borough Council,2460,Forest Bridge School Ltd,F551,AD Children & Families,Supplies and Services,"15,135.96",Mar-24
Slough Borough Council,2460,Forest Bridge School Ltd,F551,AD Children & Families,Supplies and Services,"15,135.96",Mar-24
Slough Borough Council,2460,Forest Bridge School Ltd,F551,AD Children & Families,Supplies and Services,"10,504.06",Mar-24
Slough Borough Council,2460,Forest Bridge School Ltd,F551,AD Children & Families,Supplies and Services,"15,135.69",Mar-24
Slough Borough Council,2460,Forest Bridge School Ltd,F551,AD Children & Families,Supplies and Services,"9,150.21",Mar-24
Slough Borough Council,2460,Forest Bridge School Ltd,F551,AD Children & Families,Supplies and Services,"9,150.21",Mar-24
Slough Borough Council,2460,Forest Bridge School Ltd,F551,AD Children & Families,Supplies and Services,"13,204.87",Mar-24
Slough Borough Council,2460,Forest Bridge School Ltd,F551,AD Children & Families,Supplies and Services,"15,135.69",Mar-24
Slough Borough Council,2460,Forest Bridge School Ltd,F551,AD Children & Families,Supplies and Services,"15,135.69",Mar-24
Slough Borough Council,2460,Forest Bridge School Ltd,F551,AD Children & Families,Supplies and Services,"2,966.67",Mar-24
Slough Borough Council,2460,Forest Bridge School Ltd,F551,AD Children & Families,Supplies and Services,"8,102.43",Mar-24
Slough Borough Council,2460,Forest Bridge School Ltd,F551,AD Children & Families,Supplies and Services,"8,102.43",Mar-24
Slough Borough Council,1204,Forget Me Not,M25C,AD Adult Social Care Operations,Supplies and Services,"4,800.00",Mar-24
Slough Borough Council,1204,Forget Me Not,M25C,AD Adult Social Care Operations,Supplies and Services,"3,400.00",Mar-24
Slough Borough Council,1204,Forget Me Not,M25C,AD Adult Social Care Operations,Supplies and Services,"3,800.00",Mar-24
Slough Borough Council,1204,Forget Me Not,M25D,AD Adult Social Care Operations,Supplies and Services,"3,600.00",Mar-24
Slough Borough Council,1204,Forget Me Not,M27C,AD Adult Social Care Operations,Supplies and Services,"3,199.76",Mar-24
Slough Borough Council,1204,Forget Me Not,M27C,AD Adult Social Care Operations,Supplies and Services,"3,800.00",Mar-24
Slough Borough Council,1204,Forget Me Not,M27C,AD Adult Social Care Operations,Supplies and Services,"4,000.00",Mar-24
Slough Borough Council,647,Foxborough Primary School,F200,AD Education & Inclusion,Salaries and Wages-Employees Expenses,880.00,Mar-24
Slough Borough Council,647,Foxborough Primary School,E620,AD Children & Families,Supplies and Services,"13,883.15",Mar-24
Slough Borough Council,809411,Frimley Health NHS Foundation Trust,F210,AD Public Protection & Communities - Children Services,Supplies and Services,"6,000.00",Mar-24
Slough Borough Council,808182,Full Court Connections,F382,AD Children & Families,Government Grants,"1,152.00",Mar-24
Slough Borough Council,803540,Furze Platt Senior School,F553,AD Children & Families,Supplies and Services,"9,972.98",Mar-24
Slough Borough Council,803540,Furze Platt Senior School,F553,AD Children & Families,Supplies and Services,811.00,Mar-24
Slough Borough Council,807125,Futures For Shared Lives,M36E,AD People Strategy & Commissioning,Supplies and Services,"3,436.35",Mar-24
Slough Borough Council,1758,Gas Advisory Services Limited,J606,AD Housing,Supplies and Services,"5,236.00",Mar-24
Slough Borough Council,1758,Gas Advisory Services Limited,J606,AD Housing,Supplies and Services,"3,271.00",Mar-24
Slough Borough Council,1758,Gas Advisory Services Limited,J606,AD Housing,Supplies and Services,720.00,Mar-24
Slough Borough Council,1758,Gas Advisory Services Limited,J606,AD Housing,Supplies and Services,720.00,Mar-24
Slough Borough Council,809062,GCH (St Katharine�s) Limited,M25C,AD Adult Social Care Operations,Supplies and Services,"4,871.43",Mar-24
Slough Borough Council,808711,George Browns LTD,P178,Capital,Capital Charges,"38,880.00",Mar-24
Slough Borough Council,808013,Get Active Sports,F382,AD Children & Families,Supplies and Services,"9,841.20",Mar-24
Slough Borough Council,808013,Get Active Sports,F382,AD Children & Families,Government Grants,"2,011.20",Mar-24
Slough Borough Council,803189,Getty Images International,K059,AD Communications,Supplies and Services,"1,428.00",Mar-24
Slough Borough Council,2830,GR Response Healthcare Ltd,M44C,AD Adult Social Care Operations,Supplies and Services,"2,128.00",Mar-24
Slough Borough Council,2830,GR Response Healthcare Ltd,M44C,AD Adult Social Care Operations,Supplies and Services,"1,881.00",Mar-24
Slough Borough Council,2830,GR Response Healthcare Ltd,M44C,AD Adult Social Care Operations,Supplies and Services,"2,327.50",Mar-24
Slough Borough Council,2830,GR Response Healthcare Ltd,M44C,AD Adult Social Care Operations,Supplies and Services,"2,926.00",Mar-24
Slough Borough Council,2830,GR Response Healthcare Ltd,M44C,AD Adult Social Care Operations,Supplies and Services,"1,681.50",Mar-24
Slough Borough Council,2830,GR Response Healthcare Ltd,M44C,AD Adult Social Care Operations,Supplies and Services,"2,270.50",Mar-24
Slough Borough Council,2830,GR Response Healthcare Ltd,M44C,AD Adult Social Care Operations,Supplies and Services,"2,394.00",Mar-24
Slough Borough Council,2830,GR Response Healthcare Ltd,M44C,AD Adult Social Care Operations,Supplies and Services,"2,000.32",Mar-24
Slough Borough Council,2830,GR Response Healthcare Ltd,M44C,AD Adult Social Care Operations,Supplies and Services,"1,500.24",Mar-24
Slough Borough Council,2830,GR Response Healthcare Ltd,M44C,AD Adult Social Care Operations,Supplies and Services,"2,250.08",Mar-24
Slough Borough Council,2830,GR Response Healthcare Ltd,M44D,AD Adult Social Care Operations,Supplies and Services,"2,204.00",Mar-24
Slough Borough Council,2830,GR Response Healthcare Ltd,M44D,AD Adult Social Care Operations,Supplies and Services,"2,736.00",Mar-24
Slough Borough Council,2830,GR Response Healthcare Ltd,M44D,AD Adult Social Care Operations,Supplies and Services,"2,128.00",Mar-24
Slough Borough Council,2830,GR Response Healthcare Ltd,M44D,AD Adult Social Care Operations,Supplies and Services,931.00,Mar-24
Slough Borough Council,2830,GR Response Healthcare Ltd,M44D,AD Adult Social Care Operations,Supplies and Services,"2,432.00",Mar-24
Slough Borough Council,2830,GR Response Healthcare Ltd,M44D,AD Adult Social Care Operations,Supplies and Services,"1,446.10",Mar-24
Slough Borough Council,2830,GR Response Healthcare Ltd,M44D,AD Adult Social Care Operations,Supplies and Services,750.12,Mar-24
Slough Borough Council,2830,GR Response Healthcare Ltd,M44D,AD Adult Social Care Operations,Supplies and Services,"1,862.00",Mar-24
Slough Borough Council,2830,GR Response Healthcare Ltd,M44D,AD Adult Social Care Operations,Supplies and Services,"2,394.00",Mar-24
Slough Borough Council,2830,GR Response Healthcare Ltd,M44E,AD People Strategy & Commissioning,Supplies and Services,532.00,Mar-24
Slough Borough Council,2830,GR Response Healthcare Ltd,M45C,AD Adult Social Care Operations,Supplies and Services,"-2,394.00",Mar-24
Slough Borough Council,2830,GR Response Healthcare Ltd,M45C,AD Adult Social Care Operations,Supplies and Services,"-2,394.00",Mar-24
Slough Borough Council,2830,GR Response Healthcare Ltd,M45C,AD Adult Social Care Operations,Supplies and Services,"-2,394.00",Mar-24
Slough Borough Council,2830,GR Response Healthcare Ltd,M45C,AD Adult Social Care Operations,Supplies and Services,"-2,394.00",Mar-24
Slough Borough Council,2830,GR Response Healthcare Ltd,M45C,AD Adult Social Care Operations,Supplies and Services,"-2,394.00",Mar-24
Slough Borough Council,2830,GR Response Healthcare Ltd,A06C,AD People Strategy & Commissioning,Supplies and Services,"14,850.00",Mar-24
Slough Borough Council,2830,GR Response Healthcare Ltd,A06C,AD People Strategy & Commissioning,Supplies and Services,"15,000.00",Mar-24
Slough Borough Council,2830,GR Response Healthcare Ltd,A06C,AD People Strategy & Commissioning,Supplies and Services,"7,950.00",Mar-24
Slough Borough Council,809197,Grays Essex Limited,F123,AD Education & Inclusion,External Receipts,"3,135.00",Mar-24
Slough Borough Council,809197,Grays Essex Limited,F123,AD Education & Inclusion,External Receipts,"10,375.00",Mar-24
Slough Borough Council,1571,Grc Bailiffs,B149,AD Building Management,Premises,"3,350.00",Mar-24
Slough Borough Council,807255,Green Corridor,F558,AD Children & Families,Supplies and Services,"10,137.08",Mar-24
Slough Borough Council,808464,Greenstone Care,M44F,AD People Strategy & Commissioning,Supplies and Services,805.00,Mar-24
Slough Borough Council,808464,Greenstone Care,M44F,AD People Strategy & Commissioning,Supplies and Services,"2,697.00",Mar-24
Slough Borough Council,808464,Greenstone Care,M51C,AD Adult Social Care Operations,Supplies and Services,"2,657.14",Mar-24
Slough Borough Council,808464,Greenstone Care,M51C,AD Adult Social Care Operations,Supplies and Services,757.86,Mar-24
Slough Borough Council,805069,Grove Academy,E610,AD Children & Families,Supplies and Services,"17,703.98",Mar-24
Slough Borough Council,804447,Grundon Waste Management Limited,D342,AD Place Operations,Supplies and Services,863.09,Mar-24
Slough Borough Council,804447,Grundon Waste Management Limited,D342,AD Place Operations,Supplies and Services,"465,639.48",Mar-24
Slough Borough Council,807858,H J Newman,H253,AD Public Protection & Communities - Public Health,Supplies and Services,"1,975.00",Mar-24
Slough Borough Council,807858,H J Newman,H253,AD Public Protection & Communities - Public Health,Supplies and Services,"1,570.00",Mar-24
Slough Borough Council,3228,H Plus Care Ltd,M25C,AD Adult Social Care Operations,Supplies and Services,"6,625.14",Mar-24
Slough Borough Council,3228,H Plus Care Ltd,M26E,AD Adult Social Care Operations,Supplies and Services,"5,314.29",Mar-24
Slough Borough Council,806681,Hako Machines Ltd,D900,AD Place Operations,Indirect Employee Expenses,"2,086.00",Mar-24
Slough Borough Council,806681,Hako Machines Ltd,D620,AD Place Operations,Supplies and Services,597.42,Mar-24
Slough Borough Council,1610,Handicare Uk,P006,Capital,Capital Charges,"6,605.00",Mar-24
Slough Borough Council,1610,Handicare Uk,P006,Capital,Capital Charges,"3,920.00",Mar-24
Slough Borough Council,1610,Handicare Uk,P006,Capital,Capital Charges,"6,573.00",Mar-24
Slough Borough Council,1610,Handicare Uk,P006,Capital,Capital Charges,"3,380.00",Mar-24
Slough Borough Council,1610,Handicare Uk,P006,Capital,Capital Charges,"3,602.00",Mar-24
Slough Borough Council,1610,Handicare Uk,P006,Capital,Capital Charges,"3,597.40",Mar-24
Slough Borough Council,1610,Handicare Uk,P006,Capital,Capital Charges,"6,605.00",Mar-24
Slough Borough Council,1610,Handicare Uk,P006,Capital,Capital Charges,"6,585.00",Mar-24
Slough Borough Council,1610,Handicare Uk,P006,Capital,Capital Charges,"5,840.00",Mar-24
Slough Borough Council,1610,Handicare Uk,P006,Capital,Capital Charges,"3,640.00",Mar-24
Slough Borough Council,804986,Havencare Ltd,M26E,AD Adult Social Care Operations,Supplies and Services,"1,356.27",Mar-24
Slough Borough Council,804986,Havencare Ltd,M26E,AD Adult Social Care Operations,Supplies and Services,"1,356.27",Mar-24
Slough Borough Council,804986,Havencare Ltd,M26E,AD Adult Social Care Operations,Supplies and Services,"1,356.27",Mar-24
Slough Borough Council,804986,Havencare Ltd,M26E,AD Adult Social Care Operations,Supplies and Services,"1,356.27",Mar-24
Slough Borough Council,804986,Havencare Ltd,M26E,AD Adult Social Care Operations,Supplies and Services,"1,356.27",Mar-24
Slough Borough Council,804986,Havencare Ltd,M26E,AD Adult Social Care Operations,Supplies and Services,"1,356.27",Mar-24
Slough Borough Council,804986,Havencare Ltd,M26E,AD Adult Social Care Operations,Supplies and Services,"1,356.27",Mar-24
Slough Borough Council,804986,Havencare Ltd,M26E,AD Adult Social Care Operations,Supplies and Services,"1,356.27",Mar-24
Slough Borough Council,809014,Havendale Ltd,H205,AD Housing,Supplies and Services,"10,324.00",Mar-24
Slough Borough Council,1381,Haybrook College,E610,AD Children & Families,Supplies and Services,"117,368.45",Mar-24
Slough Borough Council,1381,Haybrook College,E610,AD Children & Families,Supplies and Services,"128,795.10",Mar-24
Slough Borough Council,1381,Haybrook College,E610,AD Children & Families,Supplies and Services,"66,666.60",Mar-24
Slough Borough Council,3784,Haybrook College Pru,E610,AD Children & Families,Supplies and Services,"135,279.24",Mar-24
Slough Borough Council,808639,Hazel Care Services Ltd,M42E,AD People Strategy & Commissioning,Supplies and Services,"4,271.12",Mar-24
Slough Borough Council,808639,Hazel Care Services Ltd,M42E,AD People Strategy & Commissioning,Supplies and Services,"2,236.19",Mar-24
Slough Borough Council,808639,Hazel Care Services Ltd,M42E,AD People Strategy & Commissioning,Supplies and Services,"6,542.40",Mar-24
Slough Borough Council,808639,Hazel Care Services Ltd,M44F,AD People Strategy & Commissioning,Supplies and Services,"3,272.94",Mar-24
Slough Borough Council,803753,Healthcare Homes,M15D,AD Adult Social Care Operations,Supplies and Services,"5,314.29",Mar-24
Slough Borough Council,803753,Healthcare Homes,M15D,AD Adult Social Care Operations,Supplies and Services,"2,104.28",Mar-24
Slough Borough Council,803753,Healthcare Homes,M15D,AD Adult Social Care Operations,Supplies and Services,"2,174.42",Mar-24
Slough Borough Council,803753,Healthcare Homes,M15D,AD Adult Social Care Operations,Supplies and Services,"2,174.42",Mar-24
Slough Borough Council,803753,Healthcare Homes,M15D,AD Adult Social Care Operations,Supplies and Services,"2,174.42",Mar-24
Slough Borough Council,803753,Healthcare Homes,M15D,AD Adult Social Care Operations,Supplies and Services,"2,104.28",Mar-24
Slough Borough Council,803753,Healthcare Homes,M15D,AD Adult Social Care Operations,Supplies and Services,"2,174.42",Mar-24
Slough Borough Council,803753,Healthcare Homes,M15D,AD Adult Social Care Operations,Supplies and Services,"2,104.28",Mar-24
Slough Borough Council,803753,Healthcare Homes,M15D,AD Adult Social Care Operations,Supplies and Services,"2,174.42",Mar-24
Slough Borough Council,803753,Healthcare Homes,M15D,AD Adult Social Care Operations,Supplies and Services,"2,034.14",Mar-24
Slough Borough Council,803753,Healthcare Homes,M15D,AD Adult Social Care Operations,Supplies and Services,"2,104.28",Mar-24
Slough Borough Council,803753,Healthcare Homes,M15D,AD Adult Social Care Operations,Supplies and Services,"2,174.42",Mar-24
Slough Borough Council,803753,Healthcare Homes,M17C,AD Adult Social Care Operations,Supplies and Services,"2,813.78",Mar-24
Slough Borough Council,803753,Healthcare Homes,M17C,AD Adult Social Care Operations,Supplies and Services,"5,212.43",Mar-24
Slough Borough Council,803753,Healthcare Homes,M17C,AD Adult Social Care Operations,Supplies and Services,"5,314.29",Mar-24
Slough Borough Council,803753,Healthcare Homes,M17C,AD Adult Social Care Operations,Supplies and Services,"5,212.43",Mar-24
Slough Borough Council,803753,Healthcare Homes,M17C,AD Adult Social Care Operations,Supplies and Services,"5,314.29",Mar-24
Slough Borough Council,803753,Healthcare Homes,M17C,AD Adult Social Care Operations,Supplies and Services,"8,210.57",Mar-24
Slough Borough Council,803753,Healthcare Homes,M17C,AD Adult Social Care Operations,Supplies and Services,640.01,Mar-24
Slough Borough Council,803753,Healthcare Homes,M17C,AD Adult Social Care Operations,Supplies and Services,619.37,Mar-24
Slough Borough Council,803753,Healthcare Homes,M17C,AD Adult Social Care Operations,Supplies and Services,619.37,Mar-24
Slough Borough Council,803753,Healthcare Homes,M17C,AD Adult Social Care Operations,Supplies and Services,619.37,Mar-24
Slough Borough Council,803753,Healthcare Homes,M17C,AD Adult Social Care Operations,Supplies and Services,619.37,Mar-24
Slough Borough Council,803753,Healthcare Homes,M17C,AD Adult Social Care Operations,Supplies and Services,640.01,Mar-24
Slough Borough Council,803753,Healthcare Homes,M17C,AD Adult Social Care Operations,Supplies and Services,640.00,Mar-24
Slough Borough Council,803753,Healthcare Homes,M17C,AD Adult Social Care Operations,Supplies and Services,640.01,Mar-24
Slough Borough Council,803753,Healthcare Homes,M17C,AD Adult Social Care Operations,Supplies and Services,640.02,Mar-24
Slough Borough Council,803753,Healthcare Homes,M17C,AD Adult Social Care Operations,Supplies and Services,640.01,Mar-24
Slough Borough Council,803753,Healthcare Homes,M17C,AD Adult Social Care Operations,Supplies and Services,598.72,Mar-24
Slough Borough Council,803753,Healthcare Homes,M18C,AD Adult Social Care Operations,Supplies and Services,"5,212.43",Mar-24
Slough Borough Council,803753,Healthcare Homes,M18C,AD Adult Social Care Operations,Supplies and Services,"5,212.43",Mar-24
Slough Borough Council,803753,Healthcare Homes,M18C,AD Adult Social Care Operations,Supplies and Services,"5,212.43",Mar-24
Slough Borough Council,803753,Healthcare Homes,M18C,AD Adult Social Care Operations,Supplies and Services,"5,212.43",Mar-24
Slough Borough Council,803753,Healthcare Homes,M27C,AD Adult Social Care Operations,Supplies and Services,"1,888.87",Mar-24
Slough Borough Council,803753,Healthcare Homes,M27C,AD Adult Social Care Operations,Supplies and Services,"1,827.94",Mar-24
Slough Borough Council,803753,Healthcare Homes,M27C,AD Adult Social Care Operations,Supplies and Services,"1,888.87",Mar-24
Slough Borough Council,803753,Healthcare Homes,M27C,AD Adult Social Care Operations,Supplies and Services,"1,888.87",Mar-24
Slough Borough Council,803753,Healthcare Homes,M27C,AD Adult Social Care Operations,Supplies and Services,"1,767.01",Mar-24
Slough Borough Council,803753,Healthcare Homes,M27C,AD Adult Social Care Operations,Supplies and Services,"1,827.94",Mar-24
Slough Borough Council,803753,Healthcare Homes,M27C,AD Adult Social Care Operations,Supplies and Services,"1,827.94",Mar-24
Slough Borough Council,803753,Healthcare Homes,M27C,AD Adult Social Care Operations,Supplies and Services,"1,888.87",Mar-24
Slough Borough Council,803753,Healthcare Homes,M27C,AD Adult Social Care Operations,Supplies and Services,"1,827.94",Mar-24
Slough Borough Council,803753,Healthcare Homes,M27C,AD Adult Social Care Operations,Supplies and Services,"1,888.87",Mar-24
Slough Borough Council,803753,Healthcare Homes,M27C,AD Adult Social Care Operations,Supplies and Services,"1,888.87",Mar-24
Slough Borough Council,803753,Healthcare Homes,M28C,AD Adult Social Care Operations,Supplies and Services,"5,142.86",Mar-24
Slough Borough Council,803753,Healthcare Homes,M28C,AD Adult Social Care Operations,Supplies and Services,"4,285.71",Mar-24
Slough Borough Council,807682,Help and Care,A02C,AD People Strategy & Commissioning,Supplies and Services,"16,109.74",Mar-24
Slough Borough Council,1686,Herald Chase,F382,AD Children & Families,Supplies and Services,"4,655.05",Mar-24
Slough Borough Council,803447,Herewards House Residential Home,A03E,AD Adult Social Care Operations,Supplies and Services,"7,528.57",Mar-24
Slough Borough Council,803447,Herewards House Residential Home,M25C,AD Adult Social Care Operations,Supplies and Services,"3,985.71",Mar-24
Slough Borough Council,803447,Herewards House Residential Home,M25C,AD Adult Social Care Operations,Supplies and Services,"3,764.29",Mar-24
Slough Borough Council,803447,Herewards House Residential Home,M25C,AD Adult Social Care Operations,Supplies and Services,"3,785.71",Mar-24
Slough Borough Council,803447,Herewards House Residential Home,M25C,AD Adult Social Care Operations,Supplies and Services,"3,985.71",Mar-24
Slough Borough Council,803447,Herewards House Residential Home,M25C,AD Adult Social Care Operations,Supplies and Services,"3,800.01",Mar-24
Slough Borough Council,803447,Herewards House Residential Home,M27C,AD Adult Social Care Operations,Supplies and Services,"3,764.29",Mar-24
Slough Borough Council,803447,Herewards House Residential Home,M27C,AD Adult Social Care Operations,Supplies and Services,"3,985.71",Mar-24
Slough Borough Council,803447,Herewards House Residential Home,M27C,AD Adult Social Care Operations,Supplies and Services,"2,878.57",Mar-24
Slough Borough Council,805818,Hestia Housing & Support,H254,AD Public Protection & Communities - Public Health,Supplies and Services,"214,443.00",Mar-24
Slough Borough Council,809181,Hollyfield Management,H205,AD Housing,Supplies and Services,"12,130.00",Mar-24
Slough Borough Council,850,Holy Family Catholic Primary School,F200,AD Education & Inclusion,Salaries and Wages-Employees Expenses,500.00,Mar-24
Slough Borough Council,850,Holy Family Catholic Primary School,E250,AD Children & Families,Supplies and Services,"206,299.31",Mar-24
Slough Borough Council,808797,Home School Tutoring Twickenham & Richmond,F449,AD Education & Inclusion,Supplies and Services,"2,250.00",Mar-24
Slough Borough Council,808797,Home School Tutoring Twickenham & Richmond,F449,AD Education & Inclusion,Supplies and Services,"3,100.00",Mar-24
Slough Borough Council,808797,Home School Tutoring Twickenham & Richmond,F449,AD Education & Inclusion,Supplies and Services,"2,925.00",Mar-24
Slough Borough Council,808797,Home School Tutoring Twickenham & Richmond,F449,AD Education & Inclusion,Supplies and Services,"3,500.00",Mar-24
Slough Borough Council,808922,HOUSING ACTION MANAGEMENT LTD,H205,AD Housing,Supplies and Services,"1,595.00",Mar-24
Slough Borough Council,2113,Housing Partners,H207,AD Housing,Supplies and Services,"12,137.08",Mar-24
Slough Borough Council,2113,Housing Partners,J028,AD Housing,Supplies and Services,"9,895.02",Mar-24
Slough Borough Council,1914,Huntcliff Limited,J028,AD Housing,Supplies and Services,971.70,Mar-24
Slough Borough Council,809315,HUNTMORE PROPERTY INVESTMENETS LIMITED,H205,AD Housing,Supplies and Services,"26,229.00",Mar-24
Slough Borough Council,809315,HUNTMORE PROPERTY INVESTMENETS LIMITED,H205,AD Housing,Supplies and Services,"17,273.00",Mar-24
Slough Borough Council,804955,Imosphere Limited,A03D,AD People Strategy & Commissioning,Supplies and Services,"47,985.00",Mar-24
Slough Borough Council,808897,Imperial Breeze Healthcare South East Ltd,M42E,AD People Strategy & Commissioning,Supplies and Services,"6,400.00",Mar-24
Slough Borough Council,808897,Imperial Breeze Healthcare South East Ltd,M42E,AD People Strategy & Commissioning,Supplies and Services,"4,614.00",Mar-24
Slough Borough Council,808897,Imperial Breeze Healthcare South East Ltd,M42E,AD People Strategy & Commissioning,Supplies and Services,"5,505.36",Mar-24
Slough Borough Council,2917,Imperial Coaches Ltd,C412,AD Public Protection & Communities - Children Services,Supplies and Services,750.00,Mar-24
Slough Borough Council,2917,Imperial Coaches Ltd,F123,AD Education & Inclusion,External Receipts,"4,320.00",Mar-24
Slough Borough Council,351,Imperial Polythene Products Ltd,D620,AD Place Operations,Supplies and Services,"1,994.30",Mar-24
Slough Borough Council,351,Imperial Polythene Products Ltd,D620,AD Place Operations,Supplies and Services,"2,240.00",Mar-24
Slough Borough Council,868,Improvement And Development Agency For Local Government,B201,AD Transformation,Indirect Employee Expenses,"1,120.00",Mar-24
Slough Borough Council,807666,Independence Home and Domicilary Care,M44F,AD People Strategy & Commissioning,Supplies and Services,"3,163.03",Mar-24
Slough Borough Council,807666,Independence Home and Domicilary Care,M44F,AD People Strategy & Commissioning,Supplies and Services,"2,750.94",Mar-24
Slough Borough Council,807666,Independence Home and Domicilary Care,M44F,AD People Strategy & Commissioning,Supplies and Services,"3,132.00",Mar-24
Slough Borough Council,807666,Independence Home and Domicilary Care,M44F,AD People Strategy & Commissioning,Supplies and Services,"1,444.93",Mar-24
Slough Borough Council,3570,Independent Supported Living And Disabilities Ltd,M44E,AD People Strategy & Commissioning,Supplies and Services,"4,506.84",Mar-24
Slough Borough Council,3570,Independent Supported Living And Disabilities Ltd,M44E,AD People Strategy & Commissioning,Supplies and Services,"3,819.92",Mar-24
Slough Borough Council,3570,Independent Supported Living And Disabilities Ltd,M44E,AD People Strategy & Commissioning,Supplies and Services,"1,122.80",Mar-24
Slough Borough Council,3570,Independent Supported Living And Disabilities Ltd,M44E,AD People Strategy & Commissioning,Supplies and Services,"4,506.84",Mar-24
Slough Borough Council,3570,Independent Supported Living And Disabilities Ltd,M44E,AD People Strategy & Commissioning,Supplies and Services,"1,540.80",Mar-24
Slough Borough Council,3570,Independent Supported Living And Disabilities Ltd,M44F,AD People Strategy & Commissioning,Supplies and Services,"2,790.56",Mar-24
Slough Borough Council,803651,Insight Direct (UK) Ltd,C406,AD Public Protection & Communities - Children Services,Supplies and Services,645.56,Mar-24
Slough Borough Council,3172,Intelligent Transport Services,P209,Capital,Capital Charges,"1,233.90",Mar-24
Slough Borough Council,3172,Intelligent Transport Services,P212,Capital,Capital Charges,"4,113.00",Mar-24
Slough Borough Council,3172,Intelligent Transport Services,P238,Capital,Capital Charges,"2,467.80",Mar-24
Slough Borough Council,3172,Intelligent Transport Services,P244,Capital,Capital Charges,"1,645.20",Mar-24
Slough Borough Council,3172,Intelligent Transport Services,P579,Capital,Capital Charges,"1,850.85",Mar-24
Slough Borough Council,3172,Intelligent Transport Services,P243,Capital,Capital Charges,"3,850.00",Mar-24
Slough Borough Council,3172,Intelligent Transport Services,P243,Capital,Capital Charges,"4,900.00",Mar-24
Slough Borough Council,3172,Intelligent Transport Services,P243,Capital,Capital Charges,"3,850.00",Mar-24
Slough Borough Council,3172,Intelligent Transport Services,P243,Capital,Capital Charges,"2,450.00",Mar-24
Slough Borough Council,3172,Intelligent Transport Services,P243,Capital,Capital Charges,"1,050.00",Mar-24
Slough Borough Council,3172,Intelligent Transport Services,P243,Capital,Capital Charges,"1,225.00",Mar-24
Slough Borough Council,3172,Intelligent Transport Services,P243,Capital,Capital Charges,875.00,Mar-24
Slough Borough Council,808422,Intersect Survey Ltd,P579,Capital,Capital Charges,"2,750.00",Mar-24
Slough Borough Council,3500,Iqra Slough Islamic Primary School,E480,AD Children & Families,Supplies and Services,"114,327.01",Mar-24
Slough Borough Council,998,Iron Mountain Uk Ltd,B282,AD Chief Digital & Information Officer,Supplies and Services,"4,625.36",Mar-24
Slough Borough Council,998,Iron Mountain Uk Ltd,B282,AD Chief Digital & Information Officer,Supplies and Services,"2,410.00",Mar-24
Slough Borough Council,2919,Islamic Shakhsiyah Foundation,F281,AD Education & Inclusion,Supplies and Services,"6,986.35",Mar-24
Slough Borough Council,2919,Islamic Shakhsiyah Foundation,F281,AD Education & Inclusion,Supplies and Services,"2,934.36",Mar-24
Slough Borough Council,753,Jack In The Box Day Nursery,F281,AD Education & Inclusion,Premises,"2,131.10",Mar-24
Slough Borough Council,753,Jack In The Box Day Nursery,F281,AD Education & Inclusion,Premises,"5,185.37",Mar-24
Slough Borough Council,753,Jack In The Box Day Nursery,F409,AD Education & Inclusion,Supplies and Services,"1,000.00",Mar-24
Slough Borough Council,753,Jack In The Box Day Nursery,F281,AD Education & Inclusion,Supplies and Services,"3,724.28",Mar-24
Slough Borough Council,753,Jack In The Box Day Nursery,F281,AD Education & Inclusion,Supplies and Services,"3,333.92",Mar-24
Slough Borough Council,807347,Jadu Creative Limited,B282,AD Chief Digital & Information Officer,Supplies and Services,"115,500.00",Mar-24
Slough Borough Council,733,James Elliman  School,E620,AD Children & Families,Supplies and Services,"39,413.14",Mar-24
Slough Borough Council,805666,James Rosental,C322,AD Public Protection & Communities - Children Services,Supplies and Services,"1,624.00",Mar-24
Slough Borough Council,809468,JB Leitch Solicitors,J015,AD Housing,Premises,"1,404.31",Mar-24
Slough Borough Council,809468,JB Leitch Solicitors,J015,AD Housing,Premises,"1,035.84",Mar-24
Slough Borough Council,809468,JB Leitch Solicitors,J015,AD Housing,Premises,989.92,Mar-24
Slough Borough Council,807308,JLA Total Care Ltd,H202,AD Housing,Supplies and Services,582.66,Mar-24
Slough Borough Council,807308,JLA Total Care Ltd,H205,AD Housing,Supplies and Services,"1,071.77",Mar-24
Slough Borough Council,807308,JLA Total Care Ltd,H205,AD Housing,Supplies and Services,828.49,Mar-24
Slough Borough Council,1592,Jmw Systems Limited,D512,AD Place Operations,Supplies and Services,"2,500.00",Mar-24
Slough Borough Council,807453,John F Hunt Regeneration Ltd,P405,Capital,Capital Charges,"105,154.78",Mar-24
Slough Borough Council,807453,John F Hunt Regeneration Ltd,P405,Capital,Capital Charges,"45,809.34",Mar-24
Slough Borough Council,807453,John F Hunt Regeneration Ltd,P405,Capital,Capital Charges,"100,074.98",Mar-24
Slough Borough Council,807453,John F Hunt Regeneration Ltd,P405,Capital,Capital Charges,"86,418.90",Mar-24
Slough Borough Council,2200,Joshua Pilmore,C322,AD Public Protection & Communities - Children Services,Supplies and Services,"2,339.08",Mar-24
Slough Borough Council,804848,JPH Social Work LTD,A01H,AD Adult Social Care Operations,Agency Staff,"1,500.00",Mar-24
Slough Borough Council,809271,Julie Barrett Legal Training,H253,AD Public Protection & Communities - Public Health,Indirect Employee Expenses,"3,721.23",Mar-24
Slough Borough Council,809063,KARELINK LTD,M18C,AD Adult Social Care Operations,Supplies and Services,"3,107.14",Mar-24
Slough Borough Council,803815,Kathys Childcare,F282,AD Education & Inclusion,Premises,"1,070.55",Mar-24
Slough Borough Council,803815,Kathys Childcare,F282,AD Education & Inclusion,Supplies and Services,733.59,Mar-24
Slough Borough Council,803815,Kathys Childcare,F282,AD Education & Inclusion,Supplies and Services,851.78,Mar-24
Slough Borough Council,2620,Kcare Nursing Agency Ltd,M44F,AD People Strategy & Commissioning,Supplies and Services,997.90,Mar-24
Slough Borough Council,2620,Kcare Nursing Agency Ltd,M48C,AD Adult Social Care Operations,Supplies and Services,"4,000.00",Mar-24
Slough Borough Council,804887,KCare Nursing Agency Ltd Supported House Living,M42F,AD People Strategy & Commissioning,Supplies and Services,"2,926.00",Mar-24
Slough Borough Council,804887,KCare Nursing Agency Ltd Supported House Living,M44F,AD People Strategy & Commissioning,Supplies and Services,"2,493.50",Mar-24
Slough Borough Council,808146,Kents Hill Care Home,M18C,AD Adult Social Care Operations,Supplies and Services,"3,662.29",Mar-24
Slough Borough Council,807742,Khalsa Primary School,E620,AD Children & Families,Supplies and Services,"19,728.49",Mar-24
Slough Borough Council,803916,Kharis Solutions,M42E,AD People Strategy & Commissioning,Supplies and Services,"10,360.00",Mar-24
Slough Borough Council,803916,Kharis Solutions,M42E,AD People Strategy & Commissioning,Supplies and Services,"10,360.00",Mar-24
Slough Borough Council,803916,Kharis Solutions,M42E,AD People Strategy & Commissioning,Supplies and Services,"7,679.32",Mar-24
Slough Borough Council,803916,Kharis Solutions,M42E,AD People Strategy & Commissioning,Supplies and Services,"7,855.36",Mar-24
Slough Borough Council,803916,Kharis Solutions,M44C,AD Adult Social Care Operations,Supplies and Services,"-1,549.64",Mar-24
Slough Borough Council,803916,Kharis Solutions,M44C,AD Adult Social Care Operations,Supplies and Services,731.34,Mar-24
Slough Borough Council,803916,Kharis Solutions,M44C,AD Adult Social Care Operations,Supplies and Services,"1,199.52",Mar-24
Slough Borough Council,803916,Kharis Solutions,M44C,AD Adult Social Care Operations,Supplies and Services,-537.35,Mar-24
Slough Borough Council,803916,Kharis Solutions,M44C,AD Adult Social Care Operations,Supplies and Services,"1,716.12",Mar-24
Slough Borough Council,803916,Kharis Solutions,M44C,AD Adult Social Care Operations,Supplies and Services,"2,285.06",Mar-24
Slough Borough Council,803916,Kharis Solutions,M44C,AD Adult Social Care Operations,Supplies and Services,"1,295.82",Mar-24
Slough Borough Council,803916,Kharis Solutions,M44C,AD Adult Social Care Operations,Supplies and Services,823.02,Mar-24
Slough Borough Council,803916,Kharis Solutions,M44C,AD Adult Social Care Operations,Supplies and Services,"2,234.40",Mar-24
Slough Borough Council,803916,Kharis Solutions,M44C,AD Adult Social Care Operations,Supplies and Services,"1,716.12",Mar-24
Slough Borough Council,803916,Kharis Solutions,M44D,AD Adult Social Care Operations,Supplies and Services,"1,716.12",Mar-24
Slough Borough Council,803916,Kharis Solutions,M44E,AD People Strategy & Commissioning,Supplies and Services,683.08,Mar-24
Slough Borough Council,803916,Kharis Solutions,M44E,AD People Strategy & Commissioning,Supplies and Services,"9,250.00",Mar-24
Slough Borough Council,803916,Kharis Solutions,M44E,AD People Strategy & Commissioning,Supplies and Services,"10,360.00",Mar-24
Slough Borough Council,803916,Kharis Solutions,M44E,AD People Strategy & Commissioning,Supplies and Services,"8,880.00",Mar-24
Slough Borough Council,803916,Kharis Solutions,M44E,AD People Strategy & Commissioning,Supplies and Services,"8,510.00",Mar-24
Slough Borough Council,803916,Kharis Solutions,M44E,AD People Strategy & Commissioning,Supplies and Services,"1,024.64",Mar-24
Slough Borough Council,803916,Kharis Solutions,M44E,AD People Strategy & Commissioning,Supplies and Services,"1,110.00",Mar-24
Slough Borough Council,803916,Kharis Solutions,M45C,AD Adult Social Care Operations,Supplies and Services,916.18,Mar-24
Slough Borough Council,803916,Kharis Solutions,M45C,AD Adult Social Care Operations,Supplies and Services,"1,729.35",Mar-24
Slough Borough Council,803916,Kharis Solutions,M45C,AD Adult Social Care Operations,Supplies and Services,858.06,Mar-24
Slough Borough Council,803916,Kharis Solutions,M48C,AD Adult Social Care Operations,Supplies and Services,"2,276.44",Mar-24
Slough Borough Council,807911,Kidz Enterprise LTD,F382,AD Children & Families,Government Grants,"1,813.68",Mar-24
Slough Borough Council,1728,Kristiina Smith,C322,AD Public Protection & Communities - Children Services,Supplies and Services,850.00,Mar-24
Slough Borough Council,808599,lakhwinder Singh,H205,AD Housing,Supplies and Services,"1,450.00",Mar-24
Slough Borough Council,808599,lakhwinder Singh,H205,AD Housing,Supplies and Services,"1,450.00",Mar-24
Slough Borough Council,808599,lakhwinder Singh,H205,AD Housing,Supplies and Services,"1,550.00",Mar-24
Slough Borough Council,808609,Langhams Partnership LTD,H205,AD Housing,Supplies and Services,"51,185.00",Mar-24
Slough Borough Council,664,Langley Grammar School,E610,AD Children & Families,Supplies and Services,875.00,Mar-24
Slough Borough Council,1699,Langley Hall Primary Academy,E620,AD Children & Families,Supplies and Services,"2,500.00",Mar-24
Slough Borough Council,3001,Langley Haven Care Homes Ltd,M25C,AD Adult Social Care Operations,Supplies and Services,"4,898.40",Mar-24
Slough Borough Council,3001,Langley Haven Care Homes Ltd,M25C,AD Adult Social Care Operations,Supplies and Services,"4,430.12",Mar-24
Slough Borough Council,3001,Langley Haven Care Homes Ltd,M25C,AD Adult Social Care Operations,Supplies and Services,"4,430.12",Mar-24
Slough Borough Council,3001,Langley Haven Care Homes Ltd,M25D,AD Adult Social Care Operations,Supplies and Services,"4,430.12",Mar-24
Slough Borough Council,3001,Langley Haven Care Homes Ltd,M25D,AD Adult Social Care Operations,Supplies and Services,"4,430.12",Mar-24
Slough Borough Council,3001,Langley Haven Care Homes Ltd,M25D,AD Adult Social Care Operations,Supplies and Services,"4,430.12",Mar-24
Slough Borough Council,3001,Langley Haven Care Homes Ltd,M26E,AD Adult Social Care Operations,Supplies and Services,"4,571.84",Mar-24
Slough Borough Council,3001,Langley Haven Care Homes Ltd,M27C,AD Adult Social Care Operations,Supplies and Services,"4,430.12",Mar-24
Slough Borough Council,3001,Langley Haven Care Homes Ltd,M27C,AD Adult Social Care Operations,Supplies and Services,"4,430.12",Mar-24
Slough Borough Council,3001,Langley Haven Care Homes Ltd,M27C,AD Adult Social Care Operations,Supplies and Services,"4,430.12",Mar-24
Slough Borough Council,3001,Langley Haven Care Homes Ltd,M27C,AD Adult Social Care Operations,Supplies and Services,"4,430.12",Mar-24
Slough Borough Council,3001,Langley Haven Care Homes Ltd,M27C,AD Adult Social Care Operations,Supplies and Services,"4,430.12",Mar-24
Slough Borough Council,3001,Langley Haven Care Homes Ltd,M27C,AD Adult Social Care Operations,Supplies and Services,"4,430.12",Mar-24
Slough Borough Council,3001,Langley Haven Care Homes Ltd,M27F,AD Adult Social Care Operations,Supplies and Services,"4,430.12",Mar-24
Slough Borough Council,3001,Langley Haven Care Homes Ltd,M27F,AD Adult Social Care Operations,Supplies and Services,"2,313.13",Mar-24
Slough Borough Council,3001,Langley Haven Care Homes Ltd,M27F,AD Adult Social Care Operations,Supplies and Services,"4,898.40",Mar-24
Slough Borough Council,3001,Langley Haven Care Homes Ltd,M27F,AD Adult Social Care Operations,Supplies and Services,"4,430.12",Mar-24
Slough Borough Council,3001,Langley Haven Care Homes Ltd,M27F,AD Adult Social Care Operations,Supplies and Services,"4,430.12",Mar-24
Slough Borough Council,3001,Langley Haven Care Homes Ltd,M27F,AD Adult Social Care Operations,Supplies and Services,"4,430.12",Mar-24
Slough Borough Council,803686,Lascelles Park Nursery,F281,AD Education & Inclusion,Premises,"1,753.06",Mar-24
Slough Borough Council,803686,Lascelles Park Nursery,F281,AD Education & Inclusion,Premises,"3,227.41",Mar-24
Slough Borough Council,803686,Lascelles Park Nursery,F281,AD Education & Inclusion,Premises,"4,746.56",Mar-24
Slough Borough Council,803686,Lascelles Park Nursery,F374,AD Children & Families,Supplies and Services,"2,542.00",Mar-24
Slough Borough Council,803686,Lascelles Park Nursery,F281,AD Education & Inclusion,Supplies and Services,"8,205.08",Mar-24
Slough Borough Council,803686,Lascelles Park Nursery,F281,AD Education & Inclusion,Supplies and Services,528.30,Mar-24
Slough Borough Council,803686,Lascelles Park Nursery,F281,AD Education & Inclusion,Supplies and Services,"10,486.58",Mar-24
Slough Borough Council,803686,Lascelles Park Nursery,F281,AD Education & Inclusion,Supplies and Services,"1,132.96",Mar-24
Slough Borough Council,803686,Lascelles Park Nursery,F281,AD Education & Inclusion,Supplies and Services,"2,602.05",Mar-24
Slough Borough Council,803686,Lascelles Park Nursery,F281,AD Education & Inclusion,Supplies and Services,591.30,Mar-24
Slough Borough Council,803686,Lascelles Park Nursery,F281,AD Education & Inclusion,Supplies and Services,502.20,Mar-24
Slough Borough Council,805479,Lent  Rise School,F417,AD Education & Inclusion,Supplies and Services,"1,782.00",Mar-24
Slough Borough Council,808423,Leo�s Circus CIC,F382,AD Children & Families,Government Grants,"1,416.90",Mar-24
Slough Borough Council,3482,Leonard Cheshire Disability,M26E,AD Adult Social Care Operations,Supplies and Services,"2,924.89",Mar-24
Slough Borough Council,3482,Leonard Cheshire Disability,M26E,AD Adult Social Care Operations,Supplies and Services,"6,749.74",Mar-24
Slough Borough Council,3482,Leonard Cheshire Disability,M26E,AD Adult Social Care Operations,Supplies and Services,"6,974.73",Mar-24
Slough Borough Council,3482,Leonard Cheshire Disability,M26E,AD Adult Social Care Operations,Supplies and Services,"6,749.74",Mar-24
Slough Borough Council,808892,Letee Limited,H205,AD Housing,Supplies and Services,"6,975.00",Mar-24
Slough Borough Council,808892,Letee Limited,H205,AD Housing,Supplies and Services,"1,235.00",Mar-24
Slough Borough Council,808892,Letee Limited,H205,AD Housing,Supplies and Services,"1,705.00",Mar-24
Slough Borough Council,808892,Letee Limited,H205,AD Housing,Supplies and Services,"6,820.00",Mar-24
Slough Borough Council,808892,Letee Limited,H205,AD Housing,Supplies and Services,"2,015.00",Mar-24
Slough Borough Council,808892,Letee Limited,H205,AD Housing,Supplies and Services,"1,705.00",Mar-24
Slough Borough Council,808892,Letee Limited,H205,AD Housing,Supplies and Services,"1,395.00",Mar-24
Slough Borough Council,808892,Letee Limited,H205,AD Housing,Supplies and Services,"1,705.00",Mar-24
Slough Borough Council,808892,Letee Limited,H205,AD Housing,Supplies and Services,"1,430.00",Mar-24
Slough Borough Council,808892,Letee Limited,H205,AD Housing,Supplies and Services,"1,625.00",Mar-24
Slough Borough Council,808892,Letee Limited,H205,AD Housing,Supplies and Services,"6,525.00",Mar-24
Slough Borough Council,808892,Letee Limited,H205,AD Housing,Supplies and Services,"1,595.00",Mar-24
Slough Borough Council,808892,Letee Limited,H205,AD Housing,Supplies and Services,"1,885.00",Mar-24
Slough Borough Council,808892,Letee Limited,H205,AD Housing,Supplies and Services,"6,380.00",Mar-24
Slough Borough Council,808892,Letee Limited,H205,AD Housing,Supplies and Services,"2,030.00",Mar-24
Slough Borough Council,808892,Letee Limited,H205,AD Housing,Supplies and Services,"1,595.00",Mar-24
Slough Borough Council,808892,Letee Limited,H205,AD Housing,Supplies and Services,"1,595.00",Mar-24
Slough Borough Council,808892,Letee Limited,H205,AD Housing,Supplies and Services,"1,595.00",Mar-24
Slough Borough Council,808892,Letee Limited,H205,AD Housing,Supplies and Services,"1,305.00",Mar-24
Slough Borough Council,808892,Letee Limited,H205,AD Housing,Supplies and Services,560.00,Mar-24
Slough Borough Council,808892,Letee Limited,H205,AD Housing,Supplies and Services,"2,170.00",Mar-24
Slough Borough Council,808892,Letee Limited,H205,AD Housing,Supplies and Services,"1,690.00",Mar-24
Slough Borough Council,808892,Letee Limited,H205,AD Housing,Supplies and Services,"2,170.00",Mar-24
Slough Borough Council,808892,Letee Limited,H205,AD Housing,Supplies and Services,"1,705.00",Mar-24
Slough Borough Council,301,Liberata Uk Limited,B048,AD Deputy Director Corporate & Strategic Finance,Supplies and Services,"11,916.33",Mar-24
Slough Borough Council,301,Liberata Uk Limited,B048,AD Deputy Director Corporate & Strategic Finance,Supplies and Services,"10,984.34",Mar-24
Slough Borough Council,808796,Lightsave Ltd,B060,AD Building Management,Supplies and Services,"-1,189.66",Mar-24
Slough Borough Council,397,Liquidlogic,F150,AD Children & Families,Supplies and Services,"6,840.92",Mar-24
Slough Borough Council,804692,Little Diamonds Pre School,F281,AD Education & Inclusion,Premises,"14,068.16",Mar-24
Slough Borough Council,804692,Little Diamonds Pre School,F281,AD Education & Inclusion,Premises,"8,590.92",Mar-24
Slough Borough Council,804692,Little Diamonds Pre School,F281,AD Education & Inclusion,Premises,"3,239.10",Mar-24
Slough Borough Council,804692,Little Diamonds Pre School,F409,AD Education & Inclusion,Supplies and Services,"1,000.00",Mar-24
Slough Borough Council,804692,Little Diamonds Pre School,F281,AD Education & Inclusion,Supplies and Services,"15,079.57",Mar-24
Slough Borough Council,804692,Little Diamonds Pre School,F281,AD Education & Inclusion,Supplies and Services,"2,838.75",Mar-24
Slough Borough Council,804692,Little Diamonds Pre School,F281,AD Education & Inclusion,Supplies and Services,"16,559.07",Mar-24
Slough Borough Council,804692,Little Diamonds Pre School,F281,AD Education & Inclusion,Supplies and Services,"2,797.99",Mar-24
Slough Borough Council,804692,Little Diamonds Pre School,F281,AD Education & Inclusion,Supplies and Services,"1,156.32",Mar-24
Slough Borough Council,804692,Little Diamonds Pre School,F281,AD Education & Inclusion,Supplies and Services,982.08,Mar-24
Slough Borough Council,808192,Little Musketeers,F382,AD Children & Families,Government Grants,"1,163.52",Mar-24
Slough Borough Council,3791,Littledown Pru,E610,AD Children & Families,Supplies and Services,"17,250.00",Mar-24
Slough Borough Council,667,Littledown School,E610,AD Children & Families,Supplies and Services,"72,320.83",Mar-24
Slough Borough Council,1282,Long Close School,F281,AD Education & Inclusion,Supplies and Services,"2,788.80",Mar-24
Slough Borough Council,1282,Long Close School,F281,AD Education & Inclusion,Supplies and Services,"6,238.65",Mar-24
Slough Borough Council,2302,Look Ahead Care And Support,M42F,AD People Strategy & Commissioning,Supplies and Services,"3,131.62",Mar-24
Slough Borough Council,2302,Look Ahead Care And Support,M42F,AD People Strategy & Commissioning,Supplies and Services,"3,131.62",Mar-24
Slough Borough Council,2302,Look Ahead Care And Support,M42F,AD People Strategy & Commissioning,Supplies and Services,"28,184.58",Mar-24
Slough Borough Council,2302,Look Ahead Care And Support,M42F,AD People Strategy & Commissioning,Supplies and Services,"3,030.60",Mar-24
Slough Borough Council,2302,Look Ahead Care And Support,M42F,AD People Strategy & Commissioning,Supplies and Services,"3,030.60",Mar-24
Slough Borough Council,2302,Look Ahead Care And Support,M42F,AD People Strategy & Commissioning,Supplies and Services,"2,626.52",Mar-24
Slough Borough Council,2302,Look Ahead Care And Support,M42F,AD People Strategy & Commissioning,Supplies and Services,"1,808.41",Mar-24
Slough Borough Council,2302,Look Ahead Care And Support,M42F,AD People Strategy & Commissioning,Supplies and Services,626.82,Mar-24
Slough Borough Council,2302,Look Ahead Care And Support,M44D,AD Adult Social Care Operations,Supplies and Services,"3,131.62",Mar-24
Slough Borough Council,2302,Look Ahead Care And Support,M44D,AD Adult Social Care Operations,Supplies and Services,"3,131.62",Mar-24
Slough Borough Council,2302,Look Ahead Care And Support,M44D,AD Adult Social Care Operations,Supplies and Services,"-3,722.40",Mar-24
Slough Borough Council,2302,Look Ahead Care And Support,M44F,AD People Strategy & Commissioning,Supplies and Services,"3,030.60",Mar-24
Slough Borough Council,2302,Look Ahead Care And Support,M44F,AD People Strategy & Commissioning,Supplies and Services,"3,030.60",Mar-24
Slough Borough Council,2302,Look Ahead Care And Support,M44F,AD People Strategy & Commissioning,Supplies and Services,"3,131.62",Mar-24
Slough Borough Council,2302,Look Ahead Care And Support,M44F,AD People Strategy & Commissioning,Supplies and Services,"3,131.62",Mar-24
Slough Borough Council,2302,Look Ahead Care And Support,M44F,AD People Strategy & Commissioning,Supplies and Services,"3,131.62",Mar-24
Slough Borough Council,2302,Look Ahead Care And Support,M44F,AD People Strategy & Commissioning,Supplies and Services,"3,131.62",Mar-24
Slough Borough Council,2302,Look Ahead Care And Support,M44F,AD People Strategy & Commissioning,Supplies and Services,"3,131.62",Mar-24
Slough Borough Council,2302,Look Ahead Care And Support,M44F,AD People Strategy & Commissioning,Supplies and Services,"3,131.62",Mar-24
Slough Borough Council,2302,Look Ahead Care And Support,M44F,AD People Strategy & Commissioning,Supplies and Services,"-15,658.10",Mar-24
Slough Borough Council,2302,Look Ahead Care And Support,M44F,AD People Strategy & Commissioning,Supplies and Services,"1,313.26",Mar-24
Slough Borough Council,2302,Look Ahead Care And Support,M44F,AD People Strategy & Commissioning,Supplies and Services,"2,828.56",Mar-24
Slough Borough Council,2302,Look Ahead Care And Support,M44F,AD People Strategy & Commissioning,Supplies and Services,"3,030.60",Mar-24
Slough Borough Council,2302,Look Ahead Care And Support,M44F,AD People Strategy & Commissioning,Supplies and Services,"1,565.81",Mar-24
Slough Borough Council,2302,Look Ahead Care And Support,M44F,AD People Strategy & Commissioning,Supplies and Services,"1,565.81",Mar-24
Slough Borough Council,2302,Look Ahead Care And Support,M44F,AD People Strategy & Commissioning,Supplies and Services,"1,565.81",Mar-24
Slough Borough Council,2302,Look Ahead Care And Support,M44F,AD People Strategy & Commissioning,Supplies and Services,"1,565.81",Mar-24
Slough Borough Council,2302,Look Ahead Care And Support,M44F,AD People Strategy & Commissioning,Supplies and Services,"-21,618.28",Mar-24
Slough Borough Council,2302,Look Ahead Care And Support,M44F,AD People Strategy & Commissioning,Supplies and Services,"1,515.30",Mar-24
Slough Borough Council,2302,Look Ahead Care And Support,M44F,AD People Strategy & Commissioning,Supplies and Services,"3,131.62",Mar-24
Slough Borough Council,2302,Look Ahead Care And Support,M44F,AD People Strategy & Commissioning,Supplies and Services,"3,131.62",Mar-24
Slough Borough Council,2302,Look Ahead Care And Support,M44F,AD People Strategy & Commissioning,Supplies and Services,"-56,874.26",Mar-24
Slough Borough Council,2302,Look Ahead Care And Support,M44F,AD People Strategy & Commissioning,Supplies and Services,"-3,030.60",Mar-24
Slough Borough Council,2302,Look Ahead Care And Support,M44F,AD People Strategy & Commissioning,Supplies and Services,"-3,131.62",Mar-24
Slough Borough Council,2302,Look Ahead Care And Support,M44F,AD People Strategy & Commissioning,Supplies and Services,"-3,131.62",Mar-24
Slough Borough Council,2302,Look Ahead Care And Support,M44F,AD People Strategy & Commissioning,Supplies and Services,"-3,030.60",Mar-24
Slough Borough Council,2302,Look Ahead Care And Support,M44F,AD People Strategy & Commissioning,Supplies and Services,"-2,626.52",Mar-24
Slough Borough Council,2302,Look Ahead Care And Support,M44F,AD People Strategy & Commissioning,Supplies and Services,"3,030.60",Mar-24
Slough Borough Council,2302,Look Ahead Care And Support,M44F,AD People Strategy & Commissioning,Supplies and Services,"3,131.62",Mar-24
Slough Borough Council,2302,Look Ahead Care And Support,M44F,AD People Strategy & Commissioning,Supplies and Services,"3,030.60",Mar-24
Slough Borough Council,2302,Look Ahead Care And Support,M44F,AD People Strategy & Commissioning,Supplies and Services,"1,515.30",Mar-24
Slough Borough Council,2302,Look Ahead Care And Support,M44F,AD People Strategy & Commissioning,Supplies and Services,"1,515.30",Mar-24
Slough Borough Council,2302,Look Ahead Care And Support,M44F,AD People Strategy & Commissioning,Supplies and Services,"3,030.60",Mar-24
Slough Borough Council,2302,Look Ahead Care And Support,M44F,AD People Strategy & Commissioning,Supplies and Services,"3,030.60",Mar-24
Slough Borough Council,2302,Look Ahead Care And Support,M44F,AD People Strategy & Commissioning,Supplies and Services,"1,565.81",Mar-24
Slough Borough Council,2302,Look Ahead Care And Support,M44F,AD People Strategy & Commissioning,Supplies and Services,"1,565.81",Mar-24
Slough Borough Council,2302,Look Ahead Care And Support,M44F,AD People Strategy & Commissioning,Supplies and Services,"1,565.81",Mar-24
Slough Borough Council,2302,Look Ahead Care And Support,M44F,AD People Strategy & Commissioning,Supplies and Services,"3,131.62",Mar-24
Slough Borough Council,2302,Look Ahead Care And Support,M44F,AD People Strategy & Commissioning,Supplies and Services,"3,131.62",Mar-24
Slough Borough Council,2302,Look Ahead Care And Support,M44F,AD People Strategy & Commissioning,Supplies and Services,"3,131.62",Mar-24
Slough Borough Council,2302,Look Ahead Care And Support,M44F,AD People Strategy & Commissioning,Supplies and Services,"3,131.62",Mar-24
Slough Borough Council,2302,Look Ahead Care And Support,M44F,AD People Strategy & Commissioning,Supplies and Services,"3,131.62",Mar-24
Slough Borough Council,2302,Look Ahead Care And Support,M44F,AD People Strategy & Commissioning,Supplies and Services,"3,030.60",Mar-24
Slough Borough Council,2302,Look Ahead Care And Support,M44F,AD People Strategy & Commissioning,Supplies and Services,"3,131.62",Mar-24
Slough Borough Council,2302,Look Ahead Care And Support,M44F,AD People Strategy & Commissioning,Supplies and Services,"3,131.62",Mar-24
Slough Borough Council,2302,Look Ahead Care And Support,M44F,AD People Strategy & Commissioning,Supplies and Services,904.23,Mar-24
Slough Borough Council,2302,Look Ahead Care And Support,M44F,AD People Strategy & Commissioning,Supplies and Services,"1,567.71",Mar-24
Slough Borough Council,2302,Look Ahead Care And Support,M44F,AD People Strategy & Commissioning,Supplies and Services,"1,565.81",Mar-24
Slough Borough Council,2302,Look Ahead Care And Support,M44F,AD People Strategy & Commissioning,Supplies and Services,627.26,Mar-24
Slough Borough Council,2302,Look Ahead Care And Support,M44F,AD People Strategy & Commissioning,Supplies and Services,904.23,Mar-24
Slough Borough Council,2302,Look Ahead Care And Support,M44F,AD People Strategy & Commissioning,Supplies and Services,819.29,Mar-24
Slough Borough Council,2302,Look Ahead Care And Support,M44F,AD People Strategy & Commissioning,Supplies and Services,-859.71,Mar-24
Slough Borough Council,2302,Look Ahead Care And Support,M44F,AD People Strategy & Commissioning,Supplies and Services,"1,808.41",Mar-24
Slough Borough Council,2302,Look Ahead Care And Support,M44F,AD People Strategy & Commissioning,Supplies and Services,"1,808.41",Mar-24
Slough Borough Council,2302,Look Ahead Care And Support,M44F,AD People Strategy & Commissioning,Supplies and Services,627.26,Mar-24
Slough Borough Council,2302,Look Ahead Care And Support,M44F,AD People Strategy & Commissioning,Supplies and Services,"1,808.41",Mar-24
Slough Borough Council,2302,Look Ahead Care And Support,M44F,AD People Strategy & Commissioning,Supplies and Services,904.40,Mar-24
Slough Borough Council,2302,Look Ahead Care And Support,M44F,AD People Strategy & Commissioning,Supplies and Services,"1,567.71",Mar-24
Slough Borough Council,2302,Look Ahead Care And Support,M44F,AD People Strategy & Commissioning,Supplies and Services,904.18,Mar-24
Slough Borough Council,2302,Look Ahead Care And Support,H211,AD People Strategy & Commissioning,Supplies and Services,816.68,Mar-24
Slough Borough Council,2302,Look Ahead Care And Support,H211,AD People Strategy & Commissioning,Supplies and Services,"1,633.80",Mar-24
Slough Borough Council,2302,Look Ahead Care And Support,H211,AD People Strategy & Commissioning,Supplies and Services,"1,633.80",Mar-24
Slough Borough Council,2302,Look Ahead Care And Support,H211,AD People Strategy & Commissioning,Supplies and Services,"1,633.80",Mar-24
Slough Borough Council,2302,Look Ahead Care And Support,H211,AD People Strategy & Commissioning,Supplies and Services,"1,633.80",Mar-24
Slough Borough Council,2302,Look Ahead Care And Support,H211,AD People Strategy & Commissioning,Supplies and Services,"1,633.80",Mar-24
Slough Borough Council,2302,Look Ahead Care And Support,H211,AD People Strategy & Commissioning,Supplies and Services,816.68,Mar-24
Slough Borough Council,2302,Look Ahead Care And Support,H211,AD People Strategy & Commissioning,Supplies and Services,816.68,Mar-24
Slough Borough Council,2302,Look Ahead Care And Support,H211,AD People Strategy & Commissioning,Supplies and Services,816.68,Mar-24
Slough Borough Council,2302,Look Ahead Care And Support,H211,AD People Strategy & Commissioning,Supplies and Services,816.68,Mar-24
Slough Borough Council,2302,Look Ahead Care And Support,H211,AD People Strategy & Commissioning,Supplies and Services,"1,633.80",Mar-24
Slough Borough Council,2302,Look Ahead Care And Support,H211,AD People Strategy & Commissioning,Supplies and Services,"1,633.80",Mar-24
Slough Borough Council,2302,Look Ahead Care And Support,H211,AD People Strategy & Commissioning,Supplies and Services,"1,633.80",Mar-24
Slough Borough Council,2302,Look Ahead Care And Support,H211,AD People Strategy & Commissioning,Supplies and Services,"1,633.80",Mar-24
Slough Borough Council,2302,Look Ahead Care And Support,H211,AD People Strategy & Commissioning,Supplies and Services,"1,633.80",Mar-24
Slough Borough Council,2302,Look Ahead Care And Support,H211,AD People Strategy & Commissioning,Supplies and Services,"1,633.80",Mar-24
Slough Borough Council,2302,Look Ahead Care And Support,H211,AD People Strategy & Commissioning,Supplies and Services,"-14,411.72",Mar-24
Slough Borough Council,2302,Look Ahead Care And Support,H211,AD People Strategy & Commissioning,Supplies and Services,816.68,Mar-24
Slough Borough Council,2302,Look Ahead Care And Support,H211,AD People Strategy & Commissioning,Supplies and Services,816.68,Mar-24
Slough Borough Council,2302,Look Ahead Care And Support,H211,AD People Strategy & Commissioning,Supplies and Services,816.68,Mar-24
Slough Borough Council,2302,Look Ahead Care And Support,H211,AD People Strategy & Commissioning,Supplies and Services,816.68,Mar-24
Slough Borough Council,2302,Look Ahead Care And Support,H211,AD People Strategy & Commissioning,Supplies and Services,816.68,Mar-24
Slough Borough Council,2302,Look Ahead Care And Support,H211,AD People Strategy & Commissioning,Supplies and Services,816.68,Mar-24
Slough Borough Council,2302,Look Ahead Care And Support,H211,AD People Strategy & Commissioning,Supplies and Services,816.68,Mar-24
Slough Borough Council,2302,Look Ahead Care And Support,H211,AD People Strategy & Commissioning,Supplies and Services,816.68,Mar-24
Slough Borough Council,2302,Look Ahead Care And Support,H211,AD People Strategy & Commissioning,Supplies and Services,816.68,Mar-24
Slough Borough Council,808989,Louise Brant,C322,AD Public Protection & Communities - Children Services,Supplies and Services,787.50,Mar-24
Slough Borough Council,808567,Lydia Simpson,C322,AD Public Protection & Communities - Children Services,Supplies and Services,780.00,Mar-24
Slough Borough Council,1195,Lynch Hill (Foundation Primary) School,E620,AD Children & Families,Supplies and Services,"34,262.25",Mar-24
Slough Borough Council,1771,Lynch Hill Academy,E620,AD Children & Families,Supplies and Services,"13,291.67",Mar-24
Slough Borough Council,3424,M D Homes,M15F,AD People Strategy & Commissioning,Supplies and Services,"5,115.00",Mar-24
Slough Borough Council,807217,Macadamia Support Limited,M42E,AD People Strategy & Commissioning,Supplies and Services,"11,756.52",Mar-24
Slough Borough Council,807217,Macadamia Support Limited,M42E,AD People Strategy & Commissioning,Supplies and Services,"9,373.00",Mar-24
Slough Borough Council,807217,Macadamia Support Limited,M42E,AD People Strategy & Commissioning,Supplies and Services,"6,005.20",Mar-24
Slough Borough Council,807217,Macadamia Support Limited,M42E,AD People Strategy & Commissioning,Supplies and Services,"7,416.40",Mar-24
Slough Borough Council,807217,Macadamia Support Limited,M42E,AD People Strategy & Commissioning,Supplies and Services,"11,756.52",Mar-24
Slough Borough Council,807217,Macadamia Support Limited,M42E,AD People Strategy & Commissioning,Supplies and Services,"4,226.44",Mar-24
Slough Borough Council,807217,Macadamia Support Limited,M42E,AD People Strategy & Commissioning,Supplies and Services,"10,029.12",Mar-24
Slough Borough Council,807217,Macadamia Support Limited,M42E,AD People Strategy & Commissioning,Supplies and Services,702.99,Mar-24
Slough Borough Council,807217,Macadamia Support Limited,M42E,AD People Strategy & Commissioning,Supplies and Services,702.99,Mar-24
Slough Borough Council,807217,Macadamia Support Limited,M42E,AD People Strategy & Commissioning,Supplies and Services,702.99,Mar-24
Slough Borough Council,807217,Macadamia Support Limited,M42E,AD People Strategy & Commissioning,Supplies and Services,702.99,Mar-24
Slough Borough Council,807217,Macadamia Support Limited,M42E,AD People Strategy & Commissioning,Supplies and Services,726.42,Mar-24
Slough Borough Council,807217,Macadamia Support Limited,M42E,AD People Strategy & Commissioning,Supplies and Services,726.42,Mar-24
Slough Borough Council,807217,Macadamia Support Limited,M42E,AD People Strategy & Commissioning,Supplies and Services,726.42,Mar-24
Slough Borough Council,807217,Macadamia Support Limited,M42E,AD People Strategy & Commissioning,Supplies and Services,726.42,Mar-24
Slough Borough Council,807217,Macadamia Support Limited,M42E,AD People Strategy & Commissioning,Supplies and Services,726.42,Mar-24
Slough Borough Council,807217,Macadamia Support Limited,M42E,AD People Strategy & Commissioning,Supplies and Services,656.10,Mar-24
Slough Borough Council,807217,Macadamia Support Limited,M42E,AD People Strategy & Commissioning,Supplies and Services,"6,889.56",Mar-24
Slough Borough Council,807217,Macadamia Support Limited,M42E,AD People Strategy & Commissioning,Supplies and Services,"6,005.20",Mar-24
Slough Borough Council,807217,Macadamia Support Limited,M42E,AD People Strategy & Commissioning,Supplies and Services,"7,819.56",Mar-24
Slough Borough Council,807217,Macadamia Support Limited,M42E,AD People Strategy & Commissioning,Supplies and Services,511.56,Mar-24
Slough Borough Council,807217,Macadamia Support Limited,M42E,AD People Strategy & Commissioning,Supplies and Services,511.56,Mar-24
Slough Borough Council,807217,Macadamia Support Limited,M42E,AD People Strategy & Commissioning,Supplies and Services,511.56,Mar-24
Slough Borough Council,807217,Macadamia Support Limited,M42E,AD People Strategy & Commissioning,Supplies and Services,511.56,Mar-24
Slough Borough Council,807217,Macadamia Support Limited,M42E,AD People Strategy & Commissioning,Supplies and Services,511.56,Mar-24
Slough Borough Council,807217,Macadamia Support Limited,M42E,AD People Strategy & Commissioning,Supplies and Services,511.56,Mar-24
Slough Borough Council,807217,Macadamia Support Limited,M42E,AD People Strategy & Commissioning,Supplies and Services,511.56,Mar-24
Slough Borough Council,807217,Macadamia Support Limited,M42E,AD People Strategy & Commissioning,Supplies and Services,511.56,Mar-24
Slough Borough Council,807217,Macadamia Support Limited,M42E,AD People Strategy & Commissioning,Supplies and Services,511.56,Mar-24
Slough Borough Council,807217,Macadamia Support Limited,M42E,AD People Strategy & Commissioning,Supplies and Services,511.56,Mar-24
Slough Borough Council,807217,Macadamia Support Limited,M42E,AD People Strategy & Commissioning,Supplies and Services,"3,839.72",Mar-24
Slough Borough Council,807217,Macadamia Support Limited,M44C,AD Adult Social Care Operations,Supplies and Services,"3,842.96",Mar-24
Slough Borough Council,807217,Macadamia Support Limited,M44D,AD Adult Social Care Operations,Supplies and Services,"5,909.60",Mar-24
Slough Borough Council,1874,Maccabee Pets Hotel,H253,AD Public Protection & Communities - Public Health,Supplies and Services,"1,788.50",Mar-24
Slough Borough Council,1874,Maccabee Pets Hotel,H253,AD Public Protection & Communities - Public Health,Supplies and Services,"4,532.50",Mar-24
Slough Borough Council,1941,Manor Green School,F449,AD Education & Inclusion,Supplies and Services,"3,536.25",Mar-24
Slough Borough Council,1941,Manor Green School,F449,AD Education & Inclusion,Supplies and Services,708.75,Mar-24
Slough Borough Council,1941,Manor Green School,F551,AD Children & Families,Supplies and Services,"307,568.00",Mar-24
Slough Borough Council,1941,Manor Green School,F551,AD Children & Families,Supplies and Services,"15,000.00",Mar-24
Slough Borough Council,1941,Manor Green School,F551,AD Children & Families,Supplies and Services,"15,000.00",Mar-24
Slough Borough Council,1941,Manor Green School,F551,AD Children & Families,Supplies and Services,"11,892.00",Mar-24
Slough Borough Council,1941,Manor Green School,F551,AD Children & Families,Supplies and Services,"10,000.00",Mar-24
Slough Borough Council,1941,Manor Green School,F551,AD Children & Families,Supplies and Services,"-26,125.00",Mar-24
Slough Borough Council,1941,Manor Green School,F551,AD Children & Families,Supplies and Services,"-31,350.00",Mar-24
Slough Borough Council,1941,Manor Green School,F551,AD Children & Families,Supplies and Services,"26,125.00",Mar-24
Slough Borough Council,1941,Manor Green School,F551,AD Children & Families,Supplies and Services,"20,900.00",Mar-24
Slough Borough Council,1941,Manor Green School,F551,AD Children & Families,Supplies and Services,"107,550.00",Mar-24
Slough Borough Council,3768,Marish Academy Trust,F200,AD Education & Inclusion,Salaries and Wages-Employees Expenses,896.20,Mar-24
Slough Borough Council,3768,Marish Academy Trust,B668,AD Building Management,Premises,"1,341.05",Mar-24
Slough Borough Council,529,Marish Primary School,E620,AD Children & Families,Supplies and Services,"109,636.76",Mar-24
Slough Borough Council,809126,Marlston Assets Ltd T/A Leburnum Guest House,H205,AD Housing,Supplies and Services,"19,502.50",Mar-24
Slough Borough Council,2752,Martin Conway,H205,AD Housing,Supplies and Services,562.50,Mar-24
Slough Borough Council,1886,Matrix Scm,B023,AD Deputy Director Corporate & Strategic Finance,Agency Staff,"501,051.89",Mar-24
Slough Borough Council,1886,Matrix Scm,B023,AD Deputy Director Corporate & Strategic Finance,Agency Staff,"519,906.86",Mar-24
Slough Borough Council,1886,Matrix Scm,B023,AD Deputy Director Corporate & Strategic Finance,Agency Staff,"521,093.38",Mar-24
Slough Borough Council,1886,Matrix Scm,B023,AD Deputy Director Corporate & Strategic Finance,Agency Staff,"548,937.74",Mar-24
Slough Borough Council,1886,Matrix Scm,F640,AD Children & Families,Agency Staff,"75,000.00",Mar-24
Slough Borough Council,804310,Matta Products,C001,AD Place Operations,Premises,"4,434.28",Mar-24
Slough Borough Council,804310,Matta Products,C001,AD Place Operations,Premises,"4,277.70",Mar-24
Slough Borough Council,804310,Matta Products,C001,AD Place Operations,Premises,"3,375.47",Mar-24
Slough Borough Council,804310,Matta Products,C001,AD Place Operations,Premises,"4,841.55",Mar-24
Slough Borough Council,807684,Maverick Care  Ltd T/A Christies Care Windsor & Maidenhead,M44C,AD Adult Social Care Operations,Supplies and Services,"1,210.50",Mar-24
Slough Borough Council,807684,Maverick Care  Ltd T/A Christies Care Windsor & Maidenhead,M45C,AD Adult Social Care Operations,Supplies and Services,753.21,Mar-24
Slough Borough Council,807009,Medigold Health Consultancy Ltd,B348,AD HR,Salaries and Wages-Employees Expenses,"3,851.38",Mar-24
Slough Borough Council,807009,Medigold Health Consultancy Ltd,B348,AD HR,Salaries and Wages-Employees Expenses,697.50,Mar-24
Slough Borough Council,807009,Medigold Health Consultancy Ltd,B348,AD HR,Salaries and Wages-Employees Expenses,615.00,Mar-24
Slough Borough Council,807009,Medigold Health Consultancy Ltd,B348,AD HR,Salaries and Wages-Employees Expenses,"1,070.00",Mar-24
Slough Borough Council,807009,Medigold Health Consultancy Ltd,B348,AD HR,Salaries and Wages-Employees Expenses,"1,635.00",Mar-24
Slough Borough Council,809279,Middlesex Housing Ltd,H205,AD Housing,Supplies and Services,"6,510.00",Mar-24
Slough Borough Council,1496,Mighty Acorns Day Nursery Ltd,F281,AD Education & Inclusion,Premises,"6,559.03",Mar-24
Slough Borough Council,1496,Mighty Acorns Day Nursery Ltd,F409,AD Education & Inclusion,Supplies and Services,"1,000.00",Mar-24
Slough Borough Council,1496,Mighty Acorns Day Nursery Ltd,F281,AD Education & Inclusion,Supplies and Services,"51,137.73",Mar-24
Slough Borough Council,1496,Mighty Acorns Day Nursery Ltd,F281,AD Education & Inclusion,Supplies and Services,"1,876.64",Mar-24
Slough Borough Council,1496,Mighty Acorns Day Nursery Ltd,F281,AD Education & Inclusion,Supplies and Services,"11,120.37",Mar-24
Slough Borough Council,1496,Mighty Acorns Day Nursery Ltd,F281,AD Education & Inclusion,Supplies and Services,"7,645.96",Mar-24
Slough Borough Council,1496,Mighty Acorns Day Nursery Ltd,F281,AD Education & Inclusion,Supplies and Services,"2,688.79",Mar-24
Slough Borough Council,1496,Mighty Acorns Day Nursery Ltd,F281,AD Education & Inclusion,Supplies and Services,"2,001.12",Mar-24
Slough Borough Council,1496,Mighty Acorns Day Nursery Ltd,F281,AD Education & Inclusion,Supplies and Services,"1,701.48",Mar-24
Slough Borough Council,808716,Mini Todds Ltd,F281,AD Education & Inclusion,Premises,635.70,Mar-24
Slough Borough Council,808716,Mini Todds Ltd,F281,AD Education & Inclusion,Premises,880.20,Mar-24
Slough Borough Council,808716,Mini Todds Ltd,F281,AD Education & Inclusion,Premises,"2,539.13",Mar-24
Slough Borough Council,808716,Mini Todds Ltd,F281,AD Education & Inclusion,Supplies and Services,"2,645.94",Mar-24
Slough Borough Council,808716,Mini Todds Ltd,F281,AD Education & Inclusion,Supplies and Services,678.73,Mar-24
Slough Borough Council,808747,MK HOUSING LTD,H205,AD Housing,Supplies and Services,"33,872.00",Mar-24
Slough Borough Council,805121,MMCG (2) Limited,A03E,AD Adult Social Care Operations,Supplies and Services,"4,387.30",Mar-24
Slough Borough Council,805121,MMCG (2) Limited,M15D,AD Adult Social Care Operations,Supplies and Services,"3,460.86",Mar-24
Slough Borough Council,805121,MMCG (2) Limited,M15F,AD People Strategy & Commissioning,Supplies and Services,"2,834.73",Mar-24
Slough Borough Council,805121,MMCG (2) Limited,M17C,AD Adult Social Care Operations,Supplies and Services,"3,460.86",Mar-24
Slough Borough Council,805121,MMCG (2) Limited,M17C,AD Adult Social Care Operations,Supplies and Services,"2,673.63",Mar-24
Slough Borough Council,805121,MMCG (2) Limited,M17C,AD Adult Social Care Operations,Supplies and Services,"3,460.86",Mar-24
Slough Borough Council,805121,MMCG (2) Limited,M17C,AD Adult Social Care Operations,Supplies and Services,"-3,699.54",Mar-24
Slough Borough Council,805121,MMCG (2) Limited,M18C,AD Adult Social Care Operations,Supplies and Services,"3,460.86",Mar-24
Slough Borough Council,805121,MMCG (2) Limited,M18C,AD Adult Social Care Operations,Supplies and Services,"3,460.86",Mar-24
Slough Borough Council,805121,MMCG (2) Limited,M18C,AD Adult Social Care Operations,Supplies and Services,"3,460.86",Mar-24
Slough Borough Council,805121,MMCG (2) Limited,M18C,AD Adult Social Care Operations,Supplies and Services,"3,460.86",Mar-24
Slough Borough Council,805121,MMCG (2) Limited,M18C,AD Adult Social Care Operations,Supplies and Services,"4,268.43",Mar-24
Slough Borough Council,805121,MMCG (2) Limited,M18C,AD Adult Social Care Operations,Supplies and Services,"1,082.01",Mar-24
Slough Borough Council,805121,MMCG (2) Limited,M18C,AD Adult Social Care Operations,Supplies and Services,"2,096.40",Mar-24
Slough Borough Council,805121,MMCG (2) Limited,M18C,AD Adult Social Care Operations,Supplies and Services,"4,629.14",Mar-24
Slough Borough Council,805121,MMCG (2) Limited,M18C,AD Adult Social Care Operations,Supplies and Services,"4,479.81",Mar-24
Slough Borough Council,805121,MMCG (2) Limited,M25C,AD Adult Social Care Operations,Supplies and Services,"3,460.86",Mar-24
Slough Borough Council,805121,MMCG (2) Limited,M25C,AD Adult Social Care Operations,Supplies and Services,"3,460.86",Mar-24
Slough Borough Council,805121,MMCG (2) Limited,M25C,AD Adult Social Care Operations,Supplies and Services,"3,460.86",Mar-24
Slough Borough Council,805121,MMCG (2) Limited,M25C,AD Adult Social Care Operations,Supplies and Services,"3,460.86",Mar-24
Slough Borough Council,805121,MMCG (2) Limited,M25C,AD Adult Social Care Operations,Supplies and Services,"3,460.86",Mar-24
Slough Borough Council,805121,MMCG (2) Limited,M27C,AD Adult Social Care Operations,Supplies and Services,"3,460.86",Mar-24
Slough Borough Council,805121,MMCG (2) Limited,M27C,AD Adult Social Care Operations,Supplies and Services,"3,460.86",Mar-24
Slough Borough Council,805121,MMCG (2) Limited,M27C,AD Adult Social Care Operations,Supplies and Services,"3,406.86",Mar-24
Slough Borough Council,805121,MMCG (2) Limited,M27C,AD Adult Social Care Operations,Supplies and Services,"3,460.86",Mar-24
Slough Borough Council,805121,MMCG (2) Limited,M27C,AD Adult Social Care Operations,Supplies and Services,"3,406.86",Mar-24
Slough Borough Council,805121,MMCG (2) Limited,M28C,AD Adult Social Care Operations,Supplies and Services,"2,625.48",Mar-24
Slough Borough Council,805121,MMCG (2) Limited,M28C,AD Adult Social Care Operations,Supplies and Services,835.38,Mar-24
Slough Borough Council,805121,MMCG (2) Limited,M28C,AD Adult Social Care Operations,Supplies and Services,"1,074.06",Mar-24
Slough Borough Council,805121,MMCG (2) Limited,A06C,AD People Strategy & Commissioning,Supplies and Services,"2,625.48",Mar-24
Slough Borough Council,2121,Mnk Estates (Uk) Ltd,M51C,AD Adult Social Care Operations,Supplies and Services,748.48,Mar-24
Slough Borough Council,804815,Molly Southall,C322,AD Public Protection & Communities - Children Services,Supplies and Services,"1,128.50",Mar-24
Slough Borough Council,804815,Molly Southall,C322,AD Public Protection & Communities - Children Services,Supplies and Services,"2,500.00",Mar-24
Slough Borough Council,2115,Montagu Evans Llp,P242,Capital,Capital Charges,"6,500.00",Mar-24
Slough Borough Council,1140,Montem Guesthouse,H205,AD Housing,Supplies and Services,"88,521.00",Mar-24
Slough Borough Council,1140,Montem Guesthouse,H205,AD Housing,Supplies and Services,"102,001.00",Mar-24
Slough Borough Council,3302,Montem Primary School,E620,AD Children & Families,Supplies and Services,"37,035.17",Mar-24
Slough Borough Council,807432,MPD FM Limited,B490,AD Property,Premises,"11,720.00",Mar-24
Slough Borough Council,807432,MPD FM Limited,B490,AD Property,Premises,"11,134.00",Mar-24
Slough Borough Council,807432,MPD FM Limited,B490,AD Property,Premises,"2,798.15",Mar-24
Slough Borough Council,807432,MPD FM Limited,A07M,AD People Strategy & Commissioning,Premises,"4,526.85",Mar-24
Slough Borough Council,807432,MPD FM Limited,A07M,AD People Strategy & Commissioning,Premises,"7,647.30",Mar-24
Slough Borough Council,807432,MPD FM Limited,A07M,AD People Strategy & Commissioning,Premises,"7,779.15",Mar-24
Slough Borough Council,807432,MPD FM Limited,A07M,AD People Strategy & Commissioning,Premises,"7,998.90",Mar-24
Slough Borough Council,807432,MPD FM Limited,H216,AD Housing,Supplies and Services,"8,581.24",Mar-24
Slough Borough Council,809384,Mr David Rees,F201,AD Education & Inclusion,Supplies and Services,"1,400.00",Mar-24
Slough Borough Council,809384,Mr David Rees,F201,AD Education & Inclusion,Supplies and Services,900.00,Mar-24
Slough Borough Council,807501,Mrs Parvinder Kaur Bhandal,H205,AD Housing,Supplies and Services,"26,722.00",Mar-24
Slough Borough Council,807501,Mrs Parvinder Kaur Bhandal,H205,AD Housing,Supplies and Services,"24,998.00",Mar-24
Slough Borough Council,807939,MSLFIT LTD,C322,AD Public Protection & Communities - Children Services,Supplies and Services,607.50,Mar-24
Slough Borough Council,806858,MUDDY BOOTS DAY NURSERY LTD,F281,AD Education & Inclusion,Premises,"1,712.03",Mar-24
Slough Borough Council,806858,MUDDY BOOTS DAY NURSERY LTD,F281,AD Education & Inclusion,Premises,"17,537.24",Mar-24
Slough Borough Council,806858,MUDDY BOOTS DAY NURSERY LTD,F281,AD Education & Inclusion,Premises,"7,107.76",Mar-24
Slough Borough Council,806858,MUDDY BOOTS DAY NURSERY LTD,F281,AD Education & Inclusion,Premises,"2,847.94",Mar-24
Slough Borough Council,806858,MUDDY BOOTS DAY NURSERY LTD,F281,AD Education & Inclusion,Supplies and Services,"11,370.92",Mar-24
Slough Borough Council,806858,MUDDY BOOTS DAY NURSERY LTD,F281,AD Education & Inclusion,Supplies and Services,591.45,Mar-24
Slough Borough Council,806858,MUDDY BOOTS DAY NURSERY LTD,F281,AD Education & Inclusion,Supplies and Services,"6,552.15",Mar-24
Slough Borough Council,806858,MUDDY BOOTS DAY NURSERY LTD,F281,AD Education & Inclusion,Supplies and Services,"15,563.87",Mar-24
Slough Borough Council,806858,MUDDY BOOTS DAY NURSERY LTD,F281,AD Education & Inclusion,Supplies and Services,698.25,Mar-24
Slough Borough Council,806858,MUDDY BOOTS DAY NURSERY LTD,F281,AD Education & Inclusion,Supplies and Services,"4,812.23",Mar-24
Slough Borough Council,805369,NAS Services Limited,M42E,AD People Strategy & Commissioning,Supplies and Services,"10,945.44",Mar-24
Slough Borough Council,808068,NEC Software Solutions UK Limited,J020,AD Housing,Supplies and Services,"6,150.00",Mar-24
Slough Borough Council,807590,NETWORK MERCHANTS LIMITED,D122,AD Place Operations,Supplies and Services,591.14,Mar-24
Slough Borough Council,807590,NETWORK MERCHANTS LIMITED,D122,AD Place Operations,Supplies and Services,594.61,Mar-24
Slough Borough Council,2469,Newlands Girls School,F552,AD Children & Families,Supplies and Services,"7,432.00",Mar-24
Slough Borough Council,809369,Nights Inn,H205,AD Housing,Supplies and Services,"1,885.00",Mar-24
Slough Borough Council,809369,Nights Inn,H205,AD Housing,Supplies and Services,"1,885.00",Mar-24
Slough Borough Council,809369,Nights Inn,H205,AD Housing,Supplies and Services,"1,885.00",Mar-24
Slough Borough Council,809369,Nights Inn,H205,AD Housing,Supplies and Services,"1,885.00",Mar-24
Slough Borough Council,805330,Norden Farm Centre Trust Limited,B175,AD Building Management,External Receipts,540.00,Mar-24
Slough Borough Council,2021,Now Medical,H207,AD Housing,Supplies and Services,600.00,Mar-24
Slough Borough Council,803238,Oasis Care and Training Agency,A07R,AD Adult Social Care Operations,Supplies and Services,764.40,Mar-24
Slough Borough Council,803238,Oasis Care and Training Agency,M44C,AD Adult Social Care Operations,Supplies and Services,"3,789.24",Mar-24
Slough Borough Council,803238,Oasis Care and Training Agency,M44C,AD Adult Social Care Operations,Supplies and Services,"3,789.24",Mar-24
Slough Borough Council,803238,Oasis Care and Training Agency,M44C,AD Adult Social Care Operations,Supplies and Services,"3,789.24",Mar-24
Slough Borough Council,803238,Oasis Care and Training Agency,M44C,AD Adult Social Care Operations,Supplies and Services,"3,789.24",Mar-24
Slough Borough Council,803238,Oasis Care and Training Agency,M44C,AD Adult Social Care Operations,Supplies and Services,"3,789.24",Mar-24
Slough Borough Council,803238,Oasis Care and Training Agency,M44C,AD Adult Social Care Operations,Supplies and Services,"3,789.24",Mar-24
Slough Borough Council,803238,Oasis Care and Training Agency,M44C,AD Adult Social Care Operations,Supplies and Services,"3,789.24",Mar-24
Slough Borough Council,803238,Oasis Care and Training Agency,M44C,AD Adult Social Care Operations,Supplies and Services,"3,789.24",Mar-24
Slough Borough Council,803238,Oasis Care and Training Agency,M44C,AD Adult Social Care Operations,Supplies and Services,"3,789.24",Mar-24
Slough Borough Council,803238,Oasis Care and Training Agency,M44C,AD Adult Social Care Operations,Supplies and Services,658.86,Mar-24
Slough Borough Council,803238,Oasis Care and Training Agency,M44C,AD Adult Social Care Operations,Supplies and Services,644.62,Mar-24
Slough Borough Council,803238,Oasis Care and Training Agency,M44C,AD Adult Social Care Operations,Supplies and Services,"1,213.44",Mar-24
Slough Borough Council,803238,Oasis Care and Training Agency,M44C,AD Adult Social Care Operations,Supplies and Services,"1,232.40",Mar-24
Slough Borough Council,803238,Oasis Care and Training Agency,M44C,AD Adult Social Care Operations,Supplies and Services,"1,232.40",Mar-24
Slough Borough Council,803238,Oasis Care and Training Agency,M44C,AD Adult Social Care Operations,Supplies and Services,"1,232.40",Mar-24
Slough Borough Council,803238,Oasis Care and Training Agency,M44C,AD Adult Social Care Operations,Supplies and Services,"1,232.40",Mar-24
Slough Borough Council,803238,Oasis Care and Training Agency,M44C,AD Adult Social Care Operations,Supplies and Services,838.98,Mar-24
Slough Borough Council,803238,Oasis Care and Training Agency,M44F,AD People Strategy & Commissioning,Supplies and Services,"1,306.44",Mar-24
Slough Borough Council,803238,Oasis Care and Training Agency,M44F,AD People Strategy & Commissioning,Supplies and Services,"1,592.64",Mar-24
Slough Borough Council,803238,Oasis Care and Training Agency,M44F,AD People Strategy & Commissioning,Supplies and Services,"1,592.64",Mar-24
Slough Borough Council,803238,Oasis Care and Training Agency,M44F,AD People Strategy & Commissioning,Supplies and Services,"1,365.12",Mar-24
Slough Borough Council,803238,Oasis Care and Training Agency,M44F,AD People Strategy & Commissioning,Supplies and Services,"1,443.96",Mar-24
